Workbook

Sheet TUB PC
A1: Tubulin PC/Total | B1: Bull 1 | C1: Bull 2 | D1: Bull 3J | E1: Bull 4 | F1: Bull 5 | G1: Bull 6
A2: 0.40 | B2: 0.39 | C2: 0.4 | D2: 0.38 | E2: 0.4 | F2: 0 | G2: 0.4 | I2: Bins | J2: 0.05 | K2: 0.15 | L2: 0.25 | M2: 0.35 | N2: 0.45 | O2: 0.55 | P2: 0.65 | Q2: 0.75 | R2: 0.85 | S2: 0.95
A3: 0.33 | B3: 0.5 | C3: 0.32 | D3: 0.45 | E3: 0.42 | F3: 0.15 | G3: 0.34 | J3: 0 | K3: .1-.2 | L3: .2-.3 | M3: .3-.4 | N3: .4-.5 | O3: .5-.6 | P3: .6-.7 | Q3: .7-.8 | R3: .8-.9 | S3: .9-1
A4: 0.34 | B4: 0.45 | C4: 0.3 | D4: 0.45 | E4: 0.36 | F4: 1 | G4: 0.44 | J4: =(COUNTIFS(A:A, "<=0.1")) -> 52 | K4: =COUNTIFS(A:A,">0.1",A:A,"<=0.2") -> 279 | L4: =COUNTIFS(A:A,">0.2",A:A,"<=0.3") -> 1558 | M4: =COUNTIFS(A:A,">0.3",A:A,"<=0.4") -> 3359 | N4: =COUNTIFS(A:A,">0.4",A:A,"<=0.5") -> 2595 | O4: =COUNTIFS(A:A,">0.5",A:A,"<=0.6") -> 824 | P4: =COUNTIFS(A:A,">0.6",A:A,"<=0.7") -> 155 | Q4: =COUNTIFS(A:A,">0.7",A:A,"<=0.8") -> 26 | R4: =COUNTIFS(A:A,">0.8",A:A,"<=0.9") -> 9 | S4: =COUNTIFS(A:A,">0.9",A:A,"<=1") -> 5 | T4: =SUM(J4:S4) -> 8862
A5: 0.35 | B5: 0.3 | C5: 0.2 | D5: 0.4 | E5: 0.45 | F5: 0 | G5: 0.39 | J5: =J4/$T$4 -> 1% | K5: =K4/$T$4 -> 3% | L5: 18% | M5: 38% | N5: 29% | O5: 9% | P5: 2% | Q5: 0% | R5: 0% | S5: 0%
A6: 0.34 | B6: 0.37 | C6: 0.28 | D6: 0.31 | E6: 0.39 | F6: 0 | G6: 0.31
A7: 0.30 | B7: 0.41 | C7: 0.5 | D7: 0.46 | E7: 0.58 | F7: 0 | G7: 0.35
A8: 0.31 | B8: 0.39 | C8: 0.47 | D8: 0.3 | E8: 0.39 | F8: 0.6 | G8: 0.54 | I8: Bull 1 | J8: 0.05 | K8: 0.15 | L8: 0.25 | M8: 0.35 | N8: 0.45 | O8: 0.55 | P8: 0.65 | Q8: 0.75 | R8: 0.85 | S8: 0.95
A9: 0.45 | B9: 0.38 | C9: 0.45 | D9: 0.37 | E9: 0.46 | F9: 0.2 | G9: 0.42 | J9: =(COUNTIFS(B:B, "<=0.1")) -> 3 | K9: =COUNTIFS(B:B,">0.1",B:B,"<=0.2") -> 66 | L9: =COUNTIFS(B:B,">0.2",B:B,"<=0.3") -> 274 | M9: =COUNTIFS(B:B,">0.3",B:B,"<=0.4") -> 346 | N9: =COUNTIFS(B:B,">0.4",B:B,"<=0.5") -> 135 | O9: =COUNTIFS(B:B,">0.5",B:B,"<=0.6") -> 36 | P9: =COUNTIFS(B:B,">0.6",B:B,"<=0.7") -> 11 | Q9: =COUNTIFS(B:B,">0.7",B:B,"<=0.8") -> 5 | R9: =COUNTIFS(B:B,">0.8",B:B,"<=0.9") -> 0 | S9: =COUNTIFS(B:B,">0.9",B:B,"<=1") -> 0 | T9: =SUM(J9:S9) -> 876
A10: 0.32 | B10: 0.37 | C10: 0.37 | D10: 0.43 | E10: 0.55 | F10: 0.57 | G10: 0.37 | J10: =J9/$T$9 -> 0% | K10: =K9/$T$9 -> 8% | L10: 31% | M10: 39% | N10: 15% | O10: 4% | P10: 1% | Q10: 1% | R10: 0% | S10: 0%
A11: 0.26 | B11: 0.36 | C11: 0.52 | D11: 0.46 | E11: 0.2 | F11: 0.25 | G11: 0.41
A12: 0.28 | B12: 0.36 | C12: 0.38 | D12: 0.25 | E12: 0.49 | F12: 1 | G12: 0.35
A13: 0.35 | B13: 0.39 | C13: 0.29 | D13: 0.51 | E13: 0.45 | F13: 0 | G13: 0.27 | I13: Bull 2 | J13: 0.05 | K13: 0.15 | L13: 0.25 | M13: 0.35 | N13: 0.45 | O13: 0.55 | P13: 0.65 | Q13: 0.75 | R13: 0.85 | S13: 0.95
A14: 0.41 | B14: 0.38 | C14: 0.28 | D14: 0.37 | E14: 0.31 | F14: 0 | G14: 0.43 | J14: =(COUNTIFS(C:C, "<=0.1")) -> 1 | K14: =COUNTIFS(C:C,">0.1",C:C,"<=0.2") -> 35 | L14: =COUNTIFS(C:C,">0.2",C:C,"<=0.3") -> 178 | M14: =COUNTIFS(C:C,">0.3",C:C,"<=0.4") -> 237 | N14: =COUNTIFS(C:C,">0.4",C:C,"<=0.5") -> 131 | O14: =COUNTIFS(C:C,">0.5",C:C,"<=0.6") -> 36 | P14: =COUNTIFS(C:C,">0.6",C:C,"<=0.7") -> 5 | Q14: =COUNTIFS(C:C,">0.7",C:C,"<=0.8") -> 1 | R14: =COUNTIFS(C:C,">0.8",C:C,"<=0.9") -> 0 | S14: =COUNTIFS(C:C,">0.9",C:C,"<=1") -> 0 | T14: =SUM(J14:S14) -> 624
A15: 0.39 | B15: 0.37 | C15: 0.34 | D15: 0.51 | E15: 0.3 | F15: 0 | G15: 0.34 | J15: =J14/$T$14 -> 0% | K15: =K14/$T$14 -> 6% | L15: 29% | M15: 38% | N15: 21% | O15: 6% | P15: 1% | Q15: 0% | R15: 0% | S15: 0%
A16: 0.36 | B16: 0.3 | C16: 0.24 | D16: 0.39 | E16: 0.58 | F16: 0 | G16: 0.46
A17: 0.41 | B17: 0.33 | C17: 0.28 | D17: 0.41 | E17: 0.23 | F17: 0 | G17: 0.62
A18: 0.39 | B18: 0.45 | C18: 0.37 | D18: 0.4 | E18: 0.32 | F18: 0.25 | G18: 0.5 | I18: Bull 3 | J18: 0.05 | K18: 0.15 | L18: 0.25 | M18: 0.35 | N18: 0.45 | O18: 0.55 | P18: 0.65 | Q18: 0.75 | R18: 0.85 | S18: 0.95
A19: 0.23 | B19: 0.29 | C19: 0.3 | D19: 0.58 | E19: 0.32 | F19: 0 | G19: 0.52 | J19: =(COUNTIFS(D:D, "<=0.1")) -> 5 | K19: =COUNTIFS(D:D,">0.1",D:D,"<=0.2") -> 33 | L19: =COUNTIFS(D:D,">0.2",D:D,"<=0.3") -> 105 | M19: =COUNTIFS(D:D,">0.3",D:D,"<=0.4") -> 233 | N19: =COUNTIFS(D:D,">0.4",D:D,"<=0.5") -> 139 | O19: =COUNTIFS(D:D,">0.5",D:D,"<=0.6") -> 48 | P19: =COUNTIFS(D:D,">0.6",D:D,"<=0.7") -> 17 | Q19: =COUNTIFS(D:D,">0.7",D:D,"<=0.8") -> 7 | R19: =COUNTIFS(D:D,">0.8",D:D,"<=0.9") -> 1 | S19: =COUNTIFS(D:D,">0.9",D:D,"<=1") -> 0 | T19: =SUM(J19:S19) -> 588
A20: 0.32 | B20: 0.32 | C20: 0.46 | D20: 0.34 | E20: 0.62 | F20: 0 | G20: 0.49 | J20: =J19/$T$19 -> 1% | K20: =K19/$T$19 -> 6% | L20: 18% | M20: 40% | N20: 24% | O20: 8% | P20: 3% | Q20: 1% | R20: 0% | S20: 0%
A21: 0.38 | B21: 0.28 | C21: 0.45 | D21: 0.34 | E21: 0.65 | F21: 0.57 | G21: 0.34
A22: 0.41 | B22: 0.41 | C22: 0.61 | D22: 0.34 | E22: 0.55 | F22: 0.23 | G22: 0.35
A23: 0.38 | B23: 0.35 | C23: 0.32 | D23: 0.39 | E23: 0.34 | F23: 0.34 | G23: 0.49 | I23: Bull 4 | J23: 0.05 | K23: 0.15 | L23: 0.25 | M23: 0.35 | N23: 0.45 | O23: 0.55 | P23: 0.65 | Q23: 0.75 | R23: 0.85 | S23: 0.95
A24: 0.37 | B24: 0.42 | C24: 0.35 | D24: 0.25 | E24: 0.59 | F24: 0.31 | G24: 0.45 | J24: =(COUNTIFS(E:E, "<=0.1")) -> 3 | K24: =COUNTIFS(E:E,">0.1",E:E,"<=0.2") -> 15 | L24: =COUNTIFS(E:E,">0.2",E:E,"<=0.3") -> 49 | M24: =COUNTIFS(E:E,">0.3",E:E,"<=0.4") -> 105 | N24: =COUNTIFS(E:E,">0.4",E:E,"<=0.5") -> 65 | O24: =COUNTIFS(E:E,">0.5",E:E,"<=0.6") -> 44 | P24: =COUNTIFS(E:E,">0.6",E:E,"<=0.7") -> 17 | Q24: =COUNTIFS(E:E,">0.7",E:E,"<=0.8") -> 7 | R24: =COUNTIFS(E:E,">0.8",E:E,"<=0.9") -> 1 | S24: =COUNTIFS(E:E,">0.9",E:E,"<=1") -> 1 | T24: =SUM(J24:S24) -> 307
A25: 0.41 | B25: 0.38 | C25: 0.5 | D25: 0.37 | E25: 0.56 | F25: 0.38 | G25: 0.57 | J25: =J24/$T$24 -> 1% | K25: =K24/$T$24 -> 5% | L25: =L24/$T$24 -> 16% | M25: 34% | N25: 21% | O25: 14% | P25: 6% | Q25: 2% | R25: 0% | S25: 0%
A26: 0.39 | B26: 0.38 | C26: 0.35 | D26: 0.42 | E26: 0.29 | F26: 0.45 | G26: 0.37
A27: 0.31 | B27: 0.34 | C27: 0.37 | D27: 0.57 | E27: 0.26 | F27: 0.33 | G27: 0.49
A28: 0.38 | B28: 0.38 | C28: 0.38 | D28: 0.3 | E28: 0.27 | F28: 0.38 | G28: 0.45 | I28: Bull 5 | J28: 0.05 | K28: 0.15 | L28: 0.25 | M28: 0.35 | N28: 0.45 | O28: 0.55 | P28: 0.65 | Q28: 0.75 | R28: 0.85 | S28: 0.95
A29: 0.31 | B29: 0.38 | C29: 0.28 | D29: 0.39 | E29: 0.4 | F29: 0.28 | G29: 0.48 | J29: =(COUNTIFS(F:F, "<=0.1")) -> 18 | K29: =COUNTIFS(F:F,">0.1",F:F,"<=0.2") -> 19 | L29: =COUNTIFS(F:F,">0.2",F:F,"<=0.3") -> 44 | M29: =COUNTIFS(F:F,">0.3",F:F,"<=0.4") -> 102 | N29: =COUNTIFS(F:F,">0.4",F:F,"<=0.5") -> 85 | O29: =COUNTIFS(F:F,">0.5",F:F,"<=0.6") -> 45 | P29: =COUNTIFS(F:F,">0.6",F:F,"<=0.7") -> 13 | Q29: =COUNTIFS(F:F,">0.7",F:F,"<=0.8") -> 7 | R29: =COUNTIFS(F:F,">0.8",F:F,"<=0.9") -> 2 | S29: =COUNTIFS(F:F,">0.9",F:F,"<=1") -> 5 | T29: =SUM(J29:S29) -> 340
A30: 0.33 | B30: 0.42 | C30: 0.24 | D30: 0.36 | E30: 0.43 | F30: 0.38 | G30: 0.38 | J30: =J29/$T$29 -> 5% | K30: =K29/$T$29 -> 6% | L30: 13% | M30: 30% | N30: 25% | O30: 13% | P30: 4% | Q30: 2% | R30: 1% | S30: 1%
A31: 0.40 | B31: 0.26 | C31: 0.3 | D31: 0.33 | E31: 0.35 | F31: 0.42 | G31: 0.4
A32: 0.38 | B32: 0.22 | C32: 0.43 | D32: 0.34 | E32: 0.55 | F32: 0.36 | G32: 0.55
A33: 0.40 | B33: 0.32 | C33: 0.39 | D33: 0.54 | E33: 0.35 | F33: 0.34 | G33: 0.45 | I33: Bull 6 | J33: 0.05 | K33: 0.15 | L33: 0.25 | M33: 0.35 | N33: 0.45 | O33: 0.55 | P33: 0.65 | Q33: 0.75 | R33: 0.85 | S33: 0.95
A34: 0.38 | B34: 0.31 | C34: 0.47 | D34: 0.32 | E34: 0.35 | F34: 0.34 | G34: 0.56 | J34: =(COUNTIFS(G:G, "<=0.1")) -> 0 | K34: =COUNTIFS(G:G,">0.1",G:G,"<=0.2") -> 6 | L34: =COUNTIFS(G:G,">0.2",G:G,"<=0.3") -> 24 | M34: =COUNTIFS(G:G,">0.3",G:G,"<=0.4") -> 98 | N34: =COUNTIFS(G:G,">0.4",G:G,"<=0.5") -> 158 | O34: =COUNTIFS(G:G,">0.5",G:G,"<=0.6") -> 72 | P34: =COUNTIFS(G:G,">0.6",G:G,"<=0.7") -> 39 | Q34: =COUNTIFS(G:G,">0.7",G:G,"<=0.8") -> 21 | R34: =COUNTIFS(G:G,">0.8",G:G,"<=0.9") -> 6 | S34: =COUNTIFS(G:G,">0.9",G:G,"<=1") -> 5 | T34: =SUM(J34:S34) -> 429
A35: 0.25 | B35: 0.37 | C35: 0.44 | D35: 0.39 | E35: 0.45 | F35: 0.22 | G35: 0.52 | J35: =J34/$T$34 -> 0% | K35: =K34/$T$34 -> 1% | L35: 6% | M35: 23% | N35: 37% | O35: 17% | P35: 9% | Q35: 5% | R35: 1% | S35: 1%
A36: 0.36 | B36: 0.31 | C36: 0.32 | D36: 0.37 | E36: 0.42 | F36: 0.28 | G36: 0.48
A37: 0.34 | B37: 0.34 | C37: 0.37 | D37: 0.37 | E37: 0.35 | F37: 0.39 | G37: 0.52
A38: 0.43 | B38: 0.43 | C38: 0.34 | D38: 0.3 | E38: 0.44 | F38: 0.36 | G38: 0.64
A39: 0.26 | B39: 0.5 | C39: 0.44 | D39: 0.31 | E39: 0.24 | F39: 0.3 | G39: 0.48
A40: 0.32 | B40: 0.37 | C40: 0.31 | D40: 0.41 | E40: 0.37 | F40: 0.42 | G40: 0.46
A41: 0.32 | B41: 0.28 | C41: 0.36 | D41: 0.35 | E41: 0.4 | F41: 0.48 | G41: 0.55
A42: 0.38 | B42: 0.34 | C42: 0.27 | D42: 0.42 | E42: 0.43 | F42: 0.51 | G42: 0.53
A43: 0.36 | B43: 0.42 | C43: 0.46 | D43: 0.3 | E43: 0.56 | F43: 0.42 | G43: 0.51
A44: 0.37 | B44: 0.47 | C44: 0.38 | D44: 0.55 | E44: 0.49 | F44: 0.38 | G44: 0.34
A45: 0.35 | B45: 0.39 | C45: 0.36 | D45: 0.63 | E45: 0.27 | F45: 0.37 | G45: 0.45
A46: 0.33 | B46: 0.5 | C46: 0.41 | D46: 0.39 | E46: 0.49 | F46: 0.58 | G46: 0.47
A47: 0.43 | B47: 0.45 | C47: 0.35 | D47: 0.36 | E47: 0.42 | F47: 0.36 | G47: 0.46
A48: 0.50 | B48: 0.3 | C48: 0.55 | D48: 0.53 | E48: 0.52 | F48: 0.28 | G48: 0.55
A49: 0.26 | B49: 0.37 | C49: 0.29 | D49: 0.34 | E49: 0.51 | F49: 0.59 | G49: 0.44
A50: 0.36 | B50: 0.41 | C50: 0.42 | D50: 0.42 | E50: 0.08 | F50: 0.41 | G50: 0.57
A51: 0.43 | B51: 0.39 | C51: 0.36 | D51: 0.48 | E51: 0.54 | F51: 0.27 | G51: 0.47
A52: 0.33 | B52: 0.38 | C52: 0.34 | D52: 0.51 | E52: 0.34 | F52: 0.55 | G52: 0.43
A53: 0.34 | B53: 0.37 | C53: 0.33 | D53: 0.44 | E53: 0.28 | F53: 0.26 | G53: 0.57
A54: 0.37 | B54: 0.36 | C54: 0.3 | D54: 0.25 | E54: 0.44 | F54: 0.45 | G54: 0.49
A55: 0.33 | B55: 0.36 | C55: 0.46 | D55: 0.35 | E55: 0.43 | F55: 0.53 | G55: 0.41
A56: 0.39 | B56: 0.39 | C56: 0.39 | D56: 0.65 | E56: 0.26 | F56: 0.38 | G56: 0.48
A57: 0.40 | B57: 0.38 | C57: 0.38 | D57: 0.65 | E57: 0.51 | F57: 0.37 | G57: 0.33
A58: 0.29 | B58: 0.37 | C58: 0.43 | D58: 0.37 | E58: 0.39 | F58: 0.48 | G58: 0.49
A59: 0.37 | B59: 0.3 | C59: 0.39 | D59: 0.37 | E59: 0.38 | F59: 0.38 | G59: 0.45
A60: 0.30 | B60: 0.33 | C60: 0.4 | D60: 0.3 | E60: 0.44 | F60: 0.4 | G60: 0.44
A61: 0.41 | B61: 0.45 | C61: 0.27 | D61: 0.48 | E61: 0.42 | F61: 0.36 | G61: 0.62
A62: 0.27 | B62: 0.29 | C62: 0.55 | D62: 0.29 | E62: 0.41 | F62: 0.4 | G62: 0.47
A63: 0.24 | B63: 0.32 | C63: 0.42 | D63: 0.5 | E63: 0.46 | F63: 0.43 | G63: 0.43
A64: 0.47 | B64: 0.28 | C64: 0.49 | D64: 0.34 | E64: 0.38 | F64: 0.54 | G64: 0.5
A65: 0.32 | B65: 0.41 | C65: 0.31 | D65: 0.38 | E65: 0.29 | F65: 0.55 | G65: 0.55
A66: 0.35 | B66: 0.35 | C66: 0.39 | D66: 0.37 | E66: 0.49 | F66: 0.39 | G66: 0.36
A67: 0.34 | B67: 0.42 | C67: 0.3 | D67: 0.42 | E67: 0.51 | F67: 0.35 | G67: 0.47
A68: 0.30 | B68: 0.38 | C68: 0.48 | D68: 0.32 | E68: 0.42 | F68: 0.33 | G68: 0.51
A69: 0.34 | B69: 0.38 | C69: 0.51 | D69: 0.32 | E69: 0.5 | F69: 0.42 | G69: 0.47
A70: 0.35 | B70: 0.34 | C70: 0.36 | D70: 0.39 | E70: 0.27 | F70: 0.29 | G70: 0.48
A71: 0.35 | B71: 0.38 | C71: 0.42 | D71: 0.41 | E71: 0.23 | F71: 0.32 | G71: 0.57
A72: 0.24 | B72: 0.38 | C72: 0.34 | D72: 0.3 | E72: 0.52 | F72: 0.48 | G72: 0.44
A73: 0.17 | B73: 0.42 | C73: 0.29 | D73: 0.35 | E73: 0.44 | F73: 0.47 | G73: 0.47
A74: 0.36 | B74: 0.26 | C74: 0.38 | D74: 0.21 | E74: 0.34 | F74: 0.52 | G74: 0.5
A75: 0.42 | B75: 0.22 | C75: 0.35 | D75: 0.49 | E75: 0.24 | F75: 0.53 | G75: 0.32
A76: 0.30 | B76: 0.32 | C76: 0.16 | D76: 0.39 | E76: 0.24 | F76: 0.42 | G76: 0.38
A77: 0.46 | B77: 0.31 | C77: 0.47 | D77: 0.36 | E77: 0.39 | F77: 0.29 | G77: 0.5
A78: 0.41 | B78: 0.37 | C78: 0.31 | D78: 0.3 | E78: 0.39 | F78: 0.32 | G78: 0.35
A79: 0.35 | B79: 0.31 | C79: 0.53 | D79: 0.39 | E79: 0.51 | F79: 0.14 | G79: 0.42
A80: 0.44 | B80: 0.34 | C80: 0.48 | D80: 0.38 | E80: 0.55 | F80: 0.33 | G80: 0.44
A81: 0.44 | B81: 0.43 | C81: 0.39 | D81: 0.36 | E81: 0.33 | F81: 0.57 | G81: 0.35
A82: 0.29 | B82: 0.5 | C82: 0.5 | D82: 0.4 | E82: 0.61 | F82: 0.25 | G82: 0.41
A83: 0.23 | B83: 0.37 | C83: 0.33 | D83: 0.31 | E83: 0.35 | F83: 0.34 | G83: 0.47
A84: 0.33 | B84: 0.28 | C84: 0.33 | D84: 0.36 | E84: 0.35 | F84: 0.57 | G84: 0.42
A85: 0.47 | B85: 0.34 | C85: 0.28 | D85: 0.33 | E85: 0.28 | F85: 0.43 | G85: 0.48
A86: 0.31 | B86: 0.42 | C86: 0.5 | D86: 0.31 | E86: 0.27 | F86: 0.45 | G86: 0.43
A87: 0.35 | B87: 0.47 | C87: 0.39 | D87: 0.13 | E87: 0.25 | F87: 0.44 | G87: 0.48
A88: 0.31 | B88: 0.39 | C88: 0.29 | D88: 0.37 | E88: 0.36 | F88: 0.41 | G88: 0.37
A89: 0.36 | B89: 0.34 | C89: 0.64 | D89: 0.36 | E89: 0.4 | F89: 0.33 | G89: 0.4
A90: 0.36 | B90: 0.29 | C90: 0.29 | D90: 0.46 | E90: 0.45 | F90: 0.2 | G90: 0.48
A91: 0.26 | B91: 0.39 | C91: 0.46 | D91: 0.39 | E91: 0.44 | F91: 0.5 | G91: 0.4
A92: 0.29 | B92: 0.39 | C92: 0.35 | D92: 0.27 | E92: 0.39 | F92: 0.24 | G92: 0.38
A93: 0.35 | B93: 0.41 | C93: 0.4 | D93: 0.25 | E93: 0.45 | F93: 0.24 | G93: 0.44
A94: 0.19 | B94: 0.37 | C94: 0.39 | D94: 0.45 | E94: 0.44 | F94: 0.33 | G94: 0.38
A95: 0.35 | B95: 0.4 | C95: 0.35 | D95: 0.33 | E95: 0.34 | F95: 0.11 | G95: 0.41
A96: 0.40 | B96: 0.33 | C96: 0.29 | D96: 0.4 | E96: 0.64 | F96: 0.31 | G96: 0.38
A97: 0.39 | B97: 0.39 | C97: 0.55 | D97: 0.4 | E97: 0.41 | F97: 0.43 | G97: 0.4
A98: 0.28 | B98: 0.3 | C98: 0.37 | D98: 0.58 | E98: 0.34 | F98: 0.49 | G98: 0.52
A99: 0.26 | B99: 0.38 | C99: 0.43 | D99: 0.31 | E99: 0.26 | F99: 0.35 | G99: 0.54
A100: 0.36 | B100: 0.51 | C100: 0.43 | D100: 0.4 | E100: 0.34 | F100: 0.77 | G100: 0.42
A101: 0.46 | B101: 0.4 | C101: 0.28 | D101: 0.41 | E101: 0.34 | F101: 0.31 | G101: 0.37
A102: 0.27 | B102: 0.39 | C102: 0.32 | D102: 0.46 | E102: 0.76 | F102: 0.31 | G102: 0.45
A103: 0.30 | B103: 0.29 | C103: 0.31 | D103: 0.43 | E103: 0.31 | F103: 0.59 | G103: 0.43
A104: 0.33 | B104: 0.29 | C104: 0.4 | D104: 0.38 | E104: 0.51 | F104: 0.19 | G104: 0.29
A105: 0.34 | B105: 0.35 | C105: 0.44 | D105: 0.29 | E105: 0.19 | F105: 0.34 | G105: 0.32
A106: 0.30 | B106: 0.32 | C106: 0.35 | D106: 0.23 | E106: 0.38 | F106: 0.34 | G106: 0.36
A107: 0.26 | B107: 0.38 | C107: 0.37 | D107: 0.47 | E107: 0.55 | F107: 0.38 | G107: 0.36
A108: 0.30 | B108: 0.23 | C108: 0.54 | D108: 0.44 | E108: 0.35 | F108: 0.33 | G108: 0.45
A109: 0.34 | B109: 0.42 | C109: 0.38 | D109: 0.37 | E109: 0.52 | F109: 0.36 | G109: 0.4
A110: 0.21 | B110: 0.41 | C110: 0.56 | D110: 0.44 | E110: 0.32 | F110: 0.26 | G110: 0.32
A111: 0.29 | B111: 0.31 | C111: 0.32 | D111: 0.38 | E111: 0.33 | F111: 0.33 | G111: 0.36
A112: 0.46 | B112: 0.41 | C112: 0.47 | D112: 0.33 | E112: 0.27 | F112: 0.23 | G112: 0.51
A113: 0.39 | B113: 0.31 | C113: 0.35 | D113: 0.33 | E113: 0.4 | F113: 0.39 | G113: 0.35
A114: 0.34 | B114: 0.36 | C114: 0.43 | D114: 0.37 | E114: 0.28 | F114: 0.33 | G114: 0.44
A115: 0.46 | B115: 0.4 | C115: 0.42 | D115: 0.48 | E115: 0.36 | F115: 0.43 | G115: 0.4
A116: 0.22 | B116: 0.39 | C116: 0.4 | D116: 0.35 | E116: 0.71 | F116: 0.52 | G116: 0.42
A117: 0.28 | B117: 0.21 | C117: 0.54 | D117: 0.36 | E117: 0.38 | F117: 0.49 | G117: 0.41
A118: 0.35 | B118: 0.27 | C118: 0.32 | D118: 0.44 | E118: 0.46 | F118: 0.38 | G118: 0.4
A119: 0.33 | B119: 0.38 | C119: 0.3 | D119: 0.37 | E119: 0.22 | F119: 0.38 | G119: 0.47
A120: 0.30 | B120: 0.62 | C120: 0.18 | D120: 0.41 | E120: 0.24 | F120: 0.49 | G120: 0.44
A121: 0.27 | B121: 0.44 | C121: 0.44 | D121: 0.5 | E121: 0.9 | F121: 0.5 | G121: 0.35
A122: 0.26 | B122: 0.19 | C122: 0.42 | D122: 0.41 | E122: 0.45 | F122: 0.43 | G122: 0.52
A123: 0.34 | B123: 0.19 | C123: 0.36 | D123: 0.37 | E123: 0.19 | F123: 0.21 | G123: 0.41
A124: 0.30 | B124: 0.26 | C124: 0.51 | D124: 0.3 | E124: 0.38 | F124: 0.38 | G124: 0.52
A125: 0.24 | B125: 0.29 | C125: 0.38 | D125: 0.39 | E125: 0.48 | F125: 0.48 | G125: 0.38
A126: 0.39 | B126: 0.29 | C126: 0.45 | D126: 0.28 | E126: 0.31 | F126: 0.33 | G126: 0.42
A127: 0.33 | B127: 0.34 | C127: 0.51 | D127: 0.48 | E127: 0.65 | F127: 0.34 | G127: 0.48
A128: 0.39 | B128: 0.35 | C128: 0.49 | D128: 0.38 | E128: 0.36 | F128: 0.42 | G128: 0.44
A129: 0.34 | B129: 0.48 | C129: 0.38 | D129: 0.3 | E129: 0.27 | F129: 0.34 | G129: 0.47
A130: 0.30 | B130: 0.38 | C130: 0.48 | D130: 0.37 | E130: 0.44 | F130: 0.33 | G130: 0.38
A131: 0.35 | B131: 0.33 | C131: 0.51 | D131: 0.32 | E131: 0.39 | F131: 0.25 | G131: 0.39
A132: 0.23 | B132: 0.34 | C132: 0.31 | D132: 0.38 | E132: 0.32 | F132: 0.42 | G132: 0.52
A133: 0.27 | B133: 0.21 | C133: 0.47 | D133: 0.37 | E133: 0.25 | F133: 0.28 | G133: 0.62
A134: 0.26 | B134: 0.35 | C134: 0.56 | D134: 0.17 | E134: 0.69 | F134: 0.47 | G134: 0.49
A135: 0.25 | B135: 0.27 | C135: 0.19 | D135: 0.35 | E135: 0.31 | F135: 0.42 | G135: 0.38
A136: 0.35 | B136: 0.3 | C136: 0.29 | D136: 0.31 | E136: 0.26 | F136: 0.15 | G136: 0.36
A137: 0.27 | B137: 0.25 | C137: 0.38 | D137: 0.37 | E137: 0.4 | F137: 0.66 | G137: 0.43
A138: 0.31 | B138: 0.39 | C138: 0.23 | D138: 0.44 | E138: 0.4 | F138: 0.39 | G138: 0.38
A139: 0.26 | B139: 0.39 | C139: 0.28 | D139: 0.45 | E139: 0.38 | F139: 0.29 | G139: 0.41
A140: 0.34 | B140: 0.35 | C140: 0.31 | D140: 0.4 | E140: 0.41 | F140: 0.45 | G140: 0.44
A141: 0.33 | B141: 0.33 | C141: 0.4 | D141: 0.25 | E141: 0.36 | F141: 0.47 | G141: 0.4
A142: 0.30 | B142: 0.28 | C142: 0.26 | D142: 0.33 | E142: 0.41 | F142: 0.31 | G142: 0.38
A143: 0.28 | B143: 0.39 | C143: 0.47 | D143: 0.33 | E143: 0.51 | F143: 0.35 | G143: 0.41
A144: 0.38 | B144: 0.29 | C144: 0.37 | D144: 0.42 | E144: 0.18 | F144: 0.34 | G144: 0.46
A145: 0.35 | B145: 0.56 | C145: 0.33 | D145: 0.47 | E145: 0.36 | F145: 0.47 | G145: 0.36
A146: 0.42 | B146: 0.48 | C146: 0.37 | D146: 0.58 | E146: 0.43 | F146: 0.5 | G146: 0.43
A147: 0.28 | B147: 0.25 | C147: 0.3 | D147: 0.37 | E147: 0.26 | F147: 0.61 | G147: 0.39
A148: 0.31 | B148: 0.26 | C148: 0.55 | D148: 0.36 | E148: 0.42 | F148: 0.7 | G148: 0.47
A149: 0.39 | B149: 0.32 | C149: 0.37 | D149: 0.31 | E149: 0.3 | F149: 0.23 | G149: 0.39
A150: 0.29 | B150: 0.18 | C150: 0.37 | D150: 0.4 | E150: 0.5 | F150: 0.08 | G150: 0.4
A151: 0.43 | B151: 0.4 | C151: 0.41 | D151: 0.35 | E151: 0.39 | F151: 0.29 | G151: 0.3
A152: 0.22 | B152: 0.25 | C152: 0.44 | D152: 0.38 | E152: 0.32 | F152: 0.5 | G152: 0.43
A153: 0.42 | B153: 0.58 | C153: 0.44 | D153: 0.34 | E153: 0.58 | F153: 0.22 | G153: 0.39
A154: 0.29 | B154: 0.42 | C154: 0.5 | D154: 0.37 | E154: 0.36 | F154: 0.22 | G154: 0.3
A155: 0.33 | B155: 0.23 | C155: 0.4 | D155: 0.32 | E155: 0.32 | F155: 0.41 | G155: 0.39
A156: 0.29 | B156: 0.26 | C156: 0.35 | D156: 0.38 | E156: 0.2 | F156: 0.33 | G156: 0.29
A157: 0.25 | B157: 0.27 | C157: 0.43 | D157: 0.31 | E157: 0.48 | F157: 0.2 | G157: 0.77
A158: 0.37 | B158: 0.35 | C158: 0.49 | D158: 0.36 | E158: 0.34 | F158: 0.25 | G158: 0.51
A159: 0.33 | B159: 0.35 | C159: 0.39 | D159: 0.45 | E159: 0.35 | F159: 0.35 | G159: 0.4
A160: 0.47 | B160: 0.16 | C160: 0.55 | D160: 0.33 | E160: 0.31 | F160: 0.43 | G160: 0.6
A161: 0.29 | B161: 0.26 | C161: 0.36 | D161: 0.39 | E161: 0.29 | F161: 0.37 | G161: 0.58
A162: 0.29 | B162: 0.3 | C162: 0.41 | D162: 0.44 | E162: 0.35 | F162: 0.32 | G162: 0.53
A163: 0.36 | B163: 0.18 | C163: 0.31 | D163: 0.34 | E163: 0.22 | F163: 0.33 | G163: 0.61
A164: 0.36 | B164: 0.29 | C164: 0.3 | D164: 0.29 | E164: 0.33 | F164: 0.46 | G164: 0.51
A165: 0.21 | B165: 0.35 | C165: 0.39 | D165: 0.37 | E165: 0.45 | F165: 0.4 | G165: 0.45
A166: 0.26 | B166: 0.24 | C166: 0.4 | D166: 0.36 | E166: 0.47 | F166: 0.42 | G166: 0.63
A167: 0.21 | B167: 0.26 | C167: 0.35 | D167: 0.36 | E167: 0.38 | F167: 0.38 | G167: 0.47
A168: 0.39 | B168: 0.24 | C168: 0.37 | D168: 0.34 | E168: 0.39 | F168: 0.3 | G168: 0.5
A169: 0.32 | B169: 0.26 | C169: 0.38 | D169: 0.49 | E169: 0.34 | F169: 0.29 | G169: 0.94
A170: 0.32 | B170: 0.28 | C170: 0.46 | D170: 0.4 | E170: 0.13 | F170: 0.37 | G170: 0.72
A171: 0.40 | B171: 0.29 | C171: 0.39 | D171: 0.46 | E171: 0.26 | F171: 0.34 | G171: 0.8
A172: 0.30 | B172: 0.3 | C172: 0.37 | D172: 0.31 | E172: 0.5 | F172: 0.13 | G172: 0.61
A173: 0.34 | B173: 0.46 | C173: 0.49 | D173: 0.38 | E173: 0.31 | F173: 0.19 | G173: 0.73
A174: 0.26 | B174: 0.39 | C174: 0.53 | D174: 0.38 | E174: 0.19 | F174: 0.35 | G174: 0.45
A175: 0.37 | B175: 0.32 | C175: 0.42 | D175: 0.35 | E175: 0.26 | F175: 0.51 | G175: 0.61
A176: 0.36 | B176: 0.49 | C176: 0.42 | D176: 0.36 | E176: 0.47 | F176: 0.45 | G176: 0.57
A177: 0.33 | B177: 0.45 | C177: 0.27 | D177: 0.25 | E177: 0.33 | F177: 0.45 | G177: 0.76
A178: 0.34 | B178: 0.38 | C178: 0.32 | D178: 0.32 | E178: 0.44 | F178: 0.39 | G178: 0.71
A179: 0.33 | B179: 0.72 | C179: 0.4 | D179: 0.45 | E179: 0.31 | F179: 0.26 | G179: 0.66
A180: 0.16 | B180: 0.31 | C180: 0.3 | D180: 0.33 | E180: 0.47 | F180: 0.44 | G180: 0.61
A181: 0.21 | B181: 0.27 | C181: 0.47 | D181: 0.41 | E181: 0.29 | F181: 0.47 | G181: 0.63
A182: 0.26 | B182: 0.44 | C182: 0.3 | D182: 0.27 | E182: 0.38 | F182: 0.51 | G182: 0.87
A183: 0.28 | B183: 0.3 | C183: 0.4 | D183: 0.27 | E183: 0.57 | F183: 0.43 | G183: 0.66
A184: 0.24 | B184: 0.33 | C184: 0.41 | D184: 0.34 | E184: 0.29 | F184: 0.51 | G184: 0.59
A185: 0.46 | B185: 0.23 | C185: 0.2 | D185: 0.46 | E185: 0.23 | F185: 0.59 | G185: 0.75
A186: 0.41 | B186: 0.24 | C186: 0.44 | D186: 0.37 | E186: 0.57 | F186: 0.45 | G186: 0.83
A187: 0.40 | B187: 0.36 | C187: 0.57 | D187: 0.29 | E187: 0.6 | F187: 0.44 | G187: 0.48
A188: 0.42 | B188: 0.28 | C188: 0.43 | D188: 0.37 | E188: 0.38 | F188: 0.44 | G188: 0.66
A189: 0.28 | B189: 0.34 | C189: 0.42 | D189: 0.37 | E189: 0.57 | F189: 0.47 | G189: 0.94
A190: 0.33 | B190: 0.37 | C190: 0.42 | D190: 0.22 | E190: 0.37 | F190: 0.56 | G190: 0.58
A191: 0.32 | B191: 0.27 | C191: 0.42 | D191: 0.58 | E191: 0.41 | F191: 0.53 | G191: 0.59
A192: 0.28 | B192: 0.28 | C192: 0.44 | D192: 0.28 | E192: 0.21 | F192: 0.58 | G192: 0.62
A193: 0.46 | B193: 0.37 | C193: 0.37 | D193: 0.33 | E193: 0.28 | F193: 0.32 | G193: 0.72
A194: 0.30 | B194: 0.22 | C194: 0.47 | D194: 0.46 | E194: 0.21 | F194: 0.5 | G194: 0.71
A195: 0.20 | B195: 0.31 | C195: 0.26 | D195: 0.29 | E195: 0.46 | F195: 0.39 | G195: 0.53
A196: 0.25 | B196: 0.26 | C196: 0.43 | D196: 0.33 | E196: 0.16 | F196: 0.4 | G196: 0.65
A197: 0.32 | B197: 0.24 | C197: 0.4 | D197: 0.47 | E197: 0.4 | F197: 0.44 | G197: 0.32
A198: 0.25 | B198: 0.38 | C198: 0.35 | D198: 0.24 | E198: 0.45 | F198: 0.41 | G198: 0.41
A199: 0.21 | B199: 0.28 | C199: 0.32 | D199: 0.44 | E199: 0.3 | F199: 0.28 | G199: 0.61
A200: 0.35 | B200: 0.22 | C200: 0.27 | D200: 0.28 | E200: 0.33 | F200: 0.34 | G200: 0.5
... 8963 more rows

Sheet TUB DC
A1: Tubulin DC/Total | B1: Bull 1 | C1: Bull 2 | D1: Bull 3 | E1: Bull 4 | F1: Bull 5 | G1: Bull 6
A2: 0.53 | B2: 0.59 | C2: 0.6 | D2: 0.41 | E2: 0.38 | F2: 0 | G2: 0.44 | I2: Bins | J2: 0.05 | K2: 0.15 | L2: 0.25 | M2: 0.35 | N2: 0.45 | O2: 0.55 | P2: 0.65 | Q2: 0.75 | R2: 0.85 | S2: 0.95
A3: 0.58 | B3: 0.43 | C3: 0.49 | D3: 0.33 | E3: 0.46 | F3: 0.73 | G3: 0.32 | J3: 0 | K3: .1-.2 | L3: .2-.3 | M3: .3-.4 | N3: .4-.5 | O3: .5-.6 | P3: .6-.7 | Q3: .7-.8 | R3: .8-.9 | S3: .9-1
A4: 0.61 | B4: 0.52 | C4: 0.67 | D4: 0.49 | E4: 0.54 | F4: 0 | G4: 0.19 | J4: =(COUNTIFS(A:A, "<=0.1")) -> 99 | K4: =COUNTIFS(A:A,">0.1",A:A,"<=0.2") -> 225 | L4: =COUNTIFS(A:A,">0.2",A:A,"<=0.3") -> 917 | M4: =COUNTIFS(A:A,">0.3",A:A,"<=0.4") -> 3777 | N4: =COUNTIFS(A:A,">0.4",A:A,"<=0.5") -> 6247 | O4: =COUNTIFS(A:A,">0.5",A:A,"<=0.6") -> 3698 | P4: =COUNTIFS(A:A,">0.6",A:A,"<=0.7") -> 1131 | Q4: =COUNTIFS(A:A,">0.7",A:A,"<=0.8") -> 182 | R4: =COUNTIFS(A:A,">0.8",A:A,"<=0.9") -> 42 | S4: =COUNTIFS(A:A,">0.9",A:A,"<=1") -> 22 | T4: =SUM(J4:S4) -> 16340
A5: 0.56 | B5: 0.49 | C5: 0.8 | D5: 0.44 | E5: 0.38 | F5: 0 | G5: 0.5 | J5: =J4/$T$4 -> 1% | K5: =K4/$T$4 -> 1% | L5: 6% | M5: 23% | N5: 38% | O5: 23% | P5: 7% | Q5: 1% | R5: 0% | S5: 0%
A6: 0.62 | B6: 0.59 | C6: 0.68 | D6: 0.58 | E6: 0.45 | F6: 1 | G6: 0.5
A7: 0.64 | B7: 0.55 | C7: 0.43 | D7: 0.36 | E7: 0.25 | F7: 0.86 | G7: 0.52
A8: 0.57 | B8: 0.49 | C8: 0.51 | D8: 0.59 | E8: 0.45 | F8: 0.4 | G8: 0.32 | I8: Bull 1 | J8: 0.05 | K8: 0.15 | L8: 0.25 | M8: 0.35 | N8: 0.45 | O8: 0.55 | P8: 0.65 | Q8: 0.75 | R8: 0.85 | S8: 0.95
A9: 0.49 | B9: 0.53 | C9: 0.53 | D9: 0.45 | E9: 0.36 | F9: 0.8 | G9: 0.49 | J9: =(COUNTIFS(B:B, "<=0.1")) -> 0 | K9: =COUNTIFS(B:B,">0.1",B:B,"<=0.2") -> 3 | L9: =COUNTIFS(B:B,">0.2",B:B,"<=0.3") -> 24 | M9: =COUNTIFS(B:B,">0.3",B:B,"<=0.4") -> 43 | N9: =COUNTIFS(B:B,">0.4",B:B,"<=0.5") -> 184 | O9: =COUNTIFS(B:B,">0.5",B:B,"<=0.6") -> 381 | P9: =COUNTIFS(B:B,">0.6",B:B,"<=0.7") -> 198 | Q9: =COUNTIFS(B:B,">0.7",B:B,"<=0.8") -> 41 | R9: =COUNTIFS(B:B,">0.8",B:B,"<=0.9") -> 2 | S9: =COUNTIFS(B:B,">0.9",B:B,"<=1") -> 0 | T9: =SUM(J9:S9) -> 876
A10: 0.55 | B10: 0.49 | C10: 0.5 | D10: 0.42 | E10: 0.29 | F10: 0.29 | G10: 0.19 | J10: =J9/$T$9 -> 0% | K10: =K9/$T$9 -> 0% | L10: 3% | M10: 5% | N10: 21% | O10: 43% | P10: 23% | Q10: 5% | R10: 0% | S10: 0%
A11: 0.65 | B11: 0.59 | C11: 0.46 | D11: 0.41 | E11: 0.56 | F11: 0.75 | G11: 0.51
A12: 0.63 | B12: 0.54 | C12: 0.62 | D12: 0.65 | E12: 0.37 | F12: 0 | G12: 0.51
A13: 0.56 | B13: 0.42 | C13: 0.68 | D13: 0.35 | E13: 0.37 | F13: 0 | G13: 0.18 | I13: Bull 2 | J13: 0.05 | K13: 0.15 | L13: 0.25 | M13: 0.35 | N13: 0.45 | O13: 0.55 | P13: 0.65 | Q13: 0.75 | R13: 0.85 | S13: 0.95
A14: 0.54 | B14: 0.54 | C14: 0.63 | D14: 0.48 | E14: 0.46 | F14: 0 | G14: 0.36 | J14: =(COUNTIFS(C:C, "<=0.1")) -> 0 | K14: =COUNTIFS(C:C,">0.1",C:C,"<=0.2") -> 1 | L14: =COUNTIFS(C:C,">0.2",C:C,"<=0.3") -> 5 | M14: =COUNTIFS(C:C,">0.3",C:C,"<=0.4") -> 26 | N14: =COUNTIFS(C:C,">0.4",C:C,"<=0.5") -> 137 | O14: =COUNTIFS(C:C,">0.5",C:C,"<=0.6") -> 282 | P14: =COUNTIFS(C:C,">0.6",C:C,"<=0.7") -> 151 | Q14: =COUNTIFS(C:C,">0.7",C:C,"<=0.8") -> 21 | R14: =COUNTIFS(C:C,">0.8",C:C,"<=0.9") -> 1 | S14: =COUNTIFS(C:C,">0.9",C:C,"<=1") -> 0 | T14: =SUM(J14:S14) -> 624
A15: 0.59 | B15: 0.6 | C15: 0.63 | D15: 0.4 | E15: 0.51 | F15: 0.5 | G15: 0.4 | J15: =J14/$T$14 -> 0% | K15: =K14/$T$14 -> 0% | L15: 1% | M15: 4% | N15: 22% | O15: 45% | P15: 24% | Q15: 3% | R15: 0% | S15: 0%
A16: 0.54 | B16: 0.52 | C16: 0.72 | D16: 0.42 | E16: 0.21 | F16: 0 | G16: 0.2
A17: 0.55 | B17: 0.57 | C17: 0.62 | D17: 0.4 | E17: 0.45 | F17: 1 | G17: 0.31
A18: 0.54 | B18: 0.51 | C18: 0.63 | D18: 0.41 | E18: 0.4 | F18: 0.75 | G18: 0.38 | I18: Bull 3 | J18: 0.05 | K18: 0.15 | L18: 0.25 | M18: 0.35 | N18: 0.45 | O18: 0.55 | P18: 0.65 | Q18: 0.75 | R18: 0.85 | S18: 0.95
A19: 0.60 | B19: 0.66 | C19: 0.7 | D19: 0.31 | E19: 0.56 | F19: 0 | G19: 0.34 | J19: =(COUNTIFS(D:D, "<=0.1")) -> 4 | K19: =COUNTIFS(D:D,">0.1",D:D,"<=0.2") -> 12 | L19: =COUNTIFS(D:D,">0.2",D:D,"<=0.3") -> 48 | M19: =COUNTIFS(D:D,">0.3",D:D,"<=0.4") -> 129 | N19: =COUNTIFS(D:D,">0.4",D:D,"<=0.5") -> 217 | O19: =COUNTIFS(D:D,">0.5",D:D,"<=0.6") -> 129 | P19: =COUNTIFS(D:D,">0.6",D:D,"<=0.7") -> 34 | Q19: =COUNTIFS(D:D,">0.7",D:D,"<=0.8") -> 10 | R19: =COUNTIFS(D:D,">0.8",D:D,"<=0.9") -> 5 | S19: =COUNTIFS(D:D,">0.9",D:D,"<=1") -> 0 | T19: =SUM(J19:S19) -> 588
A20: 0.66 | B20: 0.58 | C20: 0.5 | D20: 0.46 | E20: 0.04 | F20: 0 | G20: 0.36 | J20: =J19/$T$19 -> 1% | K20: =K19/$T$19 -> 2% | L20: 8% | M20: 22% | N20: 37% | O20: 22% | P20: 6% | Q20: 2% | R20: 1% | S20: 0%
A21: 0.57 | B21: 0.66 | C21: 0.39 | D21: 0.54 | E21: 0.19 | F21: 0.35 | G21: 0.56
A22: 0.54 | B22: 0.54 | C22: 0.39 | D22: 0.35 | E22: 0.39 | F22: 0.51 | G22: 0.46
A23: 0.56 | B23: 0.54 | C23: 0.58 | D23: 0.46 | E23: 0.38 | F23: 0.5 | G23: 0.34 | I23: Bull 4 | J23: 0.05 | K23: 0.15 | L23: 0.25 | M23: 0.35 | N23: 0.45 | O23: 0.55 | P23: 0.65 | Q23: 0.75 | R23: 0.85 | S23: 0.95
A24: 0.48 | B24: 0.53 | C24: 0.58 | D24: 0.55 | E24: 0.31 | F24: 0.47 | G24: 0.44 | J24: =(COUNTIFS(E:E, "<=0.1")) -> 5 | K24: =COUNTIFS(E:E,">0.1",E:E,"<=0.2") -> 12 | L24: =COUNTIFS(E:E,">0.2",E:E,"<=0.3") -> 49 | M24: =COUNTIFS(E:E,">0.3",E:E,"<=0.4") -> 96 | N24: =COUNTIFS(E:E,">0.4",E:E,"<=0.5") -> 92 | O24: =COUNTIFS(E:E,">0.5",E:E,"<=0.6") -> 45 | P24: =COUNTIFS(E:E,">0.6",E:E,"<=0.7") -> 5 | Q24: =COUNTIFS(E:E,">0.7",E:E,"<=0.8") -> 2 | R24: =COUNTIFS(E:E,">0.8",E:E,"<=0.9") -> 0 | S24: =COUNTIFS(E:E,">0.9",E:E,"<=1") -> 1 | T24: =SUM(J24:S24) -> 307
A25: 0.49 | B25: 0.58 | C25: 0.49 | D25: 0.52 | E25: 0.35 | F25: 0.44 | G25: 0.31 | J25: =J24/$T$24 -> 2% | K25: =K24/$T$24 -> 4% | L25: =L24/$T$24 -> 16% | M25: 31% | N25: 30% | O25: 15% | P25: 2% | Q25: 1% | R25: 0% | S25: 0%
A26: 0.53 | B26: 0.52 | C26: 0.61 | D26: 0.49 | E26: 0.41 | F26: 0.41 | G26: 0.38
A27: 0.61 | B27: 0.5 | C27: 0.61 | D27: 0.35 | E27: 0.35 | F27: 0.34 | G27: 0.36
A28: 0.58 | B28: 0.52 | C28: 0.6 | D28: 0.5 | E28: 0.34 | F28: 0.39 | G28: 0.43 | I28: Bull 5 | J28: 0.05 | K28: 0.15 | L28: 0.25 | M28: 0.35 | N28: 0.45 | O28: 0.55 | P28: 0.65 | Q28: 0.75 | R28: 0.85 | S28: 0.95
A29: 0.56 | B29: 0.56 | C29: 0.67 | D29: 0.54 | E29: 0.3 | F29: 0.44 | G29: 0.4 | J29: =(COUNTIFS(F:F, "<=0.1")) -> 17 | K29: =COUNTIFS(F:F,">0.1",F:F,"<=0.2") -> 14 | L29: =COUNTIFS(F:F,">0.2",F:F,"<=0.3") -> 42 | M29: =COUNTIFS(F:F,">0.3",F:F,"<=0.4") -> 85 | N29: =COUNTIFS(F:F,">0.4",F:F,"<=0.5") -> 122 | O29: =COUNTIFS(F:F,">0.5",F:F,"<=0.6") -> 38 | P29: =COUNTIFS(F:F,">0.6",F:F,"<=0.7") -> 13 | Q29: =COUNTIFS(F:F,">0.7",F:F,"<=0.8") -> 5 | R29: =COUNTIFS(F:F,">0.8",F:F,"<=0.9") -> 1 | S29: =COUNTIFS(F:F,">0.9",F:F,"<=1") -> 3 | T29: =SUM(J29:S29) -> 340
A30: 0.64 | B30: 0.49 | C30: 0.72 | D30: 0.39 | E30: 0.38 | F30: 0.46 | G30: 0.47 | J30: =J29/$T$29 -> 5% | K30: =K29/$T$29 -> 4% | L30: 12% | M30: 25% | N30: 36% | O30: 11% | P30: 4% | Q30: 1% | R30: 0% | S30: 1%
A31: 0.50 | B31: 0.63 | C31: 0.63 | D31: 0.55 | E31: 0.53 | F31: 0.39 | G31: 0.35
A32: 0.56 | B32: 0.33 | C32: 0.54 | D32: 0.41 | E32: 0.34 | F32: 0.46 | G32: 0.32
A33: 0.54 | B33: 0.53 | C33: 0.55 | D33: 0.43 | E33: 0.5 | F33: 0.53 | G33: 0.37 | I33: Bull 6 | J33: 0.05 | K33: 0.15 | L33: 0.25 | M33: 0.35 | N33: 0.45 | O33: 0.55 | P33: 0.65 | Q33: 0.75 | R33: 0.85 | S33: 0.95
A34: 0.56 | B34: 0.54 | C34: 0.46 | D34: 0.54 | E34: 0.26 | F34: 0.49 | G34: 0.34 | J34: =(COUNTIFS(G:G, "<=0.1")) -> 7 | K34: =COUNTIFS(G:G,">0.1",G:G,"<=0.2") -> 24 | L34: =COUNTIFS(G:G,">0.2",G:G,"<=0.3") -> 43 | M34: =COUNTIFS(G:G,">0.3",G:G,"<=0.4") -> 109 | N34: =COUNTIFS(G:G,">0.4",G:G,"<=0.5") -> 167 | O34: =COUNTIFS(G:G,">0.5",G:G,"<=0.6") -> 69 | P34: =COUNTIFS(G:G,">0.6",G:G,"<=0.7") -> 6 | Q34: =COUNTIFS(G:G,">0.7",G:G,"<=0.8") -> 2 | R34: =COUNTIFS(G:G,">0.8",G:G,"<=0.9") -> 2 | S34: =COUNTIFS(G:G,">0.9",G:G,"<=1") -> 0 | T34: =SUM(J34:S34) -> 429
A35: 0.70 | B35: 0.53 | C35: 0.55 | D35: 0.5 | E35: 0.18 | F35: 0.37 | G35: 0.39 | J35: =J34/$T$34 -> 2% | K35: =K34/$T$34 -> 6% | L35: 10% | M35: 25% | N35: 39% | O35: 16% | P35: 1% | Q35: 0% | R35: 0% | S35: 0%
A36: 0.50 | B36: 0.65 | C36: 0.6 | D36: 0.47 | E36: 0.35 | F36: 0.45 | G36: 0.35
A37: 0.62 | B37: 0.56 | C37: 0.6 | D37: 0.49 | E37: 0.56 | F37: 0.46 | G37: 0.4
A38: 0.51 | B38: 0.49 | C38: 0.6 | D38: 0.46 | E38: 0.51 | F38: 0.55 | G38: 0.28
A39: 0.55 | B39: 0.37 | C39: 0.55 | D39: 0.47 | E39: 0.31 | F39: 0.38 | G39: 0.36
A40: 0.55 | B40: 0.48 | C40: 0.62 | D40: 0.47 | E40: 0.56 | F40: 0.4 | G40: 0.34
A41: 0.61 | B41: 0.46 | C41: 0.58 | D41: 0.41 | E41: 0.43 | F41: 0.37 | G41: 0.39
A42: 0.55 | B42: 0.62 | C42: 0.62 | D42: 0.49 | E42: 0.46 | F42: 0.41 | G42: 0.38
A43: 0.54 | B43: 0.42 | C43: 0.52 | D43: 0.37 | E43: 0.28 | F43: 0.48 | G43: 0.29
A44: 0.55 | B44: 0.46 | C44: 0.53 | D44: 0.43 | E44: 0.43 | F44: 0.44 | G44: 0.5
A45: 0.62 | B45: 0.59 | C45: 0.53 | D45: 0.3 | E45: 0.41 | F45: 0.56 | G45: 0.44
A46: 0.43 | B46: 0.43 | C46: 0.55 | D46: 0.42 | E46: 0.41 | F46: 0.34 | G46: 0.24
A47: 0.47 | B47: 0.52 | C47: 0.52 | D47: 0.44 | E47: 0.43 | F47: 0.5 | G47: 0.39
A48: 0.47 | B48: 0.49 | C48: 0.42 | D48: 0.33 | E48: 0.37 | F48: 0.68 | G48: 0.29
A49: 0.73 | B49: 0.59 | C49: 0.62 | D49: 0.41 | E49: 0.3 | F49: 0.38 | G49: 0.52
A50: 0.60 | B50: 0.55 | C50: 0.5 | D50: 0.49 | E50: 0.08 | F50: 0.48 | G50: 0.12
A51: 0.52 | B51: 0.49 | C51: 0.59 | D51: 0.42 | E51: 0.34 | F51: 0.4 | G51: 0.4
A52: 0.53 | B52: 0.53 | C52: 0.6 | D52: 0.41 | E52: 0.36 | F52: 0.26 | G52: 0.42
A53: 0.55 | B53: 0.49 | C53: 0.58 | D53: 0.31 | E53: 0.51 | F53: 0.45 | G53: 0.28
A54: 0.54 | B54: 0.59 | C54: 0.64 | D54: 0.43 | E54: 0.49 | F54: 0.44 | G54: 0.37
A55: 0.59 | B55: 0.54 | C55: 0.53 | D55: 0.29 | E55: 0.28 | F55: 0.39 | G55: 0.4
A56: 0.57 | B56: 0.42 | C56: 0.58 | D56: 0.24 | E56: 0.38 | F56: 0.45 | G56: 0.28
A57: 0.54 | B57: 0.54 | C57: 0.51 | D57: 0.23 | E57: 0.47 | F57: 0.48 | G57: 0.48
A58: 0.65 | B58: 0.6 | C58: 0.49 | D58: 0.43 | E58: 0.43 | F58: 0.29 | G58: 0.38
A59: 0.58 | B59: 0.52 | C59: 0.58 | D59: 0.52 | E59: 0.41 | F59: 0.48 | G59: 0.38
A60: 0.66 | B60: 0.57 | C60: 0.55 | D60: 0.49 | E60: 0.41 | F60: 0.43 | G60: 0.35
A61: 0.54 | B61: 0.51 | C61: 0.66 | D61: 0.35 | E61: 0.4 | F61: 0.49 | G61: 0.26
A62: 0.61 | B62: 0.66 | C62: 0.43 | D62: 0.69 | E62: 0.39 | F62: 0.39 | G62: 0.43
A63: 0.69 | B63: 0.58 | C63: 0.53 | D63: 0.45 | E63: 0.38 | F63: 0.38 | G63: 0.49
A64: 0.52 | B64: 0.66 | C64: 0.51 | D64: 0.35 | E64: 0.32 | F64: 0.37 | G64: 0.43
A65: 0.60 | B65: 0.54 | C65: 0.61 | D65: 0.43 | E65: 0.48 | F65: 0.31 | G65: 0.42
A66: 0.59 | B66: 0.54 | C66: 0.61 | D66: 0.54 | E66: 0.42 | F66: 0.26 | G66: 0.57
A67: 0.61 | B67: 0.53 | C67: 0.66 | D67: 0.41 | E67: 0.29 | F67: 0.29 | G67: 0.4
A68: 0.65 | B68: 0.58 | C68: 0.46 | D68: 0.5 | E68: 0.55 | F68: 0.53 | G68: 0.42
A69: 0.59 | B69: 0.52 | C69: 0.48 | D69: 0.54 | E69: 0.35 | F69: 0.42 | G69: 0.45
A70: 0.63 | B70: 0.5 | C70: 0.59 | D70: 0.5 | E70: 0.59 | F70: 0.54 | G70: 0.43
A71: 0.55 | B71: 0.52 | C71: 0.57 | D71: 0.36 | E71: 0.21 | F71: 0.3 | G71: 0.36
A72: 0.52 | B72: 0.56 | C72: 0.65 | D72: 0.37 | E72: 0.22 | F72: 0.44 | G72: 0.38
A73: 0.78 | B73: 0.49 | C73: 0.6 | D73: 0.54 | E73: 0.44 | F73: 0.39 | G73: 0.44
A74: 0.57 | B74: 0.63 | C74: 0.48 | D74: 0.26 | E74: 0.5 | F74: 0.42 | G74: 0.38
A75: 0.52 | B75: 0.33 | C75: 0.61 | D75: 0.43 | E75: 0.47 | F75: 0.37 | G75: 0.52
A76: 0.58 | B76: 0.53 | C76: 0.36 | D76: 0.5 | E76: 0.26 | F76: 0.37 | G76: 0.48
A77: 0.47 | B77: 0.54 | C77: 0.52 | D77: 0.51 | E77: 0.4 | F77: 0.46 | G77: 0.37
A78: 0.53 | B78: 0.53 | C78: 0.62 | D78: 0.5 | E78: 0.39 | F78: 0.49 | G78: 0.51
A79: 0.53 | B79: 0.65 | C79: 0.42 | D79: 0.43 | E79: 0.39 | F79: 0.53 | G79: 0.44
A80: 0.54 | B80: 0.56 | C80: 0.5 | D80: 0.45 | E80: 0.33 | F80: 0.57 | G80: 0.43
A81: 0.52 | B81: 0.49 | C81: 0.55 | D81: 0.44 | E81: 0.34 | F81: 0.36 | G81: 0.44
A82: 0.67 | B82: 0.37 | C82: 0.45 | D82: 0.54 | E82: 0.28 | F82: 0.71 | G82: 0.49
A83: 0.74 | B83: 0.48 | C83: 0.55 | D83: 0.57 | E83: 0.54 | F83: 0.55 | G83: 0.43
A84: 0.65 | B84: 0.46 | C84: 0.66 | D84: 0.49 | E84: 0.48 | F84: 0.41 | G84: 0.42
A85: 0.50 | B85: 0.62 | C85: 0.71 | D85: 0.64 | E85: 0.51 | F85: 0.48 | G85: 0.38
A86: 0.63 | B86: 0.42 | C86: 0.43 | D86: 0.49 | E86: 0.31 | F86: 0.29 | G86: 0.41
A87: 0.62 | B87: 0.46 | C87: 0.61 | D87: 0.34 | E87: 0.64 | F87: 0.46 | G87: 0.43
A88: 0.63 | B88: 0.55 | C88: 0.7 | D88: 0.48 | E88: 0.43 | F88: 0.49 | G88: 0.51
A89: 0.61 | B89: 0.56 | C89: 0.36 | D89: 0.46 | E89: 0.53 | F89: 0.56 | G89: 0.42
A90: 0.59 | B90: 0.51 | C90: 0.63 | D90: 0.48 | E90: 0.31 | F90: 0.16 | G90: 0.41
A91: 0.55 | B91: 0.55 | C91: 0.53 | D91: 0.3 | E91: 0.31 | F91: 0.4 | G91: 0.51
A92: 0.65 | B92: 0.56 | C92: 0.62 | D92: 0.57 | E92: 0.41 | F92: 0.62 | G92: 0.41
A93: 0.61 | B93: 0.53 | C93: 0.47 | D93: 0.61 | E93: 0.43 | F93: 0.61 | G93: 0.43
A94: 0.74 | B94: 0.58 | C94: 0.54 | D94: 0.4 | E94: 0.35 | F94: 0.41 | G94: 0.46
A95: 0.61 | B95: 0.49 | C95: 0.56 | D95: 0.61 | E95: 0.16 | F95: 0.21 | G95: 0.47
A96: 0.56 | B96: 0.5 | C96: 0.7 | D96: 0.48 | E96: 0.36 | F96: 0.65 | G96: 0.46
A97: 0.58 | B97: 0.52 | C97: 0.44 | D97: 0.36 | E97: 0.45 | F97: 0.45 | G97: 0.48
A98: 0.67 | B98: 0.5 | C98: 0.53 | D98: 0.28 | E98: 0.52 | F98: 0.31 | G98: 0.35
A99: 0.63 | B99: 0.48 | C99: 0.55 | D99: 0.48 | E99: 0.47 | F99: 0.37 | G99: 0.42
A100: 0.58 | B100: 0.47 | C100: 0.54 | D100: 0.4 | E100: 0.52 | F100: 0.18 | G100: 0.42
A101: 0.53 | B101: 0.51 | C101: 0.65 | D101: 0.51 | E101: 0.57 | F101: 0.42 | G101: 0.43
A102: 0.66 | B102: 0.52 | C102: 0.49 | D102: 0.48 | E102: 0.12 | F102: 0.52 | G102: 0.44
A103: 0.67 | B103: 0.45 | C103: 0.61 | D103: 0.52 | E103: 0.39 | F103: 0.16 | G103: 0.43
A104: 0.64 | B104: 0.48 | C104: 0.52 | D104: 0.3 | E104: 0.3 | F104: 0.31 | G104: 0.54
A105: 0.57 | B105: 0.62 | C105: 0.56 | D105: 0.26 | E105: 0.41 | F105: 0.48 | G105: 0.56
A106: 0.68 | B106: 0.56 | C106: 0.63 | D106: 0.71 | E106: 0.51 | F106: 0.49 | G106: 0.41
A107: 0.61 | B107: 0.51 | C107: 0.58 | D107: 0.32 | E107: 0.33 | F107: 0.23 | G107: 0.51
A108: 0.68 | B108: 0.68 | C108: 0.44 | D108: 0.35 | E108: 0.5 | F108: 0.46 | G108: 0.4
A109: 0.54 | B109: 0.52 | C109: 0.6 | D109: 0.49 | E109: 0.43 | F109: 0.57 | G109: 0.52
A110: 0.58 | B110: 0.53 | C110: 0.42 | D110: 0.27 | E110: 0.4 | F110: 0.57 | G110: 0.52
A111: 0.68 | B111: 0.56 | C111: 0.45 | D111: 0.42 | E111: 0.47 | F111: 0.42 | G111: 0.47
A112: 0.51 | B112: 0.55 | C112: 0.53 | D112: 0.47 | E112: 0.47 | F112: 0.36 | G112: 0.41
A113: 0.54 | B113: 0.56 | C113: 0.6 | D113: 0.5 | E113: 0.31 | F113: 0.48 | G113: 0.51
A114: 0.59 | B114: 0.6 | C114: 0.54 | D114: 0.37 | E114: 0.5 | F114: 0.35 | G114: 0.36
A115: 0.49 | B115: 0.38 | C115: 0.56 | D115: 0.37 | E115: 0.41 | F115: 0.52 | G115: 0.42
A116: 0.57 | B116: 0.57 | C116: 0.57 | D116: 0.48 | E116: 0.24 | F116: 0.4 | G116: 0.43
A117: 0.65 | B117: 0.34 | C117: 0.44 | D117: 0.47 | E117: 0.48 | F117: 0.4 | G117: 0.45
A118: 0.64 | B118: 0.41 | C118: 0.65 | D118: 0.42 | E118: 0.38 | F118: 0.42 | G118: 0.4
A119: 0.61 | B119: 0.54 | C119: 0.7 | D119: 0.47 | E119: 0.57 | F119: 0.44 | G119: 0.43
A120: 0.65 | B120: 0.37 | C120: 0.82 | D120: 0.4 | E120: 0.53 | F120: 0.36 | G120: 0.46
A121: 0.65 | B121: 0.51 | C121: 0.52 | D121: 0.37 | E121: 0.09 | F121: 0.28 | G121: 0.49
A122: 0.66 | B122: 0.5 | C122: 0.57 | D122: 0.44 | E122: 0.51 | F122: 0.47 | G122: 0.34
A123: 0.57 | B123: 0.63 | C123: 0.61 | D123: 0.4 | E123: 0.23 | F123: 0.55 | G123: 0.46
A124: 0.63 | B124: 0.6 | C124: 0.45 | D124: 0.46 | E124: 0.46 | F124: 0.53 | G124: 0.39
A125: 0.69 | B125: 0.6 | C125: 0.58 | D125: 0.41 | E125: 0.3 | F125: 0.45 | G125: 0.44
A126: 0.59 | B126: 0.59 | C126: 0.51 | D126: 0.58 | E126: 0.5 | F126: 0.6 | G126: 0.41
A127: 0.59 | B127: 0.49 | C127: 0.46 | D127: 0.43 | E127: 0.31 | F127: 0.45 | G127: 0.37
A128: 0.60 | B128: 0.44 | C128: 0.44 | D128: 0.35 | E128: 0.5 | F128: 0.45 | G128: 0.49
A129: 0.63 | B129: 0.44 | C129: 0.58 | D129: 0.39 | E129: 0.43 | F129: 0.48 | G129: 0.43
A130: 0.62 | B130: 0.57 | C130: 0.52 | D130: 0.38 | E130: 0.33 | F130: 0.35 | G130: 0.47
A131: 0.50 | B131: 0.5 | C131: 0.49 | D131: 0.43 | E131: 0.38 | F131: 0.48 | G131: 0.49
A132: 0.72 | B132: 0.6 | C132: 0.55 | D132: 0.48 | E132: 0.52 | F132: 0.42 | G132: 0.36
A133: 0.51 | B133: 0.7 | C133: 0.47 | D133: 0.43 | E133: 0.5 | F133: 0.52 | G133: 0.33
A134: 0.66 | B134: 0.54 | C134: 0.42 | D134: 0.2 | E134: 0.3 | F134: 0.26 | G134: 0.38
A135: 0.69 | B135: 0.65 | C135: 0.79 | D135: 0.4 | E135: 0.56 | F135: 0.5 | G135: 0.47
A136: 0.61 | B136: 0.57 | C136: 0.68 | D136: 0.56 | E136: 0.48 | F136: 0.29 | G136: 0.46
A137: 0.68 | B137: 0.6 | C137: 0.58 | D137: 0.44 | E137: 0.47 | F137: 0.23 | G137: 0.44
A138: 0.56 | B138: 0.48 | C138: 0.72 | D138: 0.29 | E138: 0.53 | F138: 0.47 | G138: 0.43
A139: 0.68 | B139: 0.56 | C139: 0.64 | D139: 0.37 | E139: 0.35 | F139: 0.52 | G139: 0.43
A140: 0.61 | B140: 0.55 | C140: 0.66 | D140: 0.47 | E140: 0.42 | F140: 0.51 | G140: 0.46
A141: 0.57 | B141: 0.51 | C141: 0.54 | D141: 0.18 | E141: 0.59 | F141: 0.33 | G141: 0.47
A142: 0.63 | B142: 0.51 | C142: 0.63 | D142: 0.51 | E142: 0.52 | F142: 0.36 | G142: 0.45
A143: 0.66 | B143: 0.57 | C143: 0.49 | D143: 0.59 | E143: 0.32 | F143: 0.45 | G143: 0.46
A144: 0.57 | B144: 0.61 | C144: 0.61 | D144: 0.52 | E144: 0.39 | F144: 0.49 | G144: 0.42
A145: 0.61 | B145: 0.41 | C145: 0.53 | D145: 0.37 | E145: 0.44 | F145: 0.35 | G145: 0.47
A146: 0.53 | B146: 0.49 | C146: 0.54 | D146: 0.35 | E146: 0.43 | F146: 0.42 | G146: 0.45
A147: 0.60 | B147: 0.66 | C147: 0.65 | D147: 0.55 | E147: 0.46 | F147: 0.15 | G147: 0.4
A148: 0.65 | B148: 0.6 | C148: 0.45 | D148: 0.45 | E148: 0.44 | F148: 0.27 | G148: 0.45
A149: 0.59 | B149: 0.52 | C149: 0.56 | D149: 0.36 | E149: 0.53 | F149: 0.69 | G149: 0.46
A150: 0.66 | B150: 0.37 | C150: 0.53 | D150: 0.41 | E150: 0.31 | F150: 0.27 | G150: 0.4
A151: 0.52 | B151: 0.52 | C151: 0.57 | D151: 0.56 | E151: 0.26 | F151: 0.37 | G151: 0.58
A152: 0.61 | B152: 0.5 | C152: 0.55 | D152: 0.53 | E152: 0.54 | F152: 0.42 | G152: 0.42
A153: 0.47 | B153: 0.22 | C153: 0.54 | D153: 0.49 | E153: 0.32 | F153: 0.38 | G153: 0.52
A154: 0.58 | B154: 0.52 | C154: 0.47 | D154: 0.46 | E154: 0.57 | F154: 0.3 | G154: 0.53
A155: 0.59 | B155: 0.45 | C155: 0.58 | D155: 0.48 | E155: 0.59 | F155: 0.46 | G155: 0.48
A156: 0.48 | B156: 0.56 | C156: 0.62 | D156: 0.45 | E156: 0.67 | F156: 0.49 | G156: 0.53
A157: 0.69 | B157: 0.64 | C157: 0.56 | D157: 0.56 | E157: 0.43 | F157: 0.38 | G157: 0.12
A158: 0.57 | B158: 0.58 | C158: 0.48 | D158: 0.46 | E158: 0.55 | F158: 0.64 | G158: 0.44
A159: 0.60 | B159: 0.61 | C159: 0.42 | D159: 0.43 | E159: 0.51 | F159: 0.36 | G159: 0.34
A160: 0.51 | B160: 0.56 | C160: 0.43 | D160: 0.37 | E160: 0.28 | F160: 0.46 | G160: 0.3
A161: 0.62 | B161: 0.57 | C161: 0.61 | D161: 0.5 | E161: 0.39 | F161: 0.46 | G161: 0.36
A162: 0.64 | B162: 0.5 | C162: 0.56 | D162: 0.43 | E162: 0.51 | F162: 0.48 | G162: 0.34
A163: 0.59 | B163: 0.49 | C163: 0.59 | D163: 0.63 | E163: 0.31 | F163: 0.44 | G163: 0.3
A164: 0.60 | B164: 0.56 | C164: 0.7 | D164: 0.39 | E164: 0.6 | F164: 0.47 | G164: 0.43
A165: 0.64 | B165: 0.49 | C165: 0.6 | D165: 0.48 | E165: 0.39 | F165: 0.47 | G165: 0.43
A166: 0.57 | B166: 0.35 | C166: 0.56 | D166: 0.5 | E166: 0.39 | F166: 0.47 | G166: 0.32
A167: 0.64 | B167: 0.56 | C167: 0.63 | D167: 0.56 | E167: 0.36 | F167: 0.48 | G167: 0.49
A168: 0.44 | B168: 0.56 | C168: 0.6 | D168: 0.54 | E168: 0.35 | F168: 0.21 | G168: 0.38
A169: 0.61 | B169: 0.7 | C169: 0.56 | D169: 0.44 | E169: 0.53 | F169: 0.43 | G169: 0.06
A170: 0.64 | B170: 0.6 | C170: 0.54 | D170: 0.44 | E170: 0.8 | F170: 0.42 | G170: 0.25
A171: 0.52 | B171: 0.63 | C171: 0.58 | D171: 0.38 | E171: 0.46 | F171: 0.48 | G171: 0.17
A172: 0.65 | B172: 0.49 | C172: 0.6 | D172: 0.29 | E172: 0.26 | F172: 0.44 | G172: 0.33
A173: 0.60 | B173: 0.53 | C173: 0.43 | D173: 0.44 | E173: 0.38 | F173: 0.3 | G173: 0.25
A174: 0.55 | B174: 0.59 | C174: 0.47 | D174: 0.53 | E174: 0.68 | F174: 0.53 | G174: 0.44
A175: 0.61 | B175: 0.46 | C175: 0.43 | D175: 0.48 | E175: 0.44 | F175: 0.38 | G175: 0.36
A176: 0.61 | B176: 0.44 | C176: 0.43 | D176: 0.48 | E176: 0.37 | F176: 0.45 | G176: 0.3
A177: 0.63 | B177: 0.45 | C177: 0.62 | D177: 0.56 | E177: 0.3 | F177: 0.29 | G177: 0.21
A178: 0.52 | B178: 0.51 | C178: 0.57 | D178: 0.39 | E178: 0.31 | F178: 0.45 | G178: 0.27
A179: 0.54 | B179: 0.21 | C179: 0.59 | D179: 0.35 | E179: 0.44 | F179: 0.67 | G179: 0.32
A180: 0.52 | B180: 0.56 | C180: 0.67 | D180: 0.52 | E180: 0.33 | F180: 0.38 | G180: 0.38
A181: 0.47 | B181: 0.64 | C181: 0.47 | D181: 0.5 | E181: 0.49 | F181: 0.33 | G181: 0.31
A182: 0.59 | B182: 0.52 | C182: 0.54 | D182: 0.43 | E182: 0.46 | F182: 0.46 | G182: 0.12
A183: 0.70 | B183: 0.61 | C183: 0.54 | D183: 0.31 | E183: 0.23 | F183: 0.38 | G183: 0.28
A184: 0.68 | B184: 0.59 | C184: 0.45 | D184: 0.41 | E184: 0.46 | F184: 0.39 | G184: 0.37
A185: 0.53 | B185: 0.43 | C185: 0.68 | D185: 0.43 | E185: 0.39 | F185: 0.3 | G185: 0.19
A186: 0.49 | B186: 0.71 | C186: 0.56 | D186: 0.39 | E186: 0.34 | F186: 0.44 | G186: 0.15
A187: 0.58 | B187: 0.46 | C187: 0.37 | D187: 0.44 | E187: 0.18 | F187: 0.37 | G187: 0.44
A188: 0.55 | B188: 0.63 | C188: 0.51 | D188: 0.47 | E188: 0.35 | F188: 0.45 | G188: 0.27
A189: 0.66 | B189: 0.61 | C189: 0.54 | D189: 0.4 | E189: 0.34 | F189: 0.4 | G189: 0.05
A190: 0.59 | B190: 0.57 | C190: 0.53 | D190: 0.5 | E190: 0.49 | F190: 0.31 | G190: 0.33
A191: 0.61 | B191: 0.53 | C191: 0.54 | D191: 0.33 | E191: 0.5 | F191: 0.36 | G191: 0.37
A192: 0.59 | B192: 0.62 | C192: 0.55 | D192: 0.55 | E192: 0.34 | F192: 0.29 | G192: 0.32
A193: 0.49 | B193: 0.53 | C193: 0.54 | D193: 0.47 | E193: 0.44 | F193: 0.49 | G193: 0.25
A194: 0.63 | B194: 0.65 | C194: 0.52 | D194: 0.39 | E194: 0.33 | F194: 0.28 | G194: 0.2
A195: 0.70 | B195: 0.58 | C195: 0.63 | D195: 0.51 | E195: 0.33 | F195: 0.32 | G195: 0.44
A196: 0.72 | B196: 0.55 | C196: 0.53 | D196: 0.48 | E196: 0.48 | F196: 0.46 | G196: 0.24
A197: 0.63 | B197: 0.57 | C197: 0.52 | D197: 0.46 | E197: 0.5 | F197: 0.38 | G197: 0.57
A198: 0.66 | B198: 0.55 | C198: 0.57 | D198: 0.53 | E198: 0.29 | F198: 0.38 | G198: 0.49
A199: 0.68 | B199: 0.62 | C199: 0.58 | D199: 0.51 | E199: 0.48 | F199: 0.51 | G199: 0.32
A200: 0.60 | B200: 0.64 | C200: 0.63 | D200: 0.58 | E200: 0.24 | F200: 0.58 | G200: 0.38
... 16141 more rows

Sheet TUB Ax
A1: Tubulin Ax/Total | B1: Bull 1 | C1: Bull 2 | D1: Bull 3 | E1: Bull 4 | F1: Bull 5 | G1: Bull 6
A2: 0.21 | B2: 0.02 | C2: 0 | D2: 0.21 | E2: 0.22 | F2: 0 | G2: 0.16 | I2: Bins | J2: 0.05 | K2: 0.15 | L2: 0.25 | M2: 0.35 | N2: 0.45 | O2: 0.55 | P2: 0.65 | Q2: 0.75 | R2: 0.85 | S2: 0.95
A3: 0.22 | B3: 0.07 | C3: 0.19 | D3: 0.22 | E3: 0.12 | F3: 0.12 | G3: 0.35 | J3: 0 | K3: .1-.2 | L3: .2-.3 | M3: .3-.4 | N3: .4-.5 | O3: .5-.6 | P3: .6-.7 | Q3: .7-.8 | R3: .8-.9 | S3: .9-1
A4: 0.06 | B4: 0.02 | C4: 0.03 | D4: 0.06 | E4: 0.11 | F4: 0 | G4: 0.37 | J4: =(COUNTIFS(A:A, "<=0.1")) -> 2575 | K4: =COUNTIFS(A:A,">0.1",A:A,"<=0.2") -> 4097 | L4: =COUNTIFS(A:A,">0.2",A:A,"<=0.3") -> 1435 | M4: =COUNTIFS(A:A,">0.3",A:A,"<=0.4") -> 488 | N4: =COUNTIFS(A:A,">0.4",A:A,"<=0.5") -> 161 | O4: =COUNTIFS(A:A,">0.5",A:A,"<=0.6") -> 57 | P4: =COUNTIFS(A:A,">0.6",A:A,"<=0.7") -> 21 | Q4: =COUNTIFS(A:A,">0.7",A:A,"<=0.8") -> 11 | R4: =COUNTIFS(A:A,">0.8",A:A,"<=0.9") -> 5 | S4: =COUNTIFS(A:A,">0.9",A:A,"<=1") -> 2 | T4: =SUM(J4:S4) -> 8852
A5: 0.16 | B5: 0.21 | C5: 0 | D5: 0.16 | E5: 0.17 | F5: 0 | G5: 0.11 | J5: =J4/$T$4 -> 29% | K5: =K4/$T$4 -> 46% | L5: 16% | M5: 6% | N5: 2% | O5: 1% | P5: 0% | Q5: 0% | R5: 0% | S5: 0%
A6: 0.11 | B6: 0.04 | C6: 0.04 | D6: 0.11 | E6: 0.15 | F6: 0 | G6: 0.2
A7: 0.18 | B7: 0.04 | C7: 0.06 | D7: 0.18 | E7: 0.17 | F7: 0.14 | G7: 0.13
A8: 0.11 | B8: 0.12 | C8: 0.03 | D8: 0.11 | E8: 0.16 | F8: 0 | G8: 0.13 | I8: Bull 1 | J8: 0.05 | K8: 0.15 | L8: 0.25 | M8: 0.35 | N8: 0.45 | O8: 0.55 | P8: 0.65 | Q8: 0.75 | R8: 0.85 | S8: 0.95
A9: 0.18 | B9: 0.09 | C9: 0.01 | D9: 0.18 | E9: 0.18 | F9: 0 | G9: 0.09 | J9: =(COUNTIFS(B:B, "<=0.1")) -> 506 | K9: =COUNTIFS(B:B,">0.1",B:B,"<=0.2") -> 257 | L9: =COUNTIFS(B:B,">0.2",B:B,"<=0.3") -> 79 | M9: =COUNTIFS(B:B,">0.3",B:B,"<=0.4") -> 18 | N9: =COUNTIFS(B:B,">0.4",B:B,"<=0.5") -> 11 | O9: =COUNTIFS(B:B,">0.5",B:B,"<=0.6") -> 3 | P9: =COUNTIFS(B:B,">0.6",B:B,"<=0.7") -> 1 | Q9: =COUNTIFS(B:B,">0.7",B:B,"<=0.8") -> 1 | R9: =COUNTIFS(B:B,">0.8",B:B,"<=0.9") -> 0 | S9: =COUNTIFS(B:B,">0.9",B:B,"<=1") -> 0 | T9: =SUM(J9:S9) -> 876
A10: 0.16 | B10: 0.14 | C10: 0.13 | D10: 0.16 | E10: 0.16 | F10: 0.14 | G10: 0.43 | J10: =J9/$T$9 -> 58% | K10: =K9/$T$9 -> 29% | L10: 9% | M10: 2% | N10: 1% | O10: 0% | P10: 0% | Q10: 0% | R10: 0% | S10: 0%
A11: 0.13 | B11: 0.05 | C11: 0.02 | D11: 0.13 | E11: 0.24 | F11: 0 | G11: 0.09
A12: 0.10 | B12: 0.11 | C12: 0 | D12: 0.1 | E12: 0.14 | F12: 0 | G12: 0.14
A13: 0.13 | B13: 0.19 | C13: 0.03 | D13: 0.13 | E13: 0.18 | F13: 0 | G13: 0.55 | I13: Bull 2 | J13: 0.05 | K13: 0.15 | L13: 0.25 | M13: 0.35 | N13: 0.45 | O13: 0.55 | P13: 0.65 | Q13: 0.75 | R13: 0.85 | S13: 0.95
A14: 0.15 | B14: 0.09 | C14: 0.09 | D14: 0.15 | E14: 0.22 | F14: 0 | G14: 0.21 | J14: =(COUNTIFS(C:C, "<=0.1")) -> 399 | K14: =COUNTIFS(C:C,">0.1",C:C,"<=0.2") -> 128 | L14: =COUNTIFS(C:C,">0.2",C:C,"<=0.3") -> 73 | M14: =COUNTIFS(C:C,">0.3",C:C,"<=0.4") -> 19 | N14: =COUNTIFS(C:C,">0.4",C:C,"<=0.5") -> 3 | O14: =COUNTIFS(C:C,">0.5",C:C,"<=0.6") -> 1 | P14: =COUNTIFS(C:C,">0.6",C:C,"<=0.7") -> 1 | Q14: =COUNTIFS(C:C,">0.7",C:C,"<=0.8") -> 0 | R14: =COUNTIFS(C:C,">0.8",C:C,"<=0.9") -> 0 | S14: =COUNTIFS(C:C,">0.9",C:C,"<=1") -> 0 | T14: =SUM(J14:S14) -> 624
A15: 0.08 | B15: 0.03 | C15: 0.03 | D15: 0.08 | E15: 0.19 | F15: 0.5 | G15: 0.26 | J15: =J14/$T$14 -> 64% | K15: =K14/$T$14 -> 21% | L15: 12% | M15: 3% | N15: 0% | O15: 0% | P15: 0% | Q15: 0% | R15: 0% | S15: 0%
A16: 0.19 | B16: 0.18 | C16: 0.04 | D16: 0.19 | E16: 0.21 | F16: 0 | G16: 0.34
A17: 0.19 | B17: 0.1 | C17: 0.09 | D17: 0.19 | E17: 0.32 | F17: 0 | G17: 0.07
A18: 0.19 | B18: 0.04 | C18: 0.01 | D18: 0.19 | E18: 0.28 | F18: 0 | G18: 0.12 | I18: Bull 3 | J18: 0.05 | K18: 0.15 | L18: 0.25 | M18: 0.35 | N18: 0.45 | O18: 0.55 | P18: 0.65 | Q18: 0.75 | R18: 0.85 | S18: 0.95
A19: 0.12 | B19: 0.05 | C19: 0 | D19: 0.12 | E19: 0.12 | F19: 0 | G19: 0.14 | J19: =(COUNTIFS(D:D, "<=0.1")) -> 199 | K19: =COUNTIFS(D:D,">0.1",D:D,"<=0.2") -> 220 | L19: =COUNTIFS(D:D,">0.2",D:D,"<=0.3") -> 95 | M19: =COUNTIFS(D:D,">0.3",D:D,"<=0.4") -> 38 | N19: =COUNTIFS(D:D,">0.4",D:D,"<=0.5") -> 20 | O19: =COUNTIFS(D:D,">0.5",D:D,"<=0.6") -> 10 | P19: =COUNTIFS(D:D,">0.6",D:D,"<=0.7") -> 4 | Q19: =COUNTIFS(D:D,">0.7",D:D,"<=0.8") -> 1 | R19: =COUNTIFS(D:D,">0.8",D:D,"<=0.9") -> 0 | S19: =COUNTIFS(D:D,">0.9",D:D,"<=1") -> 1 | T19: =SUM(J19:S19) -> 588
A20: 0.20 | B20: 0.1 | C20: 0.04 | D20: 0.2 | E20: 0.34 | F20: 0 | G20: 0.15 | J20: =J19/$T$19 -> 34% | K20: =K19/$T$19 -> 37% | L20: 16% | M20: 6% | N20: 3% | O20: 2% | P20: 1% | Q20: 0% | R20: 0% | S20: 0%
A21: 0.11 | B21: 0.06 | C21: 0.16 | D21: 0.11 | E21: 0.16 | F21: 0.08 | G21: 0.1
A22: 0.31 | B22: 0.05 | C22: 0 | D22: 0.31 | E22: 0.06 | F22: 0.26 | G22: 0.18
A23: 0.15 | B23: 0.11 | C23: 0.1 | D23: 0.15 | E23: 0.28 | F23: 0.16 | G23: 0.18 | I23: Bull 4 | J23: 0.05 | K23: 0.15 | L23: 0.25 | M23: 0.35 | N23: 0.45 | O23: 0.55 | P23: 0.65 | Q23: 0.75 | R23: 0.85 | S23: 0.95
A24: 0.19 | B24: 0.05 | C24: 0.07 | D24: 0.19 | E24: 0.1 | F24: 0.22 | G24: 0.11 | J24: =(COUNTIFS(E:E, "<=0.1")) -> 76 | K24: =COUNTIFS(E:E,">0.1",E:E,"<=0.2") -> 104 | L24: =COUNTIFS(E:E,">0.2",E:E,"<=0.3") -> 73 | M24: =COUNTIFS(E:E,">0.3",E:E,"<=0.4") -> 28 | N24: =COUNTIFS(E:E,">0.4",E:E,"<=0.5") -> 17 | O24: =COUNTIFS(E:E,">0.5",E:E,"<=0.6") -> 6 | P24: =COUNTIFS(E:E,">0.6",E:E,"<=0.7") -> 1 | Q24: =COUNTIFS(E:E,">0.7",E:E,"<=0.8") -> 0 | R24: =COUNTIFS(E:E,">0.8",E:E,"<=0.9") -> 2 | S24: =COUNTIFS(E:E,">0.9",E:E,"<=1") -> 0 | T24: =SUM(J24:S24) -> 307
A25: 0.11 | B25: 0.04 | C25: 0.01 | D25: 0.11 | E25: 0.09 | F25: 0.17 | G25: 0.12 | J25: =J24/$T$24 -> 25% | K25: =K24/$T$24 -> 34% | L25: =L24/$T$24 -> 24% | M25: 9% | N25: 6% | O25: 2% | P25: 0% | Q25: 0% | R25: 1% | S25: 0%
A26: 0.09 | B26: 0.1 | C26: 0.04 | D26: 0.09 | E26: 0.3 | F26: 0.14 | G26: 0.25
A27: 0.08 | B27: 0.16 | C27: 0.02 | D27: 0.08 | E27: 0.39 | F27: 0.33 | G27: 0.15
A28: 0.20 | B28: 0.1 | C28: 0.02 | D28: 0.2 | E28: 0.4 | F28: 0.23 | G28: 0.12 | I28: Bull 5 | J28: 0.05 | K28: 0.15 | L28: 0.25 | M28: 0.35 | N28: 0.45 | O28: 0.55 | P28: 0.65 | Q28: 0.75 | R28: 0.85 | S28: 0.95
A29: 0.07 | B29: 0.06 | C29: 0.05 | D29: 0.07 | E29: 0.3 | F29: 0.28 | G29: 0.12 | J29: =(COUNTIFS(F:F, "<=0.1")) -> 99 | K29: =COUNTIFS(F:F,">0.1",F:F,"<=0.2") -> 139 | L29: =COUNTIFS(F:F,">0.2",F:F,"<=0.3") -> 56 | M29: =COUNTIFS(F:F,">0.3",F:F,"<=0.4") -> 22 | N29: =COUNTIFS(F:F,">0.4",F:F,"<=0.5") -> 10 | O29: =COUNTIFS(F:F,">0.5",F:F,"<=0.6") -> 4 | P29: =COUNTIFS(F:F,">0.6",F:F,"<=0.7") -> 6 | Q29: =COUNTIFS(F:F,">0.7",F:F,"<=0.8") -> 3 | R29: =COUNTIFS(F:F,">0.8",F:F,"<=0.9") -> 1 | S29: =COUNTIFS(F:F,">0.9",F:F,"<=1") -> 0 | T29: =SUM(J29:S29) -> 340
A30: 0.25 | B30: 0.09 | C30: 0.04 | D30: 0.25 | E30: 0.19 | F30: 0.16 | G30: 0.15 | J30: =J29/$T$29 -> 29% | K30: =K29/$T$29 -> 41% | L30: 16% | M30: 6% | N30: 3% | O30: 1% | P30: 2% | Q30: 1% | R30: 0% | S30: 0%
A31: 0.11 | B31: 0.11 | C31: 0.06 | D31: 0.11 | E31: 0.12 | F31: 0.19 | G31: 0.25
A32: 0.25 | B32: 0.45 | C32: 0.03 | D32: 0.25 | E32: 0.12 | F32: 0.18 | G32: 0.13
A33: 0.02 | B33: 0.14 | C33: 0.06 | D33: 0.02 | E33: 0.15 | F33: 0.13 | G33: 0.18 | I33: Bull 6 | J33: 0.05 | K33: 0.15 | L33: 0.25 | M33: 0.35 | N33: 0.45 | O33: 0.55 | P33: 0.65 | Q33: 0.75 | R33: 0.85 | S33: 0.95
A34: 0.15 | B34: 0.14 | C34: 0.07 | D34: 0.15 | E34: 0.39 | F34: 0.17 | G34: 0.1 | J34: =(COUNTIFS(G:G, "<=0.1")) -> 223 | K34: =COUNTIFS(G:G,">0.1",G:G,"<=0.2") -> 171 | L34: =COUNTIFS(G:G,">0.2",G:G,"<=0.3") -> 22 | M34: =COUNTIFS(G:G,">0.3",G:G,"<=0.4") -> 7 | N34: =COUNTIFS(G:G,">0.4",G:G,"<=0.5") -> 4 | O34: =COUNTIFS(G:G,">0.5",G:G,"<=0.6") -> 1 | P34: =COUNTIFS(G:G,">0.6",G:G,"<=0.7") -> 1 | Q34: =COUNTIFS(G:G,">0.7",G:G,"<=0.8") -> 0 | R34: =COUNTIFS(G:G,">0.8",G:G,"<=0.9") -> 0 | S34: =COUNTIFS(G:G,">0.9",G:G,"<=1") -> 0 | T34: =SUM(J34:S34) -> 429
A35: 0.12 | B35: 0.1 | C35: 0.01 | D35: 0.12 | E35: 0.36 | F35: 0.41 | G35: 0.09 | J35: =J34/$T$34 -> 52% | K35: =K34/$T$34 -> 40% | L35: 5% | M35: 2% | N35: 1% | O35: 0% | P35: 0% | Q35: 0% | R35: 0% | S35: 0%
A36: 0.16 | B36: 0.05 | C36: 0.08 | D36: 0.16 | E36: 0.23 | F36: 0.27 | G36: 0.17
A37: 0.14 | B37: 0.1 | C37: 0.03 | D37: 0.14 | E37: 0.1 | F37: 0.15 | G37: 0.09
A38: 0.24 | B38: 0.08 | C38: 0.06 | D38: 0.24 | E38: 0.05 | F38: 0.09 | G38: 0.08
A39: 0.22 | B39: 0.13 | C39: 0.02 | D39: 0.22 | E39: 0.45 | F39: 0.32 | G39: 0.16
A40: 0.12 | B40: 0.15 | C40: 0.07 | D40: 0.12 | E40: 0.08 | F40: 0.17 | G40: 0.21
A41: 0.25 | B41: 0.26 | C41: 0.05 | D41: 0.25 | E41: 0.17 | F41: 0.14 | G41: 0.06
A42: 0.09 | B42: 0.04 | C42: 0.11 | D42: 0.09 | E42: 0.1 | F42: 0.08 | G42: 0.09
A43: 0.32 | B43: 0.16 | C43: 0.02 | D43: 0.32 | E43: 0.16 | F43: 0.11 | G43: 0.2
A44: 0.02 | B44: 0.07 | C44: 0.09 | D44: 0.02 | E44: 0.08 | F44: 0.18 | G44: 0.16
A45: 0.06 | B45: 0.02 | C45: 0.11 | D45: 0.06 | E45: 0.32 | F45: 0.06 | G45: 0.1
A46: 0.19 | B46: 0.07 | C46: 0.05 | D46: 0.19 | E46: 0.09 | F46: 0.07 | G46: 0.29
A47: 0.20 | B47: 0.02 | C47: 0.13 | D47: 0.2 | E47: 0.16 | F47: 0.14 | G47: 0.15
A48: 0.14 | B48: 0.21 | C48: 0.03 | D48: 0.14 | E48: 0.1 | F48: 0.04 | G48: 0.16
A49: 0.25 | B49: 0.04 | C49: 0.08 | D49: 0.25 | E49: 0.19 | F49: 0.02 | G49: 0.03
A50: 0.08 | B50: 0.04 | C50: 0.08 | D50: 0.08 | E50: 0.85 | F50: 0.1 | G50: 0.3
A51: 0.10 | B51: 0.12 | C51: 0.05 | D51: 0.1 | E51: 0.12 | F51: 0.33 | G51: 0.13
A52: 0.09 | B52: 0.09 | C52: 0.06 | D52: 0.09 | E52: 0.3 | F52: 0.19 | G52: 0.16
A53: 0.25 | B53: 0.14 | C53: 0.09 | D53: 0.25 | E53: 0.21 | F53: 0.28 | G53: 0.14
A54: 0.32 | B54: 0.05 | C54: 0.06 | D54: 0.32 | E54: 0.07 | F54: 0.11 | G54: 0.14
A55: 0.36 | B55: 0.11 | C55: 0 | D55: 0.36 | E55: 0.29 | F55: 0.08 | G55: 0.19
A56: 0.11 | B56: 0.19 | C56: 0.03 | D56: 0.11 | E56: 0.37 | F56: 0.18 | G56: 0.24
A57: 0.12 | B57: 0.09 | C57: 0.11 | D57: 0.12 | E57: 0.03 | F57: 0.15 | G57: 0.2
A58: 0.20 | B58: 0.03 | C58: 0.08 | D58: 0.2 | E58: 0.18 | F58: 0.23 | G58: 0.12
A59: 0.12 | B59: 0.18 | C59: 0.03 | D59: 0.12 | E59: 0.21 | F59: 0.14 | G59: 0.18
A60: 0.21 | B60: 0.1 | C60: 0.05 | D60: 0.21 | E60: 0.15 | F60: 0.17 | G60: 0.2
A61: 0.17 | B61: 0.04 | C61: 0.08 | D61: 0.17 | E61: 0.18 | F61: 0.15 | G61: 0.12
A62: 0.02 | B62: 0.05 | C62: 0.01 | D62: 0.02 | E62: 0.2 | F62: 0.22 | G62: 0.1
A63: 0.05 | B63: 0.1 | C63: 0.05 | D63: 0.05 | E63: 0.16 | F63: 0.19 | G63: 0.08
A64: 0.30 | B64: 0.06 | C64: 0 | D64: 0.3 | E64: 0.3 | F64: 0.09 | G64: 0.07
A65: 0.19 | B65: 0.05 | C65: 0.08 | D65: 0.19 | E65: 0.22 | F65: 0.14 | G65: 0.03
A66: 0.09 | B66: 0.11 | C66: 0.01 | D66: 0.09 | E66: 0.09 | F66: 0.35 | G66: 0.06
A67: 0.17 | B67: 0.05 | C67: 0.03 | D67: 0.17 | E67: 0.2 | F67: 0.36 | G67: 0.13
A68: 0.17 | B68: 0.04 | C68: 0.06 | D68: 0.17 | E68: 0.04 | F68: 0.14 | G68: 0.07
A69: 0.14 | B69: 0.1 | C69: 0 | D69: 0.14 | E69: 0.15 | F69: 0.16 | G69: 0.08
A70: 0.11 | B70: 0.16 | C70: 0.04 | D70: 0.11 | E70: 0.15 | F70: 0.16 | G70: 0.1
A71: 0.22 | B71: 0.1 | C71: 0 | D71: 0.22 | E71: 0.56 | F71: 0.38 | G71: 0.08
A72: 0.33 | B72: 0.06 | C72: 0.01 | D72: 0.33 | E72: 0.26 | F72: 0.08 | G72: 0.18
A73: 0.11 | B73: 0.09 | C73: 0.1 | D73: 0.11 | E73: 0.11 | F73: 0.14 | G73: 0.09
A74: 0.53 | B74: 0.11 | C74: 0.14 | D74: 0.53 | E74: 0.16 | F74: 0.07 | G74: 0.12
A75: 0.07 | B75: 0.45 | C75: 0.04 | D75: 0.07 | E75: 0.29 | F75: 0.11 | G75: 0.16
A76: 0.10 | B76: 0.14 | C76: 0.48 | D76: 0.1 | E76: 0.49 | F76: 0.21 | G76: 0.13
A77: 0.13 | B77: 0.14 | C77: 0.01 | D77: 0.13 | E77: 0.21 | F77: 0.26 | G77: 0.13
A78: 0.19 | B78: 0.1 | C78: 0.07 | D78: 0.19 | E78: 0.22 | F78: 0.18 | G78: 0.14
A79: 0.17 | B79: 0.05 | C79: 0.05 | D79: 0.17 | E79: 0.1 | F79: 0.32 | G79: 0.14
A80: 0.17 | B80: 0.1 | C80: 0.02 | D80: 0.17 | E80: 0.12 | F80: 0.1 | G80: 0.13
A81: 0.20 | B81: 0.08 | C81: 0.07 | D81: 0.2 | E81: 0.33 | F81: 0.07 | G81: 0.21
A82: 0.06 | B82: 0.13 | C82: 0.05 | D82: 0.06 | E82: 0.11 | F82: 0.04 | G82: 0.1
A83: 0.12 | B83: 0.15 | C83: 0.12 | D83: 0.12 | E83: 0.1 | F83: 0.1 | G83: 0.1
A84: 0.15 | B84: 0.26 | C84: 0.01 | D84: 0.15 | E84: 0.17 | F84: 0.03 | G84: 0.16
A85: 0.04 | B85: 0.04 | C85: 0.01 | D85: 0.04 | E85: 0.21 | F85: 0.09 | G85: 0.14
A86: 0.19 | B86: 0.16 | C86: 0.07 | D86: 0.19 | E86: 0.42 | F86: 0.26 | G86: 0.16
A87: 0.53 | B87: 0.07 | C87: 0 | D87: 0.53 | E87: 0.11 | F87: 0.1 | G87: 0.09
A88: 0.15 | B88: 0.06 | C88: 0.01 | D88: 0.15 | E88: 0.21 | F88: 0.1 | G88: 0.11
A89: 0.18 | B89: 0.11 | C89: 0 | D89: 0.18 | E89: 0.07 | F89: 0.11 | G89: 0.17
A90: 0.06 | B90: 0.21 | C90: 0.07 | D90: 0.06 | E90: 0.24 | F90: 0.64 | G90: 0.12
A91: 0.31 | B91: 0.06 | C91: 0.01 | D91: 0.31 | E91: 0.25 | F91: 0.1 | G91: 0.09
A92: 0.15 | B92: 0.05 | C92: 0.03 | D92: 0.15 | E92: 0.19 | F92: 0.14 | G92: 0.2
A93: 0.14 | B93: 0.06 | C93: 0.13 | D93: 0.14 | E93: 0.13 | F93: 0.15 | G93: 0.12
A94: 0.16 | B94: 0.04 | C94: 0.07 | D94: 0.16 | E94: 0.21 | F94: 0.26 | G94: 0.17
A95: 0.06 | B95: 0.11 | C95: 0.09 | D95: 0.06 | E95: 0.5 | F95: 0.68 | G95: 0.12
A96: 0.12 | B96: 0.17 | C96: 0.02 | D96: 0.12 | E96: 0 | F96: 0.04 | G96: 0.15
A97: 0.25 | B97: 0.09 | C97: 0 | D97: 0.25 | E97: 0.13 | F97: 0.12 | G97: 0.11
A98: 0.14 | B98: 0.2 | C98: 0.1 | D98: 0.14 | E98: 0.14 | F98: 0.2 | G98: 0.13
A99: 0.20 | B99: 0.14 | C99: 0.02 | D99: 0.2 | E99: 0.27 | F99: 0.29 | G99: 0.05
A100: 0.19 | B100: 0.03 | C100: 0.03 | D100: 0.19 | E100: 0.14 | F100: 0.05 | G100: 0.16
A101: 0.08 | B101: 0.09 | C101: 0.07 | D101: 0.08 | E101: 0.09 | F101: 0.27 | G101: 0.2
A102: 0.06 | B102: 0.09 | C102: 0.19 | D102: 0.06 | E102: 0.12 | F102: 0.17 | G102: 0.12
A103: 0.05 | B103: 0.26 | C103: 0.07 | D103: 0.05 | E103: 0.3 | F103: 0.25 | G103: 0.15
A104: 0.32 | B104: 0.23 | C104: 0.07 | D104: 0.32 | E104: 0.2 | F104: 0.5 | G104: 0.17
A105: 0.45 | B105: 0.02 | C105: 0 | D105: 0.45 | E105: 0.4 | F105: 0.19 | G105: 0.12
A106: 0.06 | B106: 0.12 | C106: 0.02 | D106: 0.06 | E106: 0.11 | F106: 0.17 | G106: 0.23
A107: 0.21 | B107: 0.11 | C107: 0.05 | D107: 0.21 | E107: 0.12 | F107: 0.39 | G107: 0.13
A108: 0.21 | B108: 0.08 | C108: 0.02 | D108: 0.21 | E108: 0.15 | F108: 0.21 | G108: 0.15
A109: 0.14 | B109: 0.06 | C109: 0.02 | D109: 0.14 | E109: 0.05 | F109: 0.07 | G109: 0.08
A110: 0.29 | B110: 0.06 | C110: 0.02 | D110: 0.29 | E110: 0.28 | F110: 0.17 | G110: 0.16
A111: 0.19 | B111: 0.13 | C111: 0.23 | D111: 0.19 | E111: 0.2 | F111: 0.25 | G111: 0.17
A112: 0.19 | B112: 0.04 | C112: 0 | D112: 0.19 | E112: 0.27 | F112: 0.41 | G112: 0.08
A113: 0.17 | B113: 0.13 | C113: 0.05 | D113: 0.17 | E113: 0.3 | F113: 0.13 | G113: 0.14
A114: 0.26 | B114: 0.04 | C114: 0.03 | D114: 0.26 | E114: 0.22 | F114: 0.32 | G114: 0.2
A115: 0.15 | B115: 0.22 | C115: 0.02 | D115: 0.15 | E115: 0.24 | F115: 0.05 | G115: 0.19
A116: 0.17 | B116: 0.04 | C116: 0.04 | D116: 0.17 | E116: 0.05 | F116: 0.08 | G116: 0.15
A117: 0.17 | B117: 0.45 | C117: 0.02 | D117: 0.17 | E117: 0.14 | F117: 0.1 | G117: 0.14
A118: 0.15 | B118: 0.31 | C118: 0.03 | D118: 0.15 | E118: 0.16 | F118: 0.2 | G118: 0.2
A119: 0.16 | B119: 0.07 | C119: 0 | D119: 0.16 | E119: 0.21 | F119: 0.18 | G119: 0.1
A120: 0.19 | B120: 0.01 | C120: 0 | D120: 0.19 | E120: 0.23 | F120: 0.14 | G120: 0.1
A121: 0.13 | B121: 0.06 | C121: 0.03 | D121: 0.13 | E121: 0.01 | F121: 0.22 | G121: 0.16
A122: 0.16 | B122: 0.31 | C122: 0.02 | D122: 0.16 | E122: 0.03 | F122: 0.1 | G122: 0.13
A123: 0.23 | B123: 0.19 | C123: 0.03 | D123: 0.23 | E123: 0.58 | F123: 0.24 | G123: 0.13
A124: 0.24 | B124: 0.15 | C124: 0.03 | D124: 0.24 | E124: 0.16 | F124: 0.09 | G124: 0.09
A125: 0.20 | B125: 0.11 | C125: 0.04 | D125: 0.2 | E125: 0.22 | F125: 0.07 | G125: 0.17
A126: 0.14 | B126: 0.12 | C126: 0.05 | D126: 0.14 | E126: 0.2 | F126: 0.07 | G126: 0.17
A127: 0.10 | B127: 0.17 | C127: 0.03 | D127: 0.1 | E127: 0.04 | F127: 0.21 | G127: 0.15
A128: 0.27 | B128: 0.21 | C128: 0.07 | D128: 0.27 | E128: 0.14 | F128: 0.14 | G128: 0.08
A129: 0.31 | B129: 0.07 | C129: 0.05 | D129: 0.31 | E129: 0.3 | F129: 0.17 | G129: 0.1
A130: 0.24 | B130: 0.05 | C130: 0 | D130: 0.24 | E130: 0.23 | F130: 0.32 | G130: 0.15
A131: 0.25 | B131: 0.17 | C131: 0 | D131: 0.25 | E131: 0.23 | F131: 0.27 | G131: 0.12
A132: 0.13 | B132: 0.06 | C132: 0.15 | D132: 0.13 | E132: 0.16 | F132: 0.17 | G132: 0.12
A133: 0.19 | B133: 0.09 | C133: 0.07 | D133: 0.19 | E133: 0.25 | F133: 0.19 | G133: 0.05
A134: 0.63 | B134: 0.11 | C134: 0.02 | D134: 0.63 | E134: 0.01 | F134: 0.27 | G134: 0.13
A135: 0.24 | B135: 0.08 | C135: 0.01 | D135: 0.24 | E135: 0.13 | F135: 0.08 | G135: 0.14
A136: 0.13 | B136: 0.13 | C136: 0.03 | D136: 0.13 | E136: 0.26 | F136: 0.56 | G136: 0.17
A137: 0.19 | B137: 0.15 | C137: 0.04 | D137: 0.19 | E137: 0.12 | F137: 0.11 | G137: 0.13
A138: 0.27 | B138: 0.13 | C138: 0.05 | D138: 0.27 | E138: 0.07 | F138: 0.14 | G138: 0.2
A139: 0.18 | B139: 0.05 | C139: 0.07 | D139: 0.18 | E139: 0.27 | F139: 0.19 | G139: 0.16
A140: 0.13 | B140: 0.11 | C140: 0.03 | D140: 0.13 | E140: 0.17 | F140: 0.04 | G140: 0.1
A141: 0.57 | B141: 0.16 | C141: 0.06 | D141: 0.57 | E141: 0.05 | F141: 0.2 | G141: 0.13
A142: 0.16 | B142: 0.21 | C142: 0.11 | D142: 0.16 | E142: 0.07 | F142: 0.34 | G142: 0.17
A143: 0.08 | B143: 0.04 | C143: 0.04 | D143: 0.08 | E143: 0.17 | F143: 0.2 | G143: 0.13
A144: 0.06 | B144: 0.1 | C144: 0.03 | D144: 0.06 | E144: 0.43 | F144: 0.17 | G144: 0.13
A145: 0.16 | B145: 0.04 | C145: 0.14 | D145: 0.16 | E145: 0.2 | F145: 0.18 | G145: 0.17
A146: 0.07 | B146: 0.03 | C146: 0.09 | D146: 0.07 | E146: 0.14 | F146: 0.08 | G146: 0.11
A147: 0.07 | B147: 0.09 | C147: 0.06 | D147: 0.07 | E147: 0.28 | F147: 0.24 | G147: 0.21
A148: 0.19 | B148: 0.14 | C148: 0 | D148: 0.19 | E148: 0.15 | F148: 0.03 | G148: 0.08
A149: 0.33 | B149: 0.16 | C149: 0.07 | D149: 0.33 | E149: 0.18 | F149: 0.07 | G149: 0.16
A150: 0.20 | B150: 0.45 | C150: 0.1 | D150: 0.2 | E150: 0.18 | F150: 0.65 | G150: 0.2
A151: 0.09 | B151: 0.09 | C151: 0.02 | D151: 0.09 | E151: 0.36 | F151: 0.33 | G151: 0.12
A152: 0.09 | B152: 0.26 | C152: 0.01 | D152: 0.09 | E152: 0.14 | F152: 0.09 | G152: 0.15
A153: 0.18 | B153: 0.2 | C153: 0.02 | D153: 0.18 | E153: 0.1 | F153: 0.4 | G153: 0.08
A154: 0.17 | B154: 0.06 | C154: 0.03 | D154: 0.17 | E154: 0.08 | F154: 0.48 | G154: 0.17
A155: 0.20 | B155: 0.32 | C155: 0.01 | D155: 0.2 | E155: 0.09 | F155: 0.14 | G155: 0.12
A156: 0.17 | B156: 0.18 | C156: 0.03 | D156: 0.17 | E156: 0.12 | F156: 0.18 | G156: 0.18
A157: 0.13 | B157: 0.09 | C157: 0 | D157: 0.13 | E157: 0.09 | F157: 0.42 | G157: 0.11
A158: 0.18 | B158: 0.07 | C158: 0.04 | D158: 0.18 | E158: 0.11 | F158: 0.11 | G158: 0.05
A159: 0.12 | B159: 0.05 | C159: 0.19 | D159: 0.12 | E159: 0.14 | F159: 0.29 | G159: 0.26
A160: 0.30 | B160: 0.28 | C160: 0.02 | D160: 0.3 | E160: 0.41 | F160: 0.11 | G160: 0.1
A161: 0.11 | B161: 0.17 | C161: 0.04 | D161: 0.11 | E161: 0.32 | F161: 0.17 | G161: 0.06
A162: 0.13 | B162: 0.2 | C162: 0.03 | D162: 0.13 | E162: 0.14 | F162: 0.2 | G162: 0.13
A163: 0.04 | B163: 0.33 | C163: 0.11 | D163: 0.04 | E163: 0.47 | F163: 0.22 | G163: 0.09
A164: 0.32 | B164: 0.14 | C164: 0 | D164: 0.32 | E164: 0.07 | F164: 0.07 | G164: 0.06
A165: 0.14 | B165: 0.16 | C165: 0.01 | D165: 0.14 | E165: 0.16 | F165: 0.13 | G165: 0.12
A166: 0.14 | B166: 0.4 | C166: 0.04 | D166: 0.14 | E166: 0.14 | F166: 0.11 | G166: 0.05
A167: 0.08 | B167: 0.18 | C167: 0.02 | D167: 0.08 | E167: 0.26 | F167: 0.13 | G167: 0.04
A168: 0.12 | B168: 0.2 | C168: 0.04 | D168: 0.12 | E168: 0.26 | F168: 0.48 | G168: 0.12
A169: 0.07 | B169: 0.03 | C169: 0.06 | D169: 0.07 | E169: 0.13 | F169: 0.28 | G169: 0
A170: 0.16 | B170: 0.11 | C170: 0.01 | D170: 0.16 | E170: 0.08 | F170: 0.21 | G170: 0.03
A171: 0.17 | B171: 0.08 | C171: 0.03 | D171: 0.17 | E171: 0.28 | F171: 0.18 | G171: 0.03
A172: 0.40 | B172: 0.22 | C172: 0.03 | D172: 0.4 | E172: 0.24 | F172: 0.43 | G172: 0.06
A173: 0.18 | B173: 0.01 | C173: 0.08 | D173: 0.18 | E173: 0.31 | F173: 0.51 | G173: 0.02
A174: 0.09 | B174: 0.02 | C174: 0 | D174: 0.09 | E174: 0.13 | F174: 0.12 | G174: 0.11
A175: 0.17 | B175: 0.22 | C175: 0.15 | D175: 0.17 | E175: 0.3 | F175: 0.11 | G175: 0.03
A176: 0.16 | B176: 0.07 | C176: 0.15 | D176: 0.16 | E176: 0.16 | F176: 0.1 | G176: 0.13
A177: 0.19 | B177: 0.1 | C177: 0.11 | D177: 0.19 | E177: 0.37 | F177: 0.26 | G177: 0.03
A178: 0.29 | B178: 0.12 | C178: 0.1 | D178: 0.29 | E178: 0.25 | F178: 0.15 | G178: 0.02
A179: 0.20 | B179: 0.07 | C179: 0.02 | D179: 0.2 | E179: 0.25 | F179: 0.07 | G179: 0.03
A180: 0.15 | B180: 0.13 | C180: 0.03 | D180: 0.15 | E180: 0.2 | F180: 0.17 | G180: 0.01
A181: 0.09 | B181: 0.09 | C181: 0.05 | D181: 0.09 | E181: 0.22 | F181: 0.2 | G181: 0.06
A182: 0.30 | B182: 0.03 | C182: 0.16 | D182: 0.3 | E182: 0.16 | F182: 0.03 | G182: 0.01
A183: 0.42 | B183: 0.09 | C183: 0.06 | D183: 0.42 | E183: 0.2 | F183: 0.19 | G183: 0.06
A184: 0.25 | B184: 0.09 | C184: 0.14 | D184: 0.25 | E184: 0.25 | F184: 0.1 | G184: 0.04
A185: 0.11 | B185: 0.34 | C185: 0.12 | D185: 0.11 | E185: 0.38 | F185: 0.11 | G185: 0.05
A186: 0.24 | B186: 0.05 | C186: 0.01 | D186: 0.24 | E186: 0.09 | F186: 0.11 | G186: 0.02
A187: 0.27 | B187: 0.18 | C187: 0.06 | D187: 0.27 | E187: 0.21 | F187: 0.19 | G187: 0.08
A188: 0.16 | B188: 0.09 | C188: 0.06 | D188: 0.16 | E188: 0.27 | F188: 0.11 | G188: 0.07
A189: 0.23 | B189: 0.04 | C189: 0.04 | D189: 0.23 | E189: 0.09 | F189: 0.14 | G189: 0.01
A190: 0.28 | B190: 0.07 | C190: 0.05 | D190: 0.28 | E190: 0.14 | F190: 0.14 | G190: 0.09
A191: 0.09 | B191: 0.2 | C191: 0.04 | D191: 0.09 | E191: 0.1 | F191: 0.11 | G191: 0.04
A192: 0.17 | B192: 0.1 | C192: 0.01 | D192: 0.17 | E192: 0.45 | F192: 0.12 | G192: 0.06
A193: 0.20 | B193: 0.11 | C193: 0.09 | D193: 0.2 | E193: 0.28 | F193: 0.19 | G193: 0.02
A194: 0.14 | B194: 0.13 | C194: 0.02 | D194: 0.14 | E194: 0.45 | F194: 0.21 | G194: 0.09
A195: 0.20 | B195: 0.11 | C195: 0.11 | D195: 0.2 | E195: 0.21 | F195: 0.29 | G195: 0.03
A196: 0.19 | B196: 0.19 | C196: 0.04 | D196: 0.19 | E196: 0.36 | F196: 0.14 | G196: 0.11
A197: 0.07 | B197: 0.19 | C197: 0.08 | D197: 0.07 | E197: 0.1 | F197: 0.19 | G197: 0.12
A198: 0.23 | B198: 0.08 | C198: 0.08 | D198: 0.23 | E198: 0.27 | F198: 0.21 | G198: 0.1
A199: 0.06 | B199: 0.1 | C199: 0.1 | D199: 0.06 | E199: 0.22 | F199: 0.21 | G199: 0.07
A200: 0.14 | B200: 0.15 | C200: 0.1 | D200: 0.14 | E200: 0.43 | F200: 0.07 | G200: 0.12
... 8654 more rows

Sheet ACE TUB PC
A1: Ace Tub PC/Total | B1: Bull 1 | C1: Bull 2 | D1: Bull 3 | E1: Bull 4 | F1: Bull 5 | G1: Bull 6
A2: 0.09 | B2: 0 | C2: 0.29 | D2: 0.09 | E2: 0.44 | F2: 0.4 | G2: 0 | I2: Bins | J2: 0.05 | K2: 0.15 | L2: 0.25 | M2: 0.35 | N2: 0.45 | O2: 0.55 | P2: 0.65 | Q2: 0.75 | R2: 0.85 | S2: 0.95
A3: 0.33 | B3: 0 | C3: 0.09 | D3: 0.33 | E3: 0.35 | F3: 0.34 | G3: 0.07 | J3: 0 | K3: .1-.2 | L3: .2-.3 | M3: .3-.4 | N3: .4-.5 | O3: .5-.6 | P3: .6-.7 | Q3: .7-.8 | R3: .8-.9 | S3: .9-1
A4: 0.30 | B4: 0 | C4: 0.2 | D4: 0.3 | E4: 0.36 | F4: 0.35 | G4: 0.26 | J4: =(COUNTIFS(A:A, "<=0.1")) -> 2262 | K4: =COUNTIFS(A:A,">0.1",A:A,"<=0.2") -> 2879 | L4: =COUNTIFS(A:A,">0.2",A:A,"<=0.3") -> 1759 | M4: =COUNTIFS(A:A,">0.3",A:A,"<=0.4") -> 1099 | N4: =COUNTIFS(A:A,">0.4",A:A,"<=0.5") -> 521 | O4: =COUNTIFS(A:A,">0.5",A:A,"<=0.6") -> 174 | P4: =COUNTIFS(A:A,">0.6",A:A,"<=0.7") -> 94 | Q4: =COUNTIFS(A:A,">0.7",A:A,"<=0.8") -> 28 | R4: =COUNTIFS(A:A,">0.8",A:A,"<=0.9") -> 19 | S4: =COUNTIFS(A:A,">0.9",A:A,"<=1") -> 17 | T4: =SUM(J4:S4) -> 8852
A5: 0.29 | B5: 0.5 | C5: 0.15 | D5: 0.29 | E5: 0.42 | F5: 0.4 | G5: 0.04 | J5: =J4/$T$4 -> 26% | K5: =K4/$T$4 -> 33% | L5: 20% | M5: 12% | N5: 6% | O5: 2% | P5: 1% | Q5: 0% | R5: 0% | S5: 0%
A6: 0.41 | B6: 0.4 | C6: 0.14 | D6: 0.41 | E6: 0.4 | F6: 0.41 | G6: 0.08
A7: 0.32 | B7: 0.8 | C7: 0.21 | D7: 0.32 | E7: 0.48 | F7: 0.19 | G7: 0.02
A8: 0.00 | B8: 0 | C8: 0.2 | D8: 0 | E8: 0.36 | F8: 0.41 | G8: 0.16 | I8: Bull 1 | J8: 0.05 | K8: 0.15 | L8: 0.25 | M8: 0.35 | N8: 0.45 | O8: 0.55 | P8: 0.65 | Q8: 0.75 | R8: 0.85 | S8: 0.95
A9: 0.24 | B9: 0.5 | C9: 0.31 | D9: 0.24 | E9: 0.52 | F9: 0.32 | G9: 0.21 | J9: =(COUNTIFS(B:B, "<=0.1")) -> 199 | K9: =COUNTIFS(B:B,">0.1",B:B,"<=0.2") -> 234 | L9: =COUNTIFS(B:B,">0.2",B:B,"<=0.3") -> 183 | M9: =COUNTIFS(B:B,">0.3",B:B,"<=0.4") -> 125 | N9: =COUNTIFS(B:B,">0.4",B:B,"<=0.5") -> 71 | O9: =COUNTIFS(B:B,">0.5",B:B,"<=0.6") -> 38 | P9: =COUNTIFS(B:B,">0.6",B:B,"<=0.7") -> 14 | Q9: =COUNTIFS(B:B,">0.7",B:B,"<=0.8") -> 6 | R9: =COUNTIFS(B:B,">0.8",B:B,"<=0.9") -> 4 | S9: =COUNTIFS(B:B,">0.9",B:B,"<=1") -> 2 | T9: =SUM(J9:S9) -> 876
A10: 0.22 | B10: 0.25 | C10: 0.18 | D10: 0.22 | E10: 0.41 | F10: 0.27 | G10: 0.11 | J10: =J9/$T$9 -> 23% | K10: =K9/$T$9 -> 27% | L10: 21% | M10: 14% | N10: 8% | O10: 4% | P10: 2% | Q10: 1% | R10: 0% | S10: 0%
A11: 0.19 | B11: 0.13 | C11: 0.25 | D11: 0.19 | E11: 0.2 | F11: 0.37 | G11: 0.09
A12: 0.14 | B12: 0.19 | C12: 0.22 | D12: 0.14 | E12: 0.35 | F12: 0.37 | G12: 0
A13: 0.60 | B13: 0.17 | C13: 0.16 | D13: 0.6 | E13: 0.46 | F13: 0.35 | G13: 0.02 | I13: Bull 2 | J13: 0.05 | K13: 0.15 | L13: 0.25 | M13: 0.35 | N13: 0.45 | O13: 0.55 | P13: 0.65 | Q13: 0.75 | R13: 0.85 | S13: 0.95
A14: 0.27 | B14: 0.04 | C14: 0.13 | D14: 0.27 | E14: 0.37 | F14: 0.29 | G14: 0.04 | J14: =(COUNTIFS(C:C, "<=0.1")) -> 61 | K14: =COUNTIFS(C:C,">0.1",C:C,"<=0.2") -> 129 | L14: =COUNTIFS(C:C,">0.2",C:C,"<=0.3") -> 141 | M14: =COUNTIFS(C:C,">0.3",C:C,"<=0.4") -> 110 | N14: =COUNTIFS(C:C,">0.4",C:C,"<=0.5") -> 92 | O14: =COUNTIFS(C:C,">0.5",C:C,"<=0.6") -> 61 | P14: =COUNTIFS(C:C,">0.6",C:C,"<=0.7") -> 26 | Q14: =COUNTIFS(C:C,">0.7",C:C,"<=0.8") -> 2 | R14: =COUNTIFS(C:C,">0.8",C:C,"<=0.9") -> 2 | S14: =COUNTIFS(C:C,">0.9",C:C,"<=1") -> 0 | T14: =SUM(J14:S14) -> 624
A15: 0.63 | B15: 0.03 | C15: 0.2 | D15: 0.63 | E15: 0.29 | F15: 0.35 | G15: 0.15 | J15: =J14/$T$14 -> 10% | K15: =K14/$T$14 -> 21% | L15: 23% | M15: 18% | N15: 15% | O15: 10% | P15: 4% | Q15: 0% | R15: 0% | S15: 0%
A16: 0.14 | B16: 0.13 | C16: 0.13 | D16: 0.14 | E16: 0.42 | F16: 0.42 | G16: 0.02
A17: 0.35 | B17: 0.5 | C17: 0.13 | D17: 0.35 | E17: 0.27 | F17: 0.38 | G17: 0.27
A18: 0.26 | B18: 0.22 | C18: 0.14 | D18: 0.26 | E18: 0.26 | F18: 0.35 | G18: 0.04 | I18: Bull 3 | J18: 0.05 | K18: 0.15 | L18: 0.25 | M18: 0.35 | N18: 0.45 | O18: 0.55 | P18: 0.65 | Q18: 0.75 | R18: 0.85 | S18: 0.95
A19: 0.51 | B19: 0 | C19: 0.15 | D19: 0.51 | E19: 0.39 | F19: 0.33 | G19: 0.25 | J19: =(COUNTIFS(D:D, "<=0.1")) -> 61 | K19: =COUNTIFS(D:D,">0.1",D:D,"<=0.2") -> 109 | L19: =COUNTIFS(D:D,">0.2",D:D,"<=0.3") -> 140 | M19: =COUNTIFS(D:D,">0.3",D:D,"<=0.4") -> 125 | N19: =COUNTIFS(D:D,">0.4",D:D,"<=0.5") -> 66 | O19: =COUNTIFS(D:D,">0.5",D:D,"<=0.6") -> 37 | P19: =COUNTIFS(D:D,">0.6",D:D,"<=0.7") -> 27 | Q19: =COUNTIFS(D:D,">0.7",D:D,"<=0.8") -> 16 | R19: =COUNTIFS(D:D,">0.8",D:D,"<=0.9") -> 4 | S19: =COUNTIFS(D:D,">0.9",D:D,"<=1") -> 3 | T19: =SUM(J19:S19) -> 588
A20: 0.05 | B20: 0 | C20: 0.24 | D20: 0.05 | E20: 0.3 | F20: 0.26 | G20: 0.09 | J20: =J19/$T$19 -> 10% | K20: =K19/$T$19 -> 19% | L20: 24% | M20: 21% | N20: 11% | O20: 6% | P20: 5% | Q20: 3% | R20: 1% | S20: 1%
A21: 0.31 | B21: 0 | C21: 0.15 | D21: 0.31 | E21: 0.33 | F21: 0.16 | G21: 0
A22: 0.03 | B22: 0 | C22: 0.2 | D22: 0.03 | E22: 0.31 | F22: 0.24 | G22: 0.08
A23: 0.24 | B23: 0 | C23: 0.18 | D23: 0.24 | E23: 0.37 | F23: 0.1 | G23: 0 | I23: Bull 4 | J23: 0.05 | K23: 0.15 | L23: 0.25 | M23: 0.35 | N23: 0.45 | O23: 0.55 | P23: 0.65 | Q23: 0.75 | R23: 0.85 | S23: 0.95
A24: 0.25 | B24: 0.57 | C24: 0.14 | D24: 0.25 | E24: 0.29 | F24: 0.17 | G24: 0.15 | J24: =(COUNTIFS(E:E, "<=0.1")) -> 9 | K24: =COUNTIFS(E:E,">0.1",E:E,"<=0.2") -> 23 | L24: =COUNTIFS(E:E,">0.2",E:E,"<=0.3") -> 80 | M24: =COUNTIFS(E:E,">0.3",E:E,"<=0.4") -> 123 | N24: =COUNTIFS(E:E,">0.4",E:E,"<=0.5") -> 57 | O24: =COUNTIFS(E:E,">0.5",E:E,"<=0.6") -> 13 | P24: =COUNTIFS(E:E,">0.6",E:E,"<=0.7") -> 2 | Q24: =COUNTIFS(E:E,">0.7",E:E,"<=0.8") -> 0 | R24: =COUNTIFS(E:E,">0.8",E:E,"<=0.9") -> 0 | S24: =COUNTIFS(E:E,">0.9",E:E,"<=1") -> 0 | T24: =SUM(J24:S24) -> 307
A25: 0.10 | B25: 0.05 | C25: 0.21 | D25: 0.1 | E25: 0.44 | F25: 0.53 | G25: 0.2 | J25: =J24/$T$24 -> 3% | K25: =K24/$T$24 -> 7% | L25: =L24/$T$24 -> 26% | M25: 40% | N25: 19% | O25: 4% | P25: 1% | Q25: 0% | R25: 0% | S25: 0%
A26: 0.08 | B26: 0.24 | C26: 0.18 | D26: 0.08 | E26: 0.37 | F26: 0.48 | G26: 0.09
A27: 0.43 | B27: 0.36 | C27: 0.19 | D27: 0.43 | E27: 0.25 | F27: 0.19 | G27: 0.42
A28: 0.16 | B28: 0.43 | C28: 0.22 | D28: 0.16 | E28: 0.31 | F28: 0.37 | G28: 0.04 | I28: Bull 5 | J28: 0.05 | K28: 0.15 | L28: 0.25 | M28: 0.35 | N28: 0.45 | O28: 0.55 | P28: 0.65 | Q28: 0.75 | R28: 0.85 | S28: 0.95
A29: 0.11 | B29: 0.05 | C29: 0.16 | D29: 0.11 | E29: 0.11 | F29: 0.26 | G29: 0.2 | J29: =(COUNTIFS(F:F, "<=0.1")) -> 3 | K29: =COUNTIFS(F:F,">0.1",F:F,"<=0.2") -> 19 | L29: =COUNTIFS(F:F,">0.2",F:F,"<=0.3") -> 84 | M29: =COUNTIFS(F:F,">0.3",F:F,"<=0.4") -> 140 | N29: =COUNTIFS(F:F,">0.4",F:F,"<=0.5") -> 68 | O29: =COUNTIFS(F:F,">0.5",F:F,"<=0.6") -> 23 | P29: =COUNTIFS(F:F,">0.6",F:F,"<=0.7") -> 3 | Q29: =COUNTIFS(F:F,">0.7",F:F,"<=0.8") -> 0 | R29: =COUNTIFS(F:F,">0.8",F:F,"<=0.9") -> 0 | S29: =COUNTIFS(F:F,">0.9",F:F,"<=1") -> 0 | T29: =SUM(J29:S29) -> 340
A30: 0.34 | B30: 0 | C30: 0.08 | D30: 0.34 | E30: 0.32 | F30: 0.37 | G30: 0.14 | J30: =J29/$T$29 -> 1% | K30: =K29/$T$29 -> 6% | L30: 25% | M30: 41% | N30: 20% | O30: 7% | P30: 1% | Q30: 0% | R30: 0% | S30: 0%
A31: 0.28 | B31: 0.14 | C31: 0.18 | D31: 0.28 | E31: 0.29 | F31: 0.31 | G31: 0.26
A32: 0.36 | B32: 0.02 | C32: 0.15 | D32: 0.36 | E32: 0.38 | F32: 0.38 | G32: 0.09
A33: 0.27 | B33: 0 | C33: 0.07 | D33: 0.27 | E33: 0.29 | F33: 0.17 | G33: 0 | I33: Bull 6 | J33: 0.05 | K33: 0.15 | L33: 0.25 | M33: 0.35 | N33: 0.45 | O33: 0.55 | P33: 0.65 | Q33: 0.75 | R33: 0.85 | S33: 0.95
A34: 0.14 | B34: 0.17 | C34: 0.03 | D34: 0.14 | E34: 0.29 | F34: 0.28 | G34: 0.21 | J34: =(COUNTIFS(G:G, "<=0.1")) -> 92 | K34: =COUNTIFS(G:G,">0.1",G:G,"<=0.2") -> 85 | L34: =COUNTIFS(G:G,">0.2",G:G,"<=0.3") -> 62 | M34: =COUNTIFS(G:G,">0.3",G:G,"<=0.4") -> 47 | N34: =COUNTIFS(G:G,">0.4",G:G,"<=0.5") -> 54 | O34: =COUNTIFS(G:G,">0.5",G:G,"<=0.6") -> 22 | P34: =COUNTIFS(G:G,">0.6",G:G,"<=0.7") -> 21 | Q34: =COUNTIFS(G:G,">0.7",G:G,"<=0.8") -> 27 | R34: =COUNTIFS(G:G,">0.8",G:G,"<=0.9") -> 14 | S34: =COUNTIFS(G:G,">0.9",G:G,"<=1") -> 5 | T34: =SUM(J34:S34) -> 429
A35: 0.47 | B35: 0 | C35: 0.12 | D35: 0.47 | E35: 0.34 | F35: 0.15 | G35: 0.1 | J35: =J34/$T$34 -> 21% | K35: =K34/$T$34 -> 20% | L35: 14% | M35: 11% | N35: 13% | O35: 5% | P35: 5% | Q35: 6% | R35: 3% | S35: 1%
A36: 0.56 | B36: 0 | C36: 0.12 | D36: 0.56 | E36: 0.36 | F36: 0.31 | G36: 0.84
A37: 0.12 | B37: 0.08 | C37: 0.11 | D37: 0.12 | E37: 0.37 | F37: 0.51 | G37: 0.22
A38: 0.38 | B38: 0.33 | C38: 0.2 | D38: 0.38 | E38: 0.33 | F38: 0.29 | G38: 0.12
A39: 0.16 | B39: 0.33 | C39: 0.15 | D39: 0.16 | E39: 0.23 | F39: 0.37 | G39: 0.16
A40: 0.22 | B40: 0.04 | C40: 0.26 | D40: 0.22 | E40: 0.29 | F40: 0.38 | G40: 0.13
A41: 0.23 | B41: 0.59 | C41: 0.16 | D41: 0.23 | E41: 0.36 | F41: 0.31 | G41: 0.13
A42: 0.15 | B42: 0.2 | C42: 0.12 | D42: 0.15 | E42: 0.33 | F42: 0.35 | G42: 0
A43: 0.08 | B43: 0.2 | C43: 0.21 | D43: 0.08 | E43: 0.59 | F43: 0.34 | G43: 0.42
A44: 0.73 | B44: 0 | C44: 0.14 | D44: 0.73 | E44: 0.39 | F44: 0.43 | G44: 0
A45: 0.16 | B45: 0 | C45: 0.06 | D45: 0.16 | E45: 0.22 | F45: 0.33 | G45: 0
A46: 0.41 | B46: 0 | C46: 0.37 | D46: 0.41 | E46: 0.39 | F46: 0.35 | G46: 0.27
A47: 0.19 | B47: 0 | C47: 0.11 | D47: 0.19 | E47: 0.25 | F47: 0.18 | G47: 0.23
A48: 0.18 | B48: 0.5 | C48: 0.18 | D48: 0.18 | E48: 0.31 | F48: 0.31 | G48: 0.17
A49: 0.31 | B49: 0.4 | C49: 0.07 | D49: 0.31 | E49: 0.2 | F49: 0.5 | G49: 0.16
A50: 0.63 | B50: 0.8 | C50: 0.14 | D50: 0.63 | E50: 0.51 | F50: 0.36 | G50: 0.58
A51: 0.37 | B51: 0 | C51: 0.14 | D51: 0.37 | E51: 0.36 | F51: 0.28 | G51: 0.03
A52: 0.47 | B52: 0.5 | C52: 0.29 | D52: 0.47 | E52: 0.39 | F52: 0.37 | G52: 0
A53: 0.48 | B53: 0.25 | C53: 0.13 | D53: 0.48 | E53: 0.25 | F53: 0.19 | G53: 0.33
A54: 0.14 | B54: 0.13 | C54: 0.27 | D54: 0.14 | E54: 0.44 | F54: 0.31 | G54: 0.45
A55: 0.19 | B55: 0.19 | C55: 0.11 | D55: 0.19 | E55: 0.34 | F55: 0.39 | G55: 0.11
A56: 0.39 | B56: 0.17 | C56: 0.1 | D56: 0.39 | E56: 0.32 | F56: 0.33 | G56: 0.42
A57: 0.27 | B57: 0.04 | C57: 0.13 | D57: 0.27 | E57: 0.41 | F57: 0.38 | G57: 0.05
A58: 0.29 | B58: 0.03 | C58: 0.16 | D58: 0.29 | E58: 0.36 | F58: 0.55 | G58: 0.61
A59: 0.13 | B59: 0.13 | C59: 0.24 | D59: 0.13 | E59: 0.32 | F59: 0.28 | G59: 0.06
A60: 0.39 | B60: 0.5 | C60: 0.08 | D60: 0.39 | E60: 0.46 | F60: 0.36 | G60: 0.03
A61: 0.23 | B61: 0.22 | C61: 0.25 | D61: 0.23 | E61: 0.36 | F61: 0.39 | G61: 0.41
A62: 0.07 | B62: 0 | C62: 0.16 | D62: 0.07 | E62: 0.22 | F62: 0.32 | G62: 0.26
A63: 0.18 | B63: 0 | C63: 0.16 | D63: 0.18 | E63: 0.31 | F63: 0.42 | G63: 0.03
A64: 0.16 | B64: 0 | C64: 0.09 | D64: 0.16 | E64: 0.17 | F64: 0.53 | G64: 0.12
A65: 0.31 | B65: 0 | C65: 0.15 | D65: 0.31 | E65: 0.11 | F65: 0.34 | G65: 0.38
A66: 0.03 | B66: 0 | C66: 0.15 | D66: 0.03 | E66: 0.46 | F66: 0.53 | G66: 0.27
A67: 0.38 | B67: 0.57 | C67: 0.08 | D67: 0.38 | E67: 0.29 | F67: 0.4 | G67: 0.46
A68: 0.36 | B68: 0.05 | C68: 0.06 | D68: 0.36 | E68: 0.31 | F68: 0.3 | G68: 0.12
A69: 0.20 | B69: 0.24 | C69: 0.16 | D69: 0.2 | E69: 0.35 | F69: 0.41 | G69: 0.33
A70: 0.26 | B70: 0.36 | C70: 0.1 | D70: 0.26 | E70: 0.24 | F70: 0.29 | G70: 0.03
A71: 0.37 | B71: 0.43 | C71: 0.12 | D71: 0.37 | E71: 0.07 | F71: 0.48 | G71: 0.08
A72: 0.41 | B72: 0.05 | C72: 0.1 | D72: 0.41 | E72: 0.44 | F72: 0.34 | G72: 0.02
A73: 0.14 | B73: 0 | C73: 0.11 | D73: 0.14 | E73: 0.39 | F73: 0.32 | G73: 0.03
A74: 0.21 | B74: 0.14 | C74: 0.23 | D74: 0.21 | E74: 0.37 | F74: 0.37 | G74: 0.06
A75: 0.47 | B75: 0.02 | C75: 0.17 | D75: 0.47 | E75: 0.07 | F75: 0.45 | G75: 0.23
A76: 0.23 | B76: 0 | C76: 0.19 | D76: 0.23 | E76: 0.08 | F76: 0.28 | G76: 0.07
A77: 0.28 | B77: 0.17 | C77: 0.2 | D77: 0.28 | E77: 0.35 | F77: 0.26 | G77: 0.24
A78: 0.38 | B78: 0 | C78: 0.1 | D78: 0.38 | E78: 0.27 | F78: 0.32 | G78: 0.06
A79: 0.22 | B79: 0 | C79: 0.04 | D79: 0.22 | E79: 0.52 | F79: 0.16 | G79: 0.1
A80: 0.37 | B80: 0.08 | C80: 0.07 | D80: 0.37 | E80: 0.47 | F80: 0.32 | G80: 0.16
A81: 0.40 | B81: 0.33 | C81: 0.19 | D81: 0.4 | E81: 0.39 | F81: 0.35 | G81: 0.28
A82: 0.19 | B82: 0.33 | C82: 0.14 | D82: 0.19 | E82: 0.3 | F82: 0.27 | G82: 0.12
A83: 0.27 | B83: 0.04 | C83: 0.1 | D83: 0.27 | E83: 0.28 | F83: 0.39 | G83: 0.12
A84: 0.25 | B84: 0.59 | C84: 0.1 | D84: 0.25 | E84: 0.34 | F84: 0.48 | G84: 0.05
A85: 0.14 | B85: 0.2 | C85: 0.06 | D85: 0.14 | E85: 0.24 | F85: 0.35 | G85: 0.08
A86: 0.33 | B86: 0.2 | C86: 0.13 | D86: 0.33 | E86: 0.07 | F86: 0.29 | G86: 0.14
A87: 0.00 | B87: 0 | C87: 0.09 | D87: 0 | E87: 0.24 | F87: 0.39 | G87: 0.17
A88: 0.33 | B88: 0.1 | C88: 0.13 | D88: 0.33 | E88: 0.37 | F88: 0.44 | G88: 0.1
A89: 0.35 | B89: 0 | C89: 0.38 | D89: 0.35 | E89: 0.48 | F89: 0.25 | G89: 0.11
A90: 0.00 | B90: 0.33 | C90: 0.13 | D90: 0 | E90: 0.38 | F90: 0.22 | G90: 0.07
A91: 0.13 | B91: 0.02 | C91: 0.2 | D91: 0.13 | E91: 0.32 | F91: 0.32 | G91: 0.07
A92: 0.24 | B92: 0.56 | C92: 0.18 | D92: 0.24 | E92: 0.17 | F92: 0.26 | G92: 0.2
A93: 0.08 | B93: 0 | C93: 0.08 | D93: 0.08 | E93: 0.37 | F93: 0.25 | G93: 0.23
A94: 0.35 | B94: 0.18 | C94: 0.09 | D94: 0.35 | E94: 0.34 | F94: 0.33 | G94: 0.12
A95: 0.00 | B95: 0 | C95: 0.3 | D95: 0 | E95: 0.19 | F95: 0.24 | G95: 0.1
A96: 0.20 | B96: 0.19 | C96: 0.28 | D96: 0.2 | E96: 0.4 | F96: 0.24 | G96: 0.14
A97: 0.30 | B97: 0.3 | C97: 0.16 | D97: 0.3 | E97: 0.34 | F97: 0.32 | G97: 0.09
A98: 0.00 | B98: 0.02 | C98: 0.15 | D98: 0 | E98: 0.32 | F98: 0.33 | G98: 0.21
A99: 0.39 | B99: 0.31 | C99: 0.07 | D99: 0.39 | E99: 0.25 | F99: 0.36 | G99: 0.33
A100: 0.22 | B100: 0.13 | C100: 0.13 | D100: 0.22 | E100: 0.31 | F100: 0.28 | G100: 0.16
A101: 0.22 | B101: 0 | C101: 0.17 | D101: 0.22 | E101: 0.32 | F101: 0.23 | G101: 0.18
A102: 0.13 | B102: 0.14 | C102: 0.17 | D102: 0.13 | E102: 0.41 | F102: 0.17 | G102: 0.16
A103: 0.00 | B103: 0.06 | C103: 0.09 | D103: 0 | E103: 0.2 | F103: 0.3 | G103: 0.12
A104: 0.04 | B104: 0.09 | C104: 0.26 | D104: 0.04 | E104: 0.34 | F104: 0.03 | G104: 0.1
A105: 0.31 | B105: 0.84 | C105: 0.16 | D105: 0.31 | E105: 0.19 | F105: 0.25 | G105: 0.09
A106: 0.16 | B106: 0.09 | C106: 0.05 | D106: 0.16 | E106: 0.37 | F106: 0.29 | G106: 0.18
A107: 0.40 | B107: 0 | C107: 0.2 | D107: 0.4 | E107: 0.32 | F107: 0.38 | G107: 0.05
A108: 0.22 | B108: 0.02 | C108: 0.09 | D108: 0.22 | E108: 0.31 | F108: 0.36 | G108: 0.26
A109: 0.30 | B109: 0.27 | C109: 0.12 | D109: 0.3 | E109: 0.41 | F109: 0.3 | G109: 0.21
A110: 0.07 | B110: 0.04 | C110: 0.1 | D110: 0.07 | E110: 0.34 | F110: 0.3 | G110: 0.04
A111: 0.20 | B111: 0 | C111: 0.13 | D111: 0.2 | E111: 0.37 | F111: 0.39 | G111: 0.03
A112: 0.07 | B112: 0.08 | C112: 0.18 | D112: 0.07 | E112: 0.3 | F112: 0.28 | G112: 0.43
A113: 0.05 | B113: 0.5 | C113: 0.12 | D113: 0.05 | E113: 0.23 | F113: 0.24 | G113: 0.09
A114: 0.12 | B114: 0 | C114: 0.05 | D114: 0.12 | E114: 0.12 | F114: 0.4 | G114: 0.21
A115: 0.20 | B115: 0 | C115: 0.07 | D115: 0.2 | E115: 0.2 | F115: 0.34 | G115: 0.15
A116: 0.27 | B116: 0.09 | C116: 0.16 | D116: 0.27 | E116: 0.36 | F116: 0.33 | G116: 0.11
A117: 0.33 | B117: 0.05 | C117: 0.17 | D117: 0.33 | E117: 0.34 | F117: 0.4 | G117: 0.15
A118: 0.44 | B118: 0.29 | C118: 0.02 | D118: 0.44 | E118: 0.42 | F118: 0.45 | G118: 0.25
A119: 0.27 | B119: 0.09 | C119: 0.05 | D119: 0.27 | E119: 0.22 | F119: 0.33 | G119: 0.2
A120: 0.41 | B120: 0.19 | C120: 0 | D120: 0.41 | E120: 0.31 | F120: 0.34 | G120: 0.12
A121: 0.20 | B121: 0.29 | C121: 0.05 | D121: 0.2 | E121: 0.26 | F121: 0.42 | G121: 0.22
A122: 0.33 | B122: 0.35 | C122: 0.09 | D122: 0.33 | E122: 0.35 | F122: 0.36 | G122: 0.23
A123: 0.10 | B123: 0 | C123: 0.1 | D123: 0.1 | E123: 0.29 | F123: 0.3 | G123: 0.06
A124: 0.04 | B124: 0 | C124: 0.08 | D124: 0.04 | E124: 0.28 | F124: 0.35 | G124: 0.14
A125: 0.26 | B125: 0.14 | C125: 0.1 | D125: 0.26 | E125: 0.27 | F125: 0.28 | G125: 0.1
A126: 0.47 | B126: 0.13 | C126: 0.09 | D126: 0.47 | E126: 0.25 | F126: 0.28 | G126: 0.08
A127: 0.61 | B127: 0.17 | C127: 0.21 | D127: 0.61 | E127: 0.33 | F127: 0.38 | G127: 0.07
A128: 0.48 | B128: 0.53 | C128: 0.09 | D128: 0.48 | E128: 0.25 | F128: 0.33 | G128: 0.38
A129: 0.00 | B129: 0.3 | C129: 0.13 | D129: 0 | E129: 0.14 | F129: 0.25 | G129: 0.18
A130: 0.09 | B130: 0.4 | C130: 0.17 | D130: 0.09 | E130: 0.26 | F130: 0.32 | G130: 0.13
A131: 0.26 | B131: 0.55 | C131: 0.27 | D131: 0.26 | E131: 0.41 | F131: 0.38 | G131: 0.09
A132: 0.24 | B132: 0.12 | C132: 0.18 | D132: 0.24 | E132: 0.31 | F132: 0.31 | G132: 0.21
A133: 0.26 | B133: 0.07 | C133: 0.19 | D133: 0.26 | E133: 0.28 | F133: 0.25 | G133: 0.37
A134: 0.12 | B134: 0.14 | C134: 0.32 | D134: 0.12 | E134: 0.23 | F134: 0.3 | G134: 0.18
A135: 0.10 | B135: 0.08 | C135: 0.16 | D135: 0.1 | E135: 0.3 | F135: 0.33 | G135: 0.06
A136: 0.28 | B136: 0.02 | C136: 0.15 | D136: 0.28 | E136: 0.33 | F136: 0.09 | G136: 0.13
A137: 0.31 | B137: 0.08 | C137: 0.35 | D137: 0.31 | E137: 0.35 | F137: 0.32 | G137: 0.22
A138: 0.61 | B138: 0.26 | C138: 0.11 | D138: 0.61 | E138: 0.35 | F138: 0.33 | G138: 0.18
A139: 0.20 | B139: 0.06 | C139: 0.15 | D139: 0.2 | E139: 0.36 | F139: 0.29 | G139: 0.15
A140: 0.50 | B140: 0.44 | C140: 0.21 | D140: 0.5 | E140: 0.31 | F140: 0.43 | G140: 0.08
A141: 0.09 | B141: 0.1 | C141: 0.36 | D141: 0.09 | E141: 0.39 | F141: 0.23 | G141: 0.08
A142: 0.17 | B142: 0.52 | C142: 0.13 | D142: 0.17 | E142: 0.36 | F142: 0.3 | G142: 0.11
A143: 0.42 | B143: 0.29 | C143: 0.3 | D143: 0.42 | E143: 0.17 | F143: 0.23 | G143: 0.11
A144: 0.06 | B144: 0.13 | C144: 0.16 | D144: 0.06 | E144: 0.22 | F144: 0.29 | G144: 0.06
A145: 0.42 | B145: 0.07 | C145: 0.11 | D145: 0.42 | E145: 0.28 | F145: 0.36 | G145: 0.03
A146: 0.38 | B146: 0.43 | C146: 0.14 | D146: 0.38 | E146: 0.56 | F146: 0.25 | G146: 0.17
A147: 0.15 | B147: 0.38 | C147: 0.19 | D147: 0.15 | E147: 0.36 | F147: 0.15 | G147: 0.13
A148: 0.18 | B148: 0 | C148: 0.19 | D148: 0.18 | E148: 0.35 | F148: 0.37 | G148: 0.49
A149: 0.39 | B149: 0.65 | C149: 0.15 | D149: 0.39 | E149: 0.26 | F149: 0.37 | G149: 0.12
A150: 0.49 | B150: 0.3 | C150: 0.23 | D150: 0.49 | E150: 0.34 | F150: 0.38 | G150: 0.18
A151: 0.23 | B151: 0.1 | C151: 0.26 | D151: 0.23 | E151: 0.09 | F151: 0.28 | G151: 0.06
A152: 0.42 | B152: 0.18 | C152: 0.16 | D152: 0.42 | E152: 0.25 | F152: 0.3 | G152: 0.26
A153: 0.37 | B153: 0.54 | C153: 0.19 | D153: 0.37 | E153: 0.34 | F153: 0.18 | G153: 0.21
A154: 0.29 | B154: 0.13 | C154: 0.38 | D154: 0.29 | E154: 0.35 | F154: 0.32 | G154: 0.05
A155: 0.18 | B155: 0.06 | C155: 0.11 | D155: 0.18 | E155: 0.32 | F155: 0.28 | G155: 0.05
A156: 0.39 | B156: 0.32 | C156: 0.19 | D156: 0.39 | E156: 0.26 | F156: 0.32 | G156: 0.1
A157: 0.16 | B157: 0.06 | C157: 0.32 | D157: 0.16 | E157: 0.43 | F157: 0.26 | G157: 0.89
A158: 0.18 | B158: 0.13 | C158: 0.24 | D158: 0.18 | E158: 0.24 | F158: 0.29 | G158: 0.35
A159: 0.46 | B159: 0.25 | C159: 0.15 | D159: 0.46 | E159: 0.24 | F159: 0.27 | G159: 0.32
A160: 0.40 | B160: 0.08 | C160: 0.26 | D160: 0.4 | E160: 0.03 | F160: 0.29 | G160: 0.46
A161: 0.15 | B161: 0.2 | C161: 0.15 | D161: 0.15 | E161: 0.34 | F161: 0.2 | G161: 0.75
A162: 0.46 | B162: 0.06 | C162: 0.18 | D162: 0.46 | E162: 0.31 | F162: 0.26 | G162: 0.55
A163: 0.11 | B163: 0.13 | C163: 0.14 | D163: 0.11 | E163: 0.31 | F163: 0.23 | G163: 0.33
A164: 0.30 | B164: 0.08 | C164: 0.23 | D164: 0.3 | E164: 0.24 | F164: 0.35 | G164: 0.44
A165: 0.21 | B165: 0.32 | C165: 0.37 | D165: 0.21 | E165: 0.34 | F165: 0.31 | G165: 0.48
A166: 0.29 | B166: 0.01 | C166: 0.23 | D166: 0.29 | E166: 0.42 | F166: 0.32 | G166: 0.77
A167: 0.11 | B167: 0.16 | C167: 0.2 | D167: 0.11 | E167: 0.29 | F167: 0.32 | G167: 0.46
A168: 0.21 | B168: 0.23 | C168: 0.19 | D168: 0.21 | E168: 0.14 | F168: 0.35 | G168: 0.3
A169: 0.62 | B169: 0.21 | C169: 0.18 | D169: 0.62 | E169: 0.26 | F169: 0.27 | G169: 0.5
A170: 0.31 | B170: 0.16 | C170: 0.52 | D170: 0.31 | E170: 0.35 | F170: 0.28 | G170: 0.62
A171: 0.24 | B171: 0.09 | C171: 0.12 | D171: 0.24 | E171: 0.41 | F171: 0.3 | G171: 0.91
A172: 0.21 | B172: 0.37 | C172: 0.16 | D172: 0.21 | E172: 0.34 | F172: 0.15 | G172: 0.67
A173: 0.31 | B173: 0.07 | C173: 0.28 | D173: 0.31 | E173: 0.34 | F173: 0.28 | G173: 0.41
A174: 0.05 | B174: 0.49 | C174: 0.21 | D174: 0.05 | E174: 0.41 | F174: 0.34 | G174: 0.54
A175: 0.42 | B175: 0.2 | C175: 0.14 | D175: 0.42 | E175: 0.24 | F175: 0.29 | G175: 0.71
A176: 0.40 | B176: 0.61 | C176: 0.14 | D176: 0.4 | E176: 0.32 | F176: 0.4 | G176: 0.18
A177: 0.20 | B177: 0.31 | C177: 0.02 | D177: 0.2 | E177: 0.19 | F177: 0.23 | G177: 0.5
A178: 0.29 | B178: 0.3 | C178: 0.11 | D178: 0.29 | E178: 0.38 | F178: 0.32 | G178: 0.53
A179: 0.25 | B179: 0.89 | C179: 0.28 | D179: 0.25 | E179: 0.34 | F179: 0.22 | G179: 0.62
A180: 0.21 | B180: 0.25 | C180: 0.08 | D180: 0.21 | E180: 0.38 | F180: 0.32 | G180: 0.49
A181: 0.14 | B181: 0.23 | C181: 0.19 | D181: 0.14 | E181: 0.3 | F181: 0.47 | G181: 0.51
A182: 0.07 | B182: 0.24 | C182: 0.42 | D182: 0.07 | E182: 0.27 | F182: 0.36 | G182: 0.76
A183: 0.11 | B183: 0.12 | C183: 0.09 | D183: 0.11 | E183: 0.34 | F183: 0.3 | G183: 0.77
A184: 0.12 | B184: 0.22 | C184: 0.11 | D184: 0.12 | E184: 0.36 | F184: 0.38 | G184: 0.38
A185: 0.30 | B185: 0.22 | C185: 0.15 | D185: 0.3 | E185: 0.28 | F185: 0.48 | G185: 0.89
A186: 0.43 | B186: 0.09 | C186: 0.14 | D186: 0.43 | E186: 0.45 | F186: 0.33 | G186: 0.82
A187: 0.36 | B187: 0.15 | C187: 0.07 | D187: 0.36 | E187: 0.27 | F187: 0.33 | G187: 0.31
A188: 0.20 | B188: 0.26 | C188: 0.57 | D188: 0.2 | E188: 0.33 | F188: 0.4 | G188: 0.37
A189: 0.22 | B189: 0.16 | C189: 0.13 | D189: 0.22 | E189: 0.66 | F189: 0.39 | G189: 0.75
A190: 0.32 | B190: 0.18 | C190: 0.05 | D190: 0.32 | E190: 0.28 | F190: 0.51 | G190: 0.45
A191: 0.00 | B191: 0.32 | C191: 0.04 | D191: 0 | E191: 0.36 | F191: 0.6 | G191: 0.41
A192: 0.21 | B192: 0.16 | C192: 0.26 | D192: 0.21 | E192: 0.26 | F192: 0.44 | G192: 0.45
A193: 0.58 | B193: 0.22 | C193: 0.21 | D193: 0.58 | E193: 0.33 | F193: 0.26 | G193: 0.52
A194: 0.25 | B194: 0.29 | C194: 0.09 | D194: 0.25 | E194: 0.19 | F194: 0.38 | G194: 0.25
A195: 0.29 | B195: 0.44 | C195: 0.01 | D195: 0.29 | E195: 0.21 | F195: 0.37 | G195: 0.38
A196: 0.28 | B196: 0.14 | C196: 0.02 | D196: 0.28 | E196: 0.24 | F196: 0.44 | G196: 0.66
A197: 0.00 | B197: 0.17 | C197: 0.04 | D197: 0 | E197: 0.29 | F197: 0.32 | G197: 0.07
A198: 0.20 | B198: 0.25 | C198: 0.32 | D198: 0.2 | E198: 0.29 | F198: 0.29 | G198: 0.2
A199: 0.31 | B199: 0.18 | C199: 0.06 | D199: 0.31 | E199: 0.36 | F199: 0.27 | G199: 0.41
A200: 0.04 | B200: 0.23 | C200: 0.18 | D200: 0.04 | E200: 0.24 | F200: 0.27 | G200: 0.39
... 8654 more rows

Sheet ACE TUB DC
A1: Ace Tub DC/Total | B1: Bull 1 | C1: Bull 2 | D1: Bull 3 | E1: Bull 4 | F1: Bull 5 | G1: Bull 6
A2: 0.23 | B2: 0.75 | C2: 0.71 | D2: 0.23 | E2: 0.4 | F2: 0.51 | G2: 0.97 | I2: Bins | J2: 0.05 | K2: 0.15 | L2: 0.25 | M2: 0.35 | N2: 0.45 | O2: 0.55 | P2: 0.65 | Q2: 0.75 | R2: 0.85 | S2: 0.95
A3: 0.57 | B3: 1 | C3: 0.49 | D3: 0.57 | E3: 0.41 | F3: 0.42 | G3: 0.35 | J3: 0 | K3: .1-.2 | L3: .2-.3 | M3: .3-.4 | N3: .4-.5 | O3: .5-.6 | P3: .6-.7 | Q3: .7-.8 | R3: .8-.9 | S3: .9-1
A4: 0.47 | B4: 1 | C4: 0.71 | D4: 0.47 | E4: 0.49 | F4: 0.46 | G4: 0.74 | J4: =(COUNTIFS(A:A, "<=0.1")) -> 116 | K4: =COUNTIFS(A:A,">0.1",A:A,"<=0.2") -> 81 | L4: =COUNTIFS(A:A,">0.2",A:A,"<=0.3") -> 147 | M4: =COUNTIFS(A:A,">0.3",A:A,"<=0.4") -> 502 | N4: =COUNTIFS(A:A,">0.4",A:A,"<=0.5") -> 985 | O4: =COUNTIFS(A:A,">0.5",A:A,"<=0.6") -> 1420 | P4: =COUNTIFS(A:A,">0.6",A:A,"<=0.7") -> 1872 | Q4: =COUNTIFS(A:A,">0.7",A:A,"<=0.8") -> 1863 | R4: =COUNTIFS(A:A,">0.8",A:A,"<=0.9") -> 1241 | S4: =COUNTIFS(A:A,">0.9",A:A,"<=1") -> 625 | T4: =SUM(J4:S4) -> 8852
A5: 0.57 | B5: 0.5 | C5: 0.84 | D5: 0.57 | E5: 0.37 | F5: 0.5 | G5: 0.96 | J5: =J4/$T$4 -> 1% | K5: =K4/$T$4 -> 1% | L5: 2% | M5: 6% | N5: 11% | O5: 16% | P5: 21% | Q5: 21% | R5: 14% | S5: 7%
A6: 0.48 | B6: 0.6 | C6: 0.8 | D6: 0.48 | E6: 0.41 | F6: 0.45 | G6: 0.87
A7: 0.45 | B7: 0.1 | C7: 0.63 | D7: 0.45 | E7: 0.4 | F7: 0.48 | G7: 0.98
A8: 0.67 | B8: 0.89 | C8: 0.77 | D8: 0.67 | E8: 0.49 | F8: 0.45 | G8: 0.61 | I8: Bull 1 | J8: 0.05 | K8: 0.15 | L8: 0.25 | M8: 0.35 | N8: 0.45 | O8: 0.55 | P8: 0.65 | Q8: 0.75 | R8: 0.85 | S8: 0.95
A9: 0.73 | B9: 0.5 | C9: 0.64 | D9: 0.73 | E9: 0.34 | F9: 0.52 | G9: 0.77 | J9: =(COUNTIFS(B:B, "<=0.1")) -> 18 | K9: =COUNTIFS(B:B,">0.1",B:B,"<=0.2") -> 26 | L9: =COUNTIFS(B:B,">0.2",B:B,"<=0.3") -> 33 | M9: =COUNTIFS(B:B,">0.3",B:B,"<=0.4") -> 68 | N9: =COUNTIFS(B:B,">0.4",B:B,"<=0.5") -> 84 | O9: =COUNTIFS(B:B,">0.5",B:B,"<=0.6") -> 117 | P9: =COUNTIFS(B:B,">0.6",B:B,"<=0.7") -> 159 | Q9: =COUNTIFS(B:B,">0.7",B:B,"<=0.8") -> 167 | R9: =COUNTIFS(B:B,">0.8",B:B,"<=0.9") -> 144 | S9: =COUNTIFS(B:B,">0.9",B:B,"<=1") -> 60 | T9: =SUM(J9:S9) -> 876
A10: 0.74 | B10: 0.5 | C10: 0.73 | D10: 0.74 | E10: 0.31 | F10: 0.44 | G10: 0.26 | J10: =J9/$T$9 -> 2% | K10: =K9/$T$9 -> 3% | L10: 4% | M10: 8% | N10: 10% | O10: 13% | P10: 18% | Q10: 19% | R10: 16% | S10: 7%
A11: 0.76 | B11: 0.88 | C11: 0.74 | D11: 0.76 | E11: 0.71 | F11: 0.45 | G11: 0.89
A12: 0.73 | B12: 0.81 | C12: 0.76 | D12: 0.73 | E12: 0.57 | F12: 0.48 | G12: 1
A13: 0.38 | B13: 0.67 | C13: 0.77 | D13: 0.38 | E13: 0.3 | F13: 0.49 | G13: 0.08 | I13: Bull 2 | J13: 0.05 | K13: 0.15 | L13: 0.25 | M13: 0.35 | N13: 0.45 | O13: 0.55 | P13: 0.65 | Q13: 0.75 | R13: 0.85 | S13: 0.95
A14: 0.70 | B14: 0.96 | C14: 0.58 | D14: 0.7 | E14: 0.46 | F14: 0.41 | G14: 0.94 | J14: =(COUNTIFS(C:C, "<=0.1")) -> 1 | K14: =COUNTIFS(C:C,">0.1",C:C,"<=0.2") -> 3 | L14: =COUNTIFS(C:C,">0.2",C:C,"<=0.3") -> 12 | M14: =COUNTIFS(C:C,">0.3",C:C,"<=0.4") -> 48 | N14: =COUNTIFS(C:C,">0.4",C:C,"<=0.5") -> 112 | O14: =COUNTIFS(C:C,">0.5",C:C,"<=0.6") -> 180 | P14: =COUNTIFS(C:C,">0.6",C:C,"<=0.7") -> 99 | Q14: =COUNTIFS(C:C,">0.7",C:C,"<=0.8") -> 95 | R14: =COUNTIFS(C:C,">0.8",C:C,"<=0.9") -> 57 | S14: =COUNTIFS(C:C,">0.9",C:C,"<=1") -> 17 | T14: =SUM(J14:S14) -> 624
A15: 0.36 | B15: 0.66 | C15: 0.71 | D15: 0.36 | E15: 0.48 | F15: 0.47 | G15: 0.46 | J15: =J14/$T$14 -> 0% | K15: =K14/$T$14 -> 0% | L15: 2% | M15: 8% | N15: 18% | O15: 29% | P15: 16% | Q15: 15% | R15: 9% | S15: 3%
A16: 0.44 | B16: 0.75 | C16: 0.78 | D16: 0.44 | E16: 0.39 | F16: 0.44 | G16: 0.02
A17: 0.57 | B17: 0.4 | C17: 0.82 | D17: 0.57 | E17: 0.48 | F17: 0.49 | G17: 0.73
A18: 0.69 | B18: 0.78 | C18: 0.85 | D18: 0.69 | E18: 0.49 | F18: 0.44 | G18: 0.94 | I18: Bull 3 | J18: 0.05 | K18: 0.15 | L18: 0.25 | M18: 0.35 | N18: 0.45 | O18: 0.55 | P18: 0.65 | Q18: 0.75 | R18: 0.85 | S18: 0.95
A19: 0.47 | B19: 0.67 | C19: 0.85 | D19: 0.47 | E19: 0.44 | F19: 0.47 | G19: 0.5 | J19: =(COUNTIFS(D:D, "<=0.1")) -> 11 | K19: =COUNTIFS(D:D,">0.1",D:D,"<=0.2") -> 21 | L19: =COUNTIFS(D:D,">0.2",D:D,"<=0.3") -> 23 | M19: =COUNTIFS(D:D,">0.3",D:D,"<=0.4") -> 43 | N19: =COUNTIFS(D:D,">0.4",D:D,"<=0.5") -> 68 | O19: =COUNTIFS(D:D,">0.5",D:D,"<=0.6") -> 112 | P19: =COUNTIFS(D:D,">0.6",D:D,"<=0.7") -> 142 | Q19: =COUNTIFS(D:D,">0.7",D:D,"<=0.8") -> 101 | R19: =COUNTIFS(D:D,">0.8",D:D,"<=0.9") -> 45 | S19: =COUNTIFS(D:D,">0.9",D:D,"<=1") -> 22 | T19: =SUM(J19:S19) -> 588
A20: 0.63 | B20: 0.5 | C20: 0.57 | D20: 0.63 | E20: 0.36 | F20: 0.52 | G20: 0.85 | J20: =J19/$T$19 -> 2% | K20: =K19/$T$19 -> 4% | L20: 4% | M20: 7% | N20: 12% | O20: 19% | P20: 24% | Q20: 17% | R20: 8% | S20: 4%
A21: 0.58 | B21: 0.38 | C21: 0.78 | D21: 0.58 | E21: 0.52 | F21: 0.73 | G21: 1
A22: 0.83 | B22: 1 | C22: 0.78 | D22: 0.83 | E22: 0.47 | F22: 0.46 | G22: 0.92
A23: 0.73 | B23: 1 | C23: 0.67 | D23: 0.73 | E23: 0.44 | F23: 0.58 | G23: 1 | I23: Bull 4 | J23: 0.05 | K23: 0.15 | L23: 0.25 | M23: 0.35 | N23: 0.45 | O23: 0.55 | P23: 0.65 | Q23: 0.75 | R23: 0.85 | S23: 0.95
A24: 0.57 | B24: 0.38 | C24: 0.67 | D24: 0.57 | E24: 0.46 | F24: 0.77 | G24: 0.84 | J24: =(COUNTIFS(E:E, "<=0.1")) -> 0 | K24: =COUNTIFS(E:E,">0.1",E:E,"<=0.2") -> 1 | L24: =COUNTIFS(E:E,">0.2",E:E,"<=0.3") -> 13 | M24: =COUNTIFS(E:E,">0.3",E:E,"<=0.4") -> 63 | N24: =COUNTIFS(E:E,">0.4",E:E,"<=0.5") -> 145 | O24: =COUNTIFS(E:E,">0.5",E:E,"<=0.6") -> 71 | P24: =COUNTIFS(E:E,">0.6",E:E,"<=0.7") -> 9 | Q24: =COUNTIFS(E:E,">0.7",E:E,"<=0.8") -> 3 | R24: =COUNTIFS(E:E,">0.8",E:E,"<=0.9") -> 2 | S24: =COUNTIFS(E:E,">0.9",E:E,"<=1") -> 0 | T24: =SUM(J24:S24) -> 307
A25: 0.69 | B25: 0.95 | C25: 0.74 | D25: 0.69 | E25: 0.37 | F25: 0.38 | G25: 0.7 | J25: =J24/$T$24 -> 0% | K25: =K24/$T$24 -> 0% | L25: =L24/$T$24 -> 4% | M25: 21% | N25: 47% | O25: 23% | P25: 3% | Q25: 1% | R25: 1% | S25: 0%
A26: 0.73 | B26: 0.4 | C26: 0.7 | D26: 0.73 | E26: 0.47 | F26: 0.43 | G26: 0.77
A27: 0.57 | B27: 0.64 | C27: 0.77 | D27: 0.57 | E27: 0.5 | F27: 0.39 | G27: 0.58
A28: 0.82 | B28: 0.43 | C28: 0.75 | D28: 0.82 | E28: 0.41 | F28: 0.48 | G28: 0.96 | I28: Bull 5 | J28: 0.05 | K28: 0.15 | L28: 0.25 | M28: 0.35 | N28: 0.45 | O28: 0.55 | P28: 0.65 | Q28: 0.75 | R28: 0.85 | S28: 0.95
A29: 0.77 | B29: 0.85 | C29: 0.81 | D29: 0.77 | E29: 0.4 | F29: 0.46 | G29: 0.79 | J29: =(COUNTIFS(F:F, "<=0.1")) -> 0 | K29: =COUNTIFS(F:F,">0.1",F:F,"<=0.2") -> 0 | L29: =COUNTIFS(F:F,">0.2",F:F,"<=0.3") -> 12 | M29: =COUNTIFS(F:F,">0.3",F:F,"<=0.4") -> 71 | N29: =COUNTIFS(F:F,">0.4",F:F,"<=0.5") -> 159 | O29: =COUNTIFS(F:F,">0.5",F:F,"<=0.6") -> 88 | P29: =COUNTIFS(F:F,">0.6",F:F,"<=0.7") -> 8 | Q29: =COUNTIFS(F:F,">0.7",F:F,"<=0.8") -> 2 | R29: =COUNTIFS(F:F,">0.8",F:F,"<=0.9") -> 0 | S29: =COUNTIFS(F:F,">0.9",F:F,"<=1") -> 0 | T29: =SUM(J29:S29) -> 340
A30: 0.59 | B30: 0.44 | C30: 0.88 | D30: 0.59 | E30: 0.4 | F30: 0.56 | G30: 0.73 | J30: =J29/$T$29 -> 0% | K30: =K29/$T$29 -> 0% | L30: 4% | M30: 21% | N30: 47% | O30: 26% | P30: 2% | Q30: 1% | R30: 0% | S30: 0%
A31: 0.69 | B31: 0.86 | C31: 0.78 | D31: 0.69 | E31: 0.51 | F31: 0.47 | G31: 0.67
A32: 0.60 | B32: 0.19 | C32: 0.84 | D32: 0.6 | E32: 0.41 | F32: 0.55 | G32: 0.89
A33: 0.71 | B33: 0.65 | C33: 0.9 | D33: 0.71 | E33: 0.47 | F33: 0.67 | G33: 1 | I33: Bull 6 | J33: 0.05 | K33: 0.15 | L33: 0.25 | M33: 0.35 | N33: 0.45 | O33: 0.55 | P33: 0.65 | Q33: 0.75 | R33: 0.85 | S33: 0.95
A34: 0.70 | B34: 0.56 | C34: 0.94 | D34: 0.7 | E34: 0.48 | F34: 0.56 | G34: 0.79 | J34: =(COUNTIFS(G:G, "<=0.1")) -> 13 | K34: =COUNTIFS(G:G,">0.1",G:G,"<=0.2") -> 20 | L34: =COUNTIFS(G:G,">0.2",G:G,"<=0.3") -> 28 | M34: =COUNTIFS(G:G,">0.3",G:G,"<=0.4") -> 38 | N34: =COUNTIFS(G:G,">0.4",G:G,"<=0.5") -> 39 | O34: =COUNTIFS(G:G,">0.5",G:G,"<=0.6") -> 56 | P34: =COUNTIFS(G:G,">0.6",G:G,"<=0.7") -> 59 | Q34: =COUNTIFS(G:G,">0.7",G:G,"<=0.8") -> 77 | R34: =COUNTIFS(G:G,">0.8",G:G,"<=0.9") -> 68 | S34: =COUNTIFS(G:G,">0.9",G:G,"<=1") -> 31 | T34: =SUM(J34:S34) -> 429
A35: 0.34 | B35: 0.15 | C35: 0.88 | D35: 0.34 | E35: 0.42 | F35: 0.57 | G35: 0.8 | J35: =J34/$T$34 -> 3% | K35: =K34/$T$34 -> 5% | L35: 7% | M35: 9% | N35: 9% | O35: 13% | P35: 14% | Q35: 18% | R35: 16% | S35: 7%
A36: 0.21 | B36: 0.92 | C36: 0.83 | D36: 0.21 | E36: 0.43 | F36: 0.48 | G36: 0.15
A37: 0.26 | B37: 0.92 | C37: 0.88 | D37: 0.26 | E37: 0.49 | F37: 0.34 | G37: 0.78
A38: 0.59 | B38: 0.23 | C38: 0.76 | D38: 0.59 | E38: 0.49 | F38: 0.68 | G38: 0.88
A39: 0.61 | B39: 0.67 | C39: 0.84 | D39: 0.61 | E39: 0.33 | F39: 0.45 | G39: 0.84
A40: 0.78 | B40: 0.54 | C40: 0.68 | D40: 0.78 | E40: 0.57 | F40: 0.45 | G40: 0.86
A41: 0.71 | B41: 0.28 | C41: 0.77 | D41: 0.71 | E41: 0.41 | F41: 0.43 | G41: 0.87
A42: 0.82 | B42: 0.8 | C42: 0.69 | D42: 0.82 | E42: 0.49 | F42: 0.52 | G42: 1
A43: 0.32 | B43: 0.6 | C43: 0.74 | D43: 0.32 | E43: 0.31 | F43: 0.49 | G43: 0.58
A44: 0.27 | B44: 0.42 | C44: 0.83 | D44: 0.27 | E44: 0.37 | F44: 0.44 | G44: 0.84
A45: 0.72 | B45: 0.75 | C45: 0.8 | D45: 0.72 | E45: 0.53 | F45: 0.51 | G45: 1
A46: 0.55 | B46: 1 | C46: 0.6 | D46: 0.55 | E46: 0.44 | F46: 0.52 | G46: 0.59
A47: 0.51 | B47: 1 | C47: 0.67 | D47: 0.51 | E47: 0.44 | F47: 0.42 | G47: 0.3
A48: 0.81 | B48: 0.5 | C48: 0.79 | D48: 0.81 | E48: 0.45 | F48: 0.55 | G48: 0.23
A49: 0.51 | B49: 0.6 | C49: 0.78 | D49: 0.51 | E49: 0.58 | F49: 0.39 | G49: 0.84
A50: 0.36 | B50: 0.1 | C50: 0.75 | D50: 0.36 | E50: 0.34 | F50: 0.44 | G50: 0.37
A51: 0.61 | B51: 0.89 | C51: 0.79 | D51: 0.61 | E51: 0.4 | F51: 0.47 | G51: 0.96
A52: 0.49 | B52: 0.5 | C52: 0.68 | D52: 0.49 | E52: 0.44 | F52: 0.35 | G52: 1
A53: 0.20 | B53: 0.5 | C53: 0.71 | D53: 0.2 | E53: 0.55 | F53: 0.42 | G53: 0.33
A54: 0.59 | B54: 0.88 | C54: 0.63 | D54: 0.59 | E54: 0.4 | F54: 0.52 | G54: 0.52
A55: 0.53 | B55: 0.81 | C55: 0.88 | D55: 0.53 | E55: 0.36 | F55: 0.52 | G55: 0.19
A56: 0.56 | B56: 0.67 | C56: 0.88 | D56: 0.56 | E56: 0.41 | F56: 0.49 | G56: 0.22
A57: 0.55 | B57: 0.96 | C57: 0.32 | D57: 0.55 | E57: 0.51 | F57: 0.46 | G57: 0.64
A58: 0.52 | B58: 0.66 | C58: 0.71 | D58: 0.52 | E58: 0.43 | F58: 0.21 | G58: 0.31
A59: 0.73 | B59: 0.75 | C59: 0.73 | D59: 0.73 | E59: 0.43 | F59: 0.52 | G59: 0.31
A60: 0.58 | B60: 0.4 | C60: 0.89 | D60: 0.58 | E60: 0.39 | F60: 0.52 | G60: 0.81
A61: 0.72 | B61: 0.78 | C61: 0.72 | D61: 0.72 | E61: 0.48 | F61: 0.41 | G61: 0.37
A62: 0.90 | B62: 0.67 | C62: 0.84 | D62: 0.9 | E62: 0.58 | F62: 0.28 | G62: 0.73
A63: 0.56 | B63: 0.5 | C63: 0.79 | D63: 0.56 | E63: 0.45 | F63: 0.41 | G63: 0.76
A64: 0.73 | B64: 0.38 | C64: 0.91 | D64: 0.73 | E64: 0.46 | F64: 0.36 | G64: 0.79
A65: 0.65 | B65: 1 | C65: 0.74 | D65: 0.65 | E65: 0.61 | F65: 0.48 | G65: 0.61
A66: 0.87 | B66: 1 | C66: 0.84 | D66: 0.87 | E66: 0.37 | F66: 0.4 | G66: 0.73
A67: 0.57 | B67: 0.38 | C67: 0.7 | D67: 0.57 | E67: 0.54 | F67: 0.45 | G67: 0.53
A68: 0.53 | B68: 0.95 | C68: 0.83 | D68: 0.53 | E68: 0.51 | F68: 0.48 | G68: 0.88
A69: 0.75 | B69: 0.4 | C69: 0.82 | D69: 0.75 | E69: 0.4 | F69: 0.4 | G69: 0.56
A70: 0.68 | B70: 0.64 | C70: 0.82 | D70: 0.68 | E70: 0.51 | F70: 0.49 | G70: 0.91
A71: 0.59 | B71: 0.43 | C71: 0.88 | D71: 0.59 | E71: 0.48 | F71: 0.38 | G71: 0.92
A72: 0.53 | B72: 0.85 | C72: 0.85 | D72: 0.53 | E72: 0.3 | F72: 0.5 | G72: 0.86
A73: 0.84 | B73: 0.44 | C73: 0.88 | D73: 0.84 | E73: 0.4 | F73: 0.42 | G73: 0.93
A74: 0.20 | B74: 0.86 | C74: 0.46 | D74: 0.2 | E74: 0.44 | F74: 0.51 | G74: 0.75
A75: 0.50 | B75: 0.19 | C75: 0.82 | D75: 0.5 | E75: 0.56 | F75: 0.46 | G75: 0.67
A76: 0.71 | B76: 0.65 | C76: 0.65 | D76: 0.71 | E76: 0.58 | F76: 0.43 | G76: 0.91
A77: 0.68 | B77: 0.56 | C77: 0.8 | D77: 0.68 | E77: 0.52 | F77: 0.51 | G77: 0.74
A78: 0.55 | B78: 0.15 | C78: 0.76 | D78: 0.55 | E78: 0.52 | F78: 0.52 | G78: 0.88
A79: 0.68 | B79: 0.92 | C79: 0.94 | D79: 0.68 | E79: 0.47 | F79: 0.54 | G79: 0.85
A80: 0.63 | B80: 0.92 | C80: 0.84 | D80: 0.63 | E80: 0.38 | F80: 0.52 | G80: 0.72
A81: 0.55 | B81: 0.23 | C81: 0.66 | D81: 0.55 | E81: 0.37 | F81: 0.53 | G81: 0.66
A82: 0.76 | B82: 0.67 | C82: 0.77 | D82: 0.76 | E82: 0.51 | F82: 0.58 | G82: 0.85
A83: 0.70 | B83: 0.54 | C83: 0.8 | D83: 0.7 | E83: 0.53 | F83: 0.49 | G83: 0.86
A84: 0.67 | B84: 0.28 | C84: 0.86 | D84: 0.67 | E84: 0.58 | F84: 0.4 | G84: 0.81
A85: 0.71 | B85: 0.8 | C85: 0.8 | D85: 0.71 | E85: 0.52 | F85: 0.46 | G85: 0.76
A86: 0.56 | B86: 0.6 | C86: 0.83 | D86: 0.56 | E86: 0.47 | F86: 0.41 | G86: 0.7
A87: 1.00 | B87: 0.42 | C87: 0.9 | D87: 1 | E87: 0.58 | F87: 0.44 | G87: 0.83
A88: 0.67 | B88: 0.5 | C88: 0.84 | D88: 0.67 | E88: 0.4 | F88: 0.45 | G88: 0.88
A89: 0.65 | B89: 1 | C89: 0.61 | D89: 0.65 | E89: 0.48 | F89: 0.53 | G89: 0.85
A90: 1.00 | B90: 0.67 | C90: 0.84 | D90: 1 | E90: 0.34 | F90: 0.42 | G90: 0.92
A91: 0.19 | B91: 0.12 | C91: 0.72 | D91: 0.19 | E91: 0.39 | F91: 0.51 | G91: 0.9
A92: 0.72 | B92: 0.44 | C92: 0.78 | D92: 0.72 | E92: 0.66 | F92: 0.53 | G92: 0.78
A93: 0.92 | B93: 0.79 | C93: 0.92 | D93: 0.92 | E93: 0.44 | F93: 0.54 | G93: 0.75
A94: 0.63 | B94: 0.82 | C94: 0.81 | D94: 0.63 | E94: 0.43 | F94: 0.4 | G94: 0.86
A95: 1.00 | B95: 1 | C95: 0.62 | D95: 1 | E95: 0.33 | F95: 0.54 | G95: 0.89
A96: 0.76 | B96: 0.54 | C96: 0.72 | D96: 0.76 | E96: 0.56 | F96: 0.58 | G96: 0.79
A97: 0.70 | B97: 0.51 | C97: 0.82 | D97: 0.7 | E97: 0.49 | F97: 0.46 | G97: 0.85
A98: 1.00 | B98: 0.71 | C98: 0.72 | D98: 1 | E98: 0.44 | F98: 0.44 | G98: 0.78
A99: 0.61 | B99: 0.5 | C99: 0.92 | D99: 0.61 | E99: 0.58 | F99: 0.52 | G99: 0.65
A100: 0.78 | B100: 0.63 | C100: 0.85 | D100: 0.78 | E100: 0.48 | F100: 0.52 | G100: 0.75
A101: 0.67 | B101: 0.07 | C101: 0.69 | D101: 0.67 | E101: 0.49 | F101: 0.41 | G101: 0.74
A102: 0.74 | B102: 0.79 | C102: 0.68 | D102: 0.74 | E102: 0.47 | F102: 0.42 | G102: 0.79
A103: 1.00 | B103: 0.91 | C103: 0.89 | D103: 1 | E103: 0.54 | F103: 0.38 | G103: 0.84
A104: 0.16 | B104: 0.76 | C104: 0.56 | D104: 0.16 | E104: 0.43 | F104: 0.41 | G104: 0.82
A105: 0.58 | B105: 0.16 | C105: 0.84 | D105: 0.58 | E105: 0.59 | F105: 0.54 | G105: 0.76
A106: 0.78 | B106: 0.84 | C106: 0.93 | D106: 0.78 | E106: 0.44 | F106: 0.45 | G106: 0.75
A107: 0.54 | B107: 1 | C107: 0.77 | D107: 0.54 | E107: 0.47 | F107: 0.35 | G107: 0.91
A108: 0.73 | B108: 0.84 | C108: 0.5 | D108: 0.73 | E108: 0.47 | F108: 0.46 | G108: 0.65
A109: 0.67 | B109: 0.71 | C109: 0.87 | D109: 0.67 | E109: 0.49 | F109: 0.55 | G109: 0.71
A110: 0.33 | B110: 0.56 | C110: 0.72 | D110: 0.33 | E110: 0.52 | F110: 0.54 | G110: 0.93
A111: 0.51 | B111: 0.57 | C111: 0.61 | D111: 0.51 | E111: 0.43 | F111: 0.46 | G111: 0.9
A112: 0.85 | B112: 0.83 | C112: 0.8 | D112: 0.85 | E112: 0.44 | F112: 0.48 | G112: 0.45
A113: 0.87 | B113: 0.3 | C113: 0.85 | D113: 0.87 | E113: 0.33 | F113: 0.52 | G113: 0.86
A114: 0.48 | B114: 0.83 | C114: 0.83 | D114: 0.48 | E114: 0.52 | F114: 0.44 | G114: 0.74
A115: 0.80 | B115: 1 | C115: 0.93 | D115: 0.8 | E115: 0.45 | F115: 0.44 | G115: 0.77
A116: 0.61 | B116: 0.09 | C116: 0.76 | D116: 0.61 | E116: 0.5 | F116: 0.54 | G116: 0.84
A117: 0.67 | B117: 0.2 | C117: 0.8 | D117: 0.67 | E117: 0.45 | F117: 0.45 | G117: 0.73
A118: 0.56 | B118: 0.53 | C118: 0.92 | D118: 0.56 | E118: 0.49 | F118: 0.41 | G118: 0.69
A119: 0.60 | B119: 0.91 | C119: 0.94 | D119: 0.6 | E119: 0.53 | F119: 0.48 | G119: 0.8
A120: 0.55 | B120: 0.81 | C120: 0.97 | D120: 0.55 | E120: 0.43 | F120: 0.42 | G120: 0.86
A121: 0.69 | B121: 0.54 | C121: 0.91 | D121: 0.69 | E121: 0.53 | F121: 0.41 | G121: 0.71
A122: 0.63 | B122: 0.65 | C122: 0.86 | D122: 0.63 | E122: 0.46 | F122: 0.5 | G122: 0.73
A123: 0.50 | B123: 0.71 | C123: 0.77 | D123: 0.5 | E123: 0.37 | F123: 0.5 | G123: 0.91
A124: 0.92 | B124: 0.92 | C124: 0.83 | D124: 0.92 | E124: 0.56 | F124: 0.39 | G124: 0.82
A125: 0.67 | B125: 0.29 | C125: 0.86 | D125: 0.67 | E125: 0.52 | F125: 0.5 | G125: 0.77
A126: 0.50 | B126: 0.7 | C126: 0.83 | D126: 0.5 | E126: 0.51 | F126: 0.58 | G126: 0.8
A127: 0.38 | B127: 0.75 | C127: 0.76 | D127: 0.38 | E127: 0.49 | F127: 0.53 | G127: 0.74
A128: 0.47 | B128: 0.32 | C128: 0.7 | D128: 0.47 | E128: 0.48 | F128: 0.43 | G128: 0.6
A129: 0.17 | B129: 0.6 | C129: 0.78 | D129: 0.17 | E129: 0.58 | F129: 0.52 | G129: 0.81
A130: 0.89 | B130: 0.5 | C130: 0.81 | D130: 0.89 | E130: 0.49 | F130: 0.43 | G130: 0.8
A131: 0.63 | B131: 0.44 | C131: 0.73 | D131: 0.63 | E131: 0.36 | F131: 0.39 | G131: 0.86
A132: 0.68 | B132: 0.8 | C132: 0.76 | D132: 0.68 | E132: 0.5 | F132: 0.47 | G132: 0.78
A133: 0.53 | B133: 0.71 | C133: 0.65 | D133: 0.53 | E133: 0.46 | F133: 0.47 | G133: 0.61
A134: 0.17 | B134: 0.76 | C134: 0.65 | D134: 0.17 | E134: 0.49 | F134: 0.51 | G134: 0.62
A135: 0.35 | B135: 0.79 | C135: 0.84 | D135: 0.35 | E135: 0.54 | F135: 0.48 | G135: 0.67
A136: 0.69 | B136: 0.43 | C136: 0.8 | D136: 0.69 | E136: 0.56 | F136: 0.36 | G136: 0.85
A137: 0.52 | B137: 0.61 | C137: 0.62 | D137: 0.52 | E137: 0.57 | F137: 0.44 | G137: 0.76
A138: 0.37 | B138: 0.71 | C138: 0.78 | D138: 0.37 | E138: 0.5 | F138: 0.53 | G138: 0.8
A139: 0.80 | B139: 0.26 | C139: 0.8 | D139: 0.8 | E139: 0.46 | F139: 0.54 | G139: 0.76
A140: 0.50 | B140: 0.54 | C140: 0.7 | D140: 0.5 | E140: 0.48 | F140: 0.38 | G140: 0.89
A141: 0.08 | B141: 0.9 | C141: 0.5 | D141: 0.08 | E141: 0.52 | F141: 0.52 | G141: 0.9
A142: 0.83 | B142: 0.35 | C142: 0.51 | D142: 0.83 | E142: 0.45 | F142: 0.51 | G142: 0.84
A143: 0.58 | B143: 0.71 | C143: 0.67 | D143: 0.58 | E143: 0.59 | F143: 0.52 | G143: 0.87
A144: 0.94 | B144: 0.88 | C144: 0.75 | D144: 0.94 | E144: 0.51 | F144: 0.56 | G144: 0.93
A145: 0.54 | B145: 0.14 | C145: 0.7 | D145: 0.54 | E145: 0.6 | F145: 0.47 | G145: 0.88
A146: 0.50 | B146: 0.57 | C146: 0.7 | D146: 0.5 | E146: 0.35 | F146: 0.52 | G146: 0.78
A147: 0.85 | B147: 0.38 | C147: 0.64 | D147: 0.85 | E147: 0.43 | F147: 0.31 | G147: 0.71
A148: 0.82 | B148: 0.83 | C148: 0.8 | D148: 0.82 | E148: 0.41 | F148: 0.46 | G148: 0.39
A149: 0.60 | B149: 0.13 | C149: 0.67 | D149: 0.6 | E149: 0.47 | F149: 0.45 | G149: 0.83
A150: 0.49 | B150: 0.09 | C150: 0.62 | D150: 0.49 | E150: 0.39 | F150: 0.34 | G150: 0.75
A151: 0.75 | B151: 0.8 | C151: 0.71 | D151: 0.75 | E151: 0.49 | F151: 0.52 | G151: 0.8
A152: 0.58 | B152: 0.43 | C152: 0.8 | D152: 0.58 | E152: 0.5 | F152: 0.46 | G152: 0.64
A153: 0.63 | B153: 0.43 | C153: 0.75 | D153: 0.63 | E153: 0.41 | F153: 0.54 | G153: 0.7
A154: 0.68 | B154: 0.86 | C154: 0.43 | D154: 0.68 | E154: 0.43 | F154: 0.51 | G154: 0.92
A155: 0.68 | B155: 0.1 | C155: 0.86 | D155: 0.68 | E155: 0.49 | F155: 0.62 | G155: 0.92
A156: 0.59 | B156: 0.64 | C156: 0.72 | D156: 0.59 | E156: 0.63 | F156: 0.41 | G156: 0.82
A157: 0.50 | B157: 0.52 | C157: 0.68 | D157: 0.5 | E157: 0.4 | F157: 0.59 | G157: 0.1
A158: 0.67 | B158: 0.57 | C158: 0.58 | D158: 0.67 | E158: 0.49 | F158: 0.5 | G158: 0.65
A159: 0.51 | B159: 0.75 | C159: 0.77 | D159: 0.51 | E159: 0.45 | F159: 0.57 | G159: 0.66
A160: 0.49 | B160: 0.91 | C160: 0.68 | D160: 0.49 | E160: 0.49 | F160: 0.52 | G160: 0.54
A161: 0.85 | B161: 0.75 | C161: 0.76 | D161: 0.85 | E161: 0.43 | F161: 0.51 | G161: 0.23
A162: 0.52 | B162: 0.73 | C162: 0.75 | D162: 0.52 | E162: 0.48 | F162: 0.5 | G162: 0.44
A163: 0.67 | B163: 0.8 | C163: 0.46 | D163: 0.67 | E163: 0.41 | F163: 0.57 | G163: 0.67
A164: 0.65 | B164: 0.21 | C164: 0.76 | D164: 0.65 | E164: 0.54 | F164: 0.46 | G164: 0.54
A165: 0.79 | B165: 0.57 | C165: 0.63 | D165: 0.79 | E165: 0.46 | F165: 0.52 | G165: 0.47
A166: 0.61 | B166: 0.81 | C166: 0.66 | D166: 0.61 | E166: 0.43 | F166: 0.54 | G166: 0.22
A167: 0.84 | B167: 0.17 | C167: 0.8 | D167: 0.84 | E167: 0.48 | F167: 0.45 | G167: 0.52
A168: 0.79 | B168: 0.55 | C168: 0.78 | D168: 0.79 | E168: 0.59 | F168: 0.55 | G168: 0.63
A169: 0.31 | B169: 0.79 | C169: 0.74 | D169: 0.31 | E169: 0.7 | F169: 0.46 | G169: 0.5
A170: 0.64 | B170: 0.75 | C170: 0.46 | D170: 0.64 | E170: 0.52 | F170: 0.49 | G170: 0.38
A171: 0.71 | B171: 0.87 | C171: 0.77 | D171: 0.71 | E171: 0.52 | F171: 0.47 | G171: 0.09
A172: 0.75 | B172: 0.61 | C172: 0.75 | D172: 0.75 | E172: 0.38 | F172: 0.53 | G172: 0.33
A173: 0.66 | B173: 0.93 | C173: 0.65 | D173: 0.66 | E173: 0.38 | F173: 0.47 | G173: 0.58
A174: 0.84 | B174: 0.48 | C174: 0.78 | D174: 0.84 | E174: 0.5 | F174: 0.4 | G174: 0.46
A175: 0.52 | B175: 0.33 | C175: 0.51 | D175: 0.52 | E175: 0.45 | F175: 0.47 | G175: 0.28
A176: 0.59 | B176: 0.36 | C176: 0.51 | D176: 0.59 | E176: 0.41 | F176: 0.4 | G176: 0.8
A177: 0.66 | B177: 0.56 | C177: 0.94 | D177: 0.66 | E177: 0.43 | F177: 0.61 | G177: 0.5
A178: 0.71 | B178: 0.55 | C178: 0.62 | D178: 0.71 | E178: 0.42 | F178: 0.5 | G178: 0.47
A179: 0.65 | B179: 0.11 | C179: 0.64 | D179: 0.65 | E179: 0.44 | F179: 0.55 | G179: 0.38
A180: 0.69 | B180: 0.64 | C180: 0.91 | D180: 0.69 | E180: 0.34 | F180: 0.47 | G180: 0.51
A181: 0.83 | B181: 0.75 | C181: 0.81 | D181: 0.83 | E181: 0.43 | F181: 0.38 | G181: 0.49
A182: 0.11 | B182: 0.73 | C182: 0.43 | D182: 0.11 | E182: 0.48 | F182: 0.52 | G182: 0.22
A183: 0.80 | B183: 0.83 | C183: 0.87 | D183: 0.8 | E183: 0.52 | F183: 0.4 | G183: 0.23
A184: 0.88 | B184: 0.78 | C184: 0.56 | D184: 0.88 | E184: 0.43 | F184: 0.4 | G184: 0.52
A185: 0.60 | B185: 0.35 | C185: 0.78 | D185: 0.6 | E185: 0.48 | F185: 0.45 | G185: 0.1
A186: 0.53 | B186: 0.88 | C186: 0.86 | D186: 0.53 | E186: 0.36 | F186: 0.44 | G186: 0.17
A187: 0.62 | B187: 0.51 | C187: 0.77 | D187: 0.62 | E187: 0.55 | F187: 0.4 | G187: 0.68
A188: 0.76 | B188: 0.74 | C188: 0.42 | D188: 0.76 | E188: 0.53 | F188: 0.42 | G188: 0.61
A189: 0.71 | B189: 0.8 | C189: 0.86 | D189: 0.71 | E189: 0.25 | F189: 0.38 | G189: 0.24
A190: 0.56 | B190: 0.79 | C190: 0.94 | D190: 0.56 | E190: 0.46 | F190: 0.27 | G190: 0.53
A191: 1.00 | B191: 0.5 | C191: 0.32 | D191: 1 | E191: 0.45 | F191: 0.26 | G191: 0.46
A192: 0.67 | B192: 0.83 | C192: 0.74 | D192: 0.67 | E192: 0.51 | F192: 0.42 | G192: 0.54
A193: 0.41 | B193: 0.75 | C193: 0.65 | D193: 0.41 | E193: 0.54 | F193: 0.46 | G193: 0.47
A194: 0.63 | B194: 0.63 | C194: 0.71 | D194: 0.63 | E194: 0.26 | F194: 0.35 | G194: 0.73
A195: 0.69 | B195: 0.53 | C195: 0.15 | D195: 0.69 | E195: 0.38 | F195: 0.41 | G195: 0.58
A196: 0.66 | B196: 0.72 | C196: 0.98 | D196: 0.66 | E196: 0.58 | F196: 0.33 | G196: 0.32
A197: 0.67 | B197: 0.57 | C197: 0.54 | D197: 0.67 | E197: 0.56 | F197: 0.47 | G197: 0.89
A198: 0.63 | B198: 0.72 | C198: 0.6 | D198: 0.63 | E198: 0.54 | F198: 0.53 | G198: 0.76
A199: 0.56 | B199: 0.76 | C199: 0.66 | D199: 0.56 | E199: 0.44 | F199: 0.47 | G199: 0.56
A200: 0.96 | B200: 0.7 | C200: 0.76 | D200: 0.96 | E200: 0.46 | F200: 0.57 | G200: 0.6
... 8654 more rows

Sheet ACE TUB Ax
A1: Ace Tub Ax/Total | B1: Bull 1 | C1: Bull 2 | D1: Bull 3 | E1: Bull 4 | F1: Bull 5 | G1: Bull 6
A2: 0.67 | B2: 0.25 | C2: 0 | D2: 0.67 | E2: 0.15 | F2: 0.09 | G2: 0.03 | I2: Bins | J2: 0.05 | K2: 0.15 | L2: 0.25 | M2: 0.35 | N2: 0.45 | O2: 0.55 | P2: 0.65 | Q2: 0.75 | R2: 0.85 | S2: 0.95
A3: 0.10 | B3: 0 | C3: 0.42 | D3: 0.1 | E3: 0.24 | F3: 0.24 | G3: 0.58 | J3: 0 | K3: .1-.2 | L3: .2-.3 | M3: .3-.4 | N3: .4-.5 | O3: .5-.6 | P3: .6-.7 | Q3: .7-.8 | R3: .8-.9 | S3: .9-1
A4: 0.23 | B4: 0 | C4: 0.09 | D4: 0.23 | E4: 0.14 | F4: 0.2 | G4: 0 | J4: =(COUNTIFS(A:A, "<=0.1")) -> 4040 | K4: =COUNTIFS(A:A,">0.1",A:A,"<=0.2") -> 2650 | L4: =COUNTIFS(A:A,">0.2",A:A,"<=0.3") -> 1248 | M4: =COUNTIFS(A:A,">0.3",A:A,"<=0.4") -> 443 | N4: =COUNTIFS(A:A,">0.4",A:A,"<=0.5") -> 246 | O4: =COUNTIFS(A:A,">0.5",A:A,"<=0.6") -> 84 | P4: =COUNTIFS(A:A,">0.6",A:A,"<=0.7") -> 52 | Q4: =COUNTIFS(A:A,">0.7",A:A,"<=0.8") -> 39 | R4: =COUNTIFS(A:A,">0.8",A:A,"<=0.9") -> 25 | S4: =COUNTIFS(A:A,">0.9",A:A,"<=1") -> 25 | T4: =SUM(J4:S4) -> 8852
A5: 0.13 | B5: 0 | C5: 0 | D5: 0.13 | E5: 0.22 | F5: 0.1 | G5: 0 | J5: =J4/$T$4 -> 46% | K5: =K4/$T$4 -> 30% | L5: 14% | M5: 5% | N5: 3% | O5: 1% | P5: 1% | Q5: 0% | R5: 0% | S5: 0%
A6: 0.11 | B6: 0 | C6: 0.06 | D6: 0.11 | E6: 0.19 | F6: 0.13 | G6: 0.04
A7: 0.23 | B7: 0.1 | C7: 0.16 | D7: 0.23 | E7: 0.12 | F7: 0.33 | G7: 0
A8: 0.33 | B8: 0.11 | C8: 0.02 | D8: 0.33 | E8: 0.15 | F8: 0.13 | G8: 0.23 | I8: Bull 1 | J8: 0.05 | K8: 0.15 | L8: 0.25 | M8: 0.35 | N8: 0.45 | O8: 0.55 | P8: 0.65 | Q8: 0.75 | R8: 0.85 | S8: 0.95
A9: 0.03 | B9: 0 | C9: 0.04 | D9: 0.03 | E9: 0.14 | F9: 0.16 | G9: 0.03 | J9: =(COUNTIFS(B:B, "<=0.1")) -> 553 | K9: =COUNTIFS(B:B,">0.1",B:B,"<=0.2") -> 150 | L9: =COUNTIFS(B:B,">0.2",B:B,"<=0.3") -> 52 | M9: =COUNTIFS(B:B,">0.3",B:B,"<=0.4") -> 31 | N9: =COUNTIFS(B:B,">0.4",B:B,"<=0.5") -> 34 | O9: =COUNTIFS(B:B,">0.5",B:B,"<=0.6") -> 21 | P9: =COUNTIFS(B:B,">0.6",B:B,"<=0.7") -> 10 | Q9: =COUNTIFS(B:B,">0.7",B:B,"<=0.8") -> 14 | R9: =COUNTIFS(B:B,">0.8",B:B,"<=0.9") -> 8 | S9: =COUNTIFS(B:B,">0.9",B:B,"<=1") -> 3 | T9: =SUM(J9:S9) -> 876
A10: 0.04 | B10: 0.25 | C10: 0.09 | D10: 0.04 | E10: 0.28 | F10: 0.29 | G10: 0.64 | J10: =J9/$T$9 -> 63% | K10: =K9/$T$9 -> 17% | L10: 6% | M10: 4% | N10: 4% | O10: 2% | P10: 1% | Q10: 2% | R10: 1% | S10: 0%
A11: 0.05 | B11: 0 | C11: 0.02 | D11: 0.05 | E11: 0.09 | F11: 0.18 | G11: 0.02
A12: 0.14 | B12: 0 | C12: 0.02 | D12: 0.14 | E12: 0.08 | F12: 0.15 | G12: 0
A13: 0.02 | B13: 0.17 | C13: 0.07 | D13: 0.02 | E13: 0.23 | F13: 0.17 | G13: 0.91 | I13: Bull 2 | J13: 0.05 | K13: 0.15 | L13: 0.25 | M13: 0.35 | N13: 0.45 | O13: 0.55 | P13: 0.65 | Q13: 0.75 | R13: 0.85 | S13: 0.95
A14: 0.04 | B14: 0 | C14: 0.28 | D14: 0.04 | E14: 0.16 | F14: 0.3 | G14: 0.01 | J14: =(COUNTIFS(C:C, "<=0.1")) -> 402 | K14: =COUNTIFS(C:C,">0.1",C:C,"<=0.2") -> 140 | L14: =COUNTIFS(C:C,">0.2",C:C,"<=0.3") -> 58 | M14: =COUNTIFS(C:C,">0.3",C:C,"<=0.4") -> 13 | N14: =COUNTIFS(C:C,">0.4",C:C,"<=0.5") -> 6 | O14: =COUNTIFS(C:C,">0.5",C:C,"<=0.6") -> 3 | P14: =COUNTIFS(C:C,">0.6",C:C,"<=0.7") -> 1 | Q14: =COUNTIFS(C:C,">0.7",C:C,"<=0.8") -> 0 | R14: =COUNTIFS(C:C,">0.8",C:C,"<=0.9") -> 1 | S14: =COUNTIFS(C:C,">0.9",C:C,"<=1") -> 0 | T14: =SUM(J14:S14) -> 624
A15: 0.02 | B15: 0.31 | C15: 0.09 | D15: 0.02 | E15: 0.22 | F15: 0.18 | G15: 0.38 | J15: =J14/$T$14 -> 64% | K15: =K14/$T$14 -> 22% | L15: 9% | M15: 2% | N15: 1% | O15: 0% | P15: 0% | Q15: 0% | R15: 0% | S15: 0%
A16: 0.42 | B16: 0.13 | C16: 0.1 | D16: 0.42 | E16: 0.19 | F16: 0.15 | G16: 0.97
A17: 0.08 | B17: 0.1 | C17: 0.05 | D17: 0.08 | E17: 0.25 | F17: 0.13 | G17: 0
A18: 0.05 | B18: 0 | C18: 0.01 | D18: 0.05 | E18: 0.25 | F18: 0.21 | G18: 0.01 | I18: Bull 3 | J18: 0.05 | K18: 0.15 | L18: 0.25 | M18: 0.35 | N18: 0.45 | O18: 0.55 | P18: 0.65 | Q18: 0.75 | R18: 0.85 | S18: 0.95
A19: 0.03 | B19: 0.33 | C19: 0 | D19: 0.03 | E19: 0.17 | F19: 0.2 | G19: 0.25 | J19: =(COUNTIFS(D:D, "<=0.1")) -> 448 | K19: =COUNTIFS(D:D,">0.1",D:D,"<=0.2") -> 80 | L19: =COUNTIFS(D:D,">0.2",D:D,"<=0.3") -> 24 | M19: =COUNTIFS(D:D,">0.3",D:D,"<=0.4") -> 15 | N19: =COUNTIFS(D:D,">0.4",D:D,"<=0.5") -> 4 | O19: =COUNTIFS(D:D,">0.5",D:D,"<=0.6") -> 4 | P19: =COUNTIFS(D:D,">0.6",D:D,"<=0.7") -> 5 | Q19: =COUNTIFS(D:D,">0.7",D:D,"<=0.8") -> 3 | R19: =COUNTIFS(D:D,">0.8",D:D,"<=0.9") -> 4 | S19: =COUNTIFS(D:D,">0.9",D:D,"<=1") -> 1 | T19: =SUM(J19:S19) -> 588
A20: 0.32 | B20: 0.5 | C20: 0.19 | D20: 0.32 | E20: 0.35 | F20: 0.21 | G20: 0.06 | J20: =J19/$T$19 -> 76% | K20: =K19/$T$19 -> 14% | L20: 4% | M20: 3% | N20: 1% | O20: 1% | P20: 1% | Q20: 1% | R20: 1% | S20: 0%
A21: 0.10 | B21: 0.62 | C21: 0.07 | D21: 0.1 | E21: 0.15 | F21: 0.12 | G21: 0
A22: 0.14 | B22: 0 | C22: 0.02 | D22: 0.14 | E22: 0.22 | F22: 0.3 | G22: 0
A23: 0.03 | B23: 0 | C23: 0.15 | D23: 0.03 | E23: 0.19 | F23: 0.32 | G23: 0 | I23: Bull 4 | J23: 0.05 | K23: 0.15 | L23: 0.25 | M23: 0.35 | N23: 0.45 | O23: 0.55 | P23: 0.65 | Q23: 0.75 | R23: 0.85 | S23: 0.95
A24: 0.19 | B24: 0.05 | C24: 0.19 | D24: 0.19 | E24: 0.25 | F24: 0.06 | G24: 0.01 | J24: =(COUNTIFS(E:E, "<=0.1")) -> 32 | K24: =COUNTIFS(E:E,">0.1",E:E,"<=0.2") -> 124 | L24: =COUNTIFS(E:E,">0.2",E:E,"<=0.3") -> 122 | M24: =COUNTIFS(E:E,">0.3",E:E,"<=0.4") -> 16 | N24: =COUNTIFS(E:E,">0.4",E:E,"<=0.5") -> 10 | O24: =COUNTIFS(E:E,">0.5",E:E,"<=0.6") -> 3 | P24: =COUNTIFS(E:E,">0.6",E:E,"<=0.7") -> 0 | Q24: =COUNTIFS(E:E,">0.7",E:E,"<=0.8") -> 0 | R24: =COUNTIFS(E:E,">0.8",E:E,"<=0.9") -> 0 | S24: =COUNTIFS(E:E,">0.9",E:E,"<=1") -> 0 | T24: =SUM(J24:S24) -> 307
A25: 0.21 | B25: 0 | C25: 0.05 | D25: 0.21 | E25: 0.19 | F25: 0.09 | G25: 0.1 | J25: =J24/$T$24 -> 10% | K25: =K24/$T$24 -> 40% | L25: =L24/$T$24 -> 40% | M25: 5% | N25: 3% | O25: 1% | P25: 0% | Q25: 0% | R25: 0% | S25: 0%
A26: 0.19 | B26: 0.36 | C26: 0.12 | D26: 0.19 | E26: 0.17 | F26: 0.09 | G26: 0.14
A27: 0.01 | B27: 0 | C27: 0.04 | D27: 0.01 | E27: 0.24 | F27: 0.42 | G27: 0
A28: 0.02 | B28: 0.14 | C28: 0.03 | D28: 0.02 | E28: 0.28 | F28: 0.15 | G28: 0 | I28: Bull 5 | J28: 0.05 | K28: 0.15 | L28: 0.25 | M28: 0.35 | N28: 0.45 | O28: 0.55 | P28: 0.65 | Q28: 0.75 | R28: 0.85 | S28: 0.95
A29: 0.12 | B29: 0.09 | C29: 0.03 | D29: 0.12 | E29: 0.49 | F29: 0.27 | G29: 0.01 | J29: =(COUNTIFS(F:F, "<=0.1")) -> 55 | K29: =COUNTIFS(F:F,">0.1",F:F,"<=0.2") -> 155 | L29: =COUNTIFS(F:F,">0.2",F:F,"<=0.3") -> 109 | M29: =COUNTIFS(F:F,">0.3",F:F,"<=0.4") -> 13 | N29: =COUNTIFS(F:F,">0.4",F:F,"<=0.5") -> 5 | O29: =COUNTIFS(F:F,">0.5",F:F,"<=0.6") -> 3 | P29: =COUNTIFS(F:F,">0.6",F:F,"<=0.7") -> 0 | Q29: =COUNTIFS(F:F,">0.7",F:F,"<=0.8") -> 0 | R29: =COUNTIFS(F:F,">0.8",F:F,"<=0.9") -> 0 | S29: =COUNTIFS(F:F,">0.9",F:F,"<=1") -> 0 | T29: =SUM(J29:S29) -> 340
A30: 0.07 | B30: 0.56 | C30: 0.03 | D30: 0.07 | E30: 0.28 | F30: 0.07 | G30: 0.13 | J30: =J29/$T$29 -> 16% | K30: =K29/$T$29 -> 46% | L30: 32% | M30: 4% | N30: 1% | O30: 1% | P30: 0% | Q30: 0% | R30: 0% | S30: 0%
A31: 0.02 | B31: 0 | C31: 0.05 | D31: 0.02 | E31: 0.2 | F31: 0.22 | G31: 0.07
A32: 0.04 | B32: 0.8 | C32: 0.01 | D32: 0.04 | E32: 0.21 | F32: 0.08 | G32: 0.02
A33: 0.02 | B33: 0.35 | C33: 0.03 | D33: 0.02 | E33: 0.24 | F33: 0.17 | G33: 0 | I33: Bull 6 | J33: 0.05 | K33: 0.15 | L33: 0.25 | M33: 0.35 | N33: 0.45 | O33: 0.55 | P33: 0.65 | Q33: 0.75 | R33: 0.85 | S33: 0.95
A34: 0.16 | B34: 0.28 | C34: 0.03 | D34: 0.16 | E34: 0.23 | F34: 0.17 | G34: 0 | J34: =(COUNTIFS(G:G, "<=0.1")) -> 338 | K34: =COUNTIFS(G:G,">0.1",G:G,"<=0.2") -> 51 | L34: =COUNTIFS(G:G,">0.2",G:G,"<=0.3") -> 13 | M34: =COUNTIFS(G:G,">0.3",G:G,"<=0.4") -> 8 | N34: =COUNTIFS(G:G,">0.4",G:G,"<=0.5") -> 6 | O34: =COUNTIFS(G:G,">0.5",G:G,"<=0.6") -> 5 | P34: =COUNTIFS(G:G,">0.6",G:G,"<=0.7") -> 4 | Q34: =COUNTIFS(G:G,">0.7",G:G,"<=0.8") -> 1 | R34: =COUNTIFS(G:G,">0.8",G:G,"<=0.9") -> 1 | S34: =COUNTIFS(G:G,">0.9",G:G,"<=1") -> 2 | T34: =SUM(J34:S34) -> 429
A35: 0.19 | B35: 0.85 | C35: 0.01 | D35: 0.19 | E35: 0.24 | F35: 0.28 | G35: 0.1 | J35: =J34/$T$34 -> 79% | K35: =K34/$T$34 -> 12% | L35: 3% | M35: 2% | N35: 1% | O35: 1% | P35: 1% | Q35: 0% | R35: 0% | S35: 0%
A36: 0.23 | B36: 0.08 | C36: 0.05 | D36: 0.23 | E36: 0.21 | F36: 0.22 | G36: 0.01
A37: 0.62 | B37: 0 | C37: 0.01 | D37: 0.62 | E37: 0.14 | F37: 0.15 | G37: 0
A38: 0.03 | B38: 0.44 | C38: 0.04 | D38: 0.03 | E38: 0.18 | F38: 0.03 | G38: 0
A39: 0.23 | B39: 0 | C39: 0.01 | D39: 0.23 | E39: 0.44 | F39: 0.18 | G39: 0
A40: 0.00 | B40: 0.42 | C40: 0.06 | D40: 0 | E40: 0.14 | F40: 0.17 | G40: 0.02
A41: 0.06 | B41: 0.13 | C41: 0.07 | D41: 0.06 | E41: 0.23 | F41: 0.26 | G41: 0.01
A42: 0.03 | B42: 0 | C42: 0.19 | D42: 0.03 | E42: 0.18 | F42: 0.13 | G42: 0
A43: 0.59 | B43: 0.2 | C43: 0.04 | D43: 0.59 | E43: 0.11 | F43: 0.17 | G43: 0
A44: 0.00 | B44: 0.58 | C44: 0.03 | D44: 0 | E44: 0.23 | F44: 0.13 | G44: 0.16
A45: 0.13 | B45: 0.25 | C45: 0.14 | D45: 0.13 | E45: 0.25 | F45: 0.17 | G45: 0
A46: 0.04 | B46: 0 | C46: 0.03 | D46: 0.04 | E46: 0.17 | F46: 0.13 | G46: 0.14
A47: 0.29 | B47: 0 | C47: 0.22 | D47: 0.29 | E47: 0.31 | F47: 0.4 | G47: 0.47
A48: 0.01 | B48: 0 | C48: 0.03 | D48: 0.01 | E48: 0.24 | F48: 0.14 | G48: 0.6
A49: 0.18 | B49: 0 | C49: 0.15 | D49: 0.18 | E49: 0.22 | F49: 0.11 | G49: 0
A50: 0.02 | B50: 0.1 | C50: 0.1 | D50: 0.02 | E50: 0.15 | F50: 0.2 | G50: 0.05
A51: 0.02 | B51: 0.11 | C51: 0.07 | D51: 0.02 | E51: 0.24 | F51: 0.26 | G51: 0.01
A52: 0.04 | B52: 0 | C52: 0.02 | D52: 0.04 | E52: 0.17 | F52: 0.27 | G52: 0
A53: 0.32 | B53: 0.25 | C53: 0.16 | D53: 0.32 | E53: 0.19 | F53: 0.39 | G53: 0.33
A54: 0.27 | B54: 0 | C54: 0.1 | D54: 0.27 | E54: 0.15 | F54: 0.16 | G54: 0.03
A55: 0.28 | B55: 0 | C55: 0 | D55: 0.28 | E55: 0.31 | F55: 0.09 | G55: 0.71
A56: 0.06 | B56: 0.17 | C56: 0.02 | D56: 0.06 | E56: 0.27 | F56: 0.18 | G56: 0.36
A57: 0.17 | B57: 0 | C57: 0.55 | D57: 0.17 | E57: 0.08 | F57: 0.16 | G57: 0.31
A58: 0.19 | B58: 0.31 | C58: 0.13 | D58: 0.19 | E58: 0.21 | F58: 0.24 | G58: 0.08
A59: 0.15 | B59: 0.13 | C59: 0.03 | D59: 0.15 | E59: 0.25 | F59: 0.21 | G59: 0.64
A60: 0.03 | B60: 0.1 | C60: 0.03 | D60: 0.03 | E60: 0.16 | F60: 0.12 | G60: 0.17
A61: 0.05 | B61: 0 | C61: 0.03 | D61: 0.05 | E61: 0.16 | F61: 0.2 | G61: 0.22
A62: 0.02 | B62: 0.33 | C62: 0.01 | D62: 0.02 | E62: 0.2 | F62: 0.39 | G62: 0
A63: 0.26 | B63: 0.5 | C63: 0.05 | D63: 0.26 | E63: 0.25 | F63: 0.16 | G63: 0.21
A64: 0.11 | B64: 0.62 | C64: 0 | D64: 0.11 | E64: 0.37 | F64: 0.11 | G64: 0.09
A65: 0.04 | B65: 0 | C65: 0.11 | D65: 0.04 | E65: 0.28 | F65: 0.18 | G65: 0.01
A66: 0.10 | B66: 0 | C66: 0.01 | D66: 0.1 | E66: 0.17 | F66: 0.08 | G66: 0
A67: 0.04 | B67: 0.05 | C67: 0.21 | D67: 0.04 | E67: 0.17 | F67: 0.15 | G67: 0.01
A68: 0.11 | B68: 0 | C68: 0.11 | D68: 0.11 | E68: 0.19 | F68: 0.22 | G68: 0
A69: 0.05 | B69: 0.36 | C69: 0.02 | D69: 0.05 | E69: 0.25 | F69: 0.19 | G69: 0.11
A70: 0.06 | B70: 0 | C70: 0.08 | D70: 0.06 | E70: 0.24 | F70: 0.23 | G70: 0.07
A71: 0.03 | B71: 0.14 | C71: 0 | D71: 0.03 | E71: 0.46 | F71: 0.14 | G71: 0
A72: 0.06 | B72: 0.09 | C72: 0.05 | D72: 0.06 | E72: 0.26 | F72: 0.15 | G72: 0.12
A73: 0.02 | B73: 0.56 | C73: 0 | D73: 0.02 | E73: 0.21 | F73: 0.25 | G73: 0.04
A74: 0.59 | B74: 0 | C74: 0.31 | D74: 0.59 | E74: 0.19 | F74: 0.12 | G74: 0.19
A75: 0.03 | B75: 0.8 | C75: 0 | D75: 0.03 | E75: 0.37 | F75: 0.08 | G75: 0.1
A76: 0.05 | B76: 0.35 | C76: 0.15 | D76: 0.05 | E76: 0.34 | F76: 0.29 | G76: 0.02
A77: 0.04 | B77: 0.28 | C77: 0 | D77: 0.04 | E77: 0.13 | F77: 0.23 | G77: 0.02
A78: 0.07 | B78: 0.85 | C78: 0.13 | D78: 0.07 | E78: 0.21 | F78: 0.16 | G78: 0.06
A79: 0.11 | B79: 0.08 | C79: 0.02 | D79: 0.11 | E79: 0.02 | F79: 0.3 | G79: 0.04
A80: 0.00 | B80: 0 | C80: 0.09 | D80: 0 | E80: 0.15 | F80: 0.16 | G80: 0.12
A81: 0.06 | B81: 0.44 | C81: 0.15 | D81: 0.06 | E81: 0.23 | F81: 0.12 | G81: 0.05
A82: 0.05 | B82: 0 | C82: 0.08 | D82: 0.05 | E82: 0.19 | F82: 0.15 | G82: 0.03
A83: 0.03 | B83: 0.42 | C83: 0.1 | D83: 0.03 | E83: 0.19 | F83: 0.12 | G83: 0.02
A84: 0.08 | B84: 0.13 | C84: 0.04 | D84: 0.08 | E84: 0.08 | F84: 0.11 | G84: 0.14
A85: 0.14 | B85: 0 | C85: 0.15 | D85: 0.14 | E85: 0.25 | F85: 0.19 | G85: 0.16
A86: 0.11 | B86: 0.2 | C86: 0.04 | D86: 0.11 | E86: 0.45 | F86: 0.29 | G86: 0.16
A87: 0.00 | B87: 0.58 | C87: 0.01 | D87: 0 | E87: 0.19 | F87: 0.17 | G87: 0.01
A88: 0.00 | B88: 0.4 | C88: 0.03 | D88: 0 | E88: 0.23 | F88: 0.11 | G88: 0.03
A89: 0.00 | B89: 0 | C89: 0.01 | D89: 0 | E89: 0.04 | F89: 0.22 | G89: 0.04
A90: 0.00 | B90: 0 | C90: 0.02 | D90: 0 | E90: 0.28 | F90: 0.36 | G90: 0.01
A91: 0.69 | B91: 0.86 | C91: 0.08 | D91: 0.69 | E91: 0.29 | F91: 0.16 | G91: 0.03
A92: 0.03 | B92: 0 | C92: 0.04 | D92: 0.03 | E92: 0.16 | F92: 0.21 | G92: 0.02
A93: 0.00 | B93: 0.21 | C93: 0 | D93: 0 | E93: 0.18 | F93: 0.21 | G93: 0.02
A94: 0.02 | B94: 0 | C94: 0.1 | D94: 0.02 | E94: 0.23 | F94: 0.26 | G94: 0.02
A95: 0.00 | B95: 0 | C95: 0.07 | D95: 0 | E95: 0.49 | F95: 0.23 | G95: 0.01
A96: 0.04 | B96: 0.27 | C96: 0 | D96: 0.04 | E96: 0.04 | F96: 0.18 | G96: 0.07
A97: 0.00 | B97: 0.19 | C97: 0.01 | D97: 0 | E97: 0.16 | F97: 0.23 | G97: 0.06
A98: 0.00 | B98: 0.27 | C98: 0.13 | D98: 0 | E98: 0.24 | F98: 0.23 | G98: 0.01
A99: 0.00 | B99: 0.19 | C99: 0.01 | D99: 0 | E99: 0.17 | F99: 0.12 | G99: 0.02
A100: 0.00 | B100: 0.25 | C100: 0.02 | D100: 0 | E100: 0.2 | F100: 0.2 | G100: 0.08
A101: 0.11 | B101: 0.93 | C101: 0.14 | D101: 0.11 | E101: 0.19 | F101: 0.36 | G101: 0.08
A102: 0.13 | B102: 0.07 | C102: 0.15 | D102: 0.13 | E102: 0.12 | F102: 0.41 | G102: 0.05
A103: 0.00 | B103: 0.03 | C103: 0.02 | D103: 0 | E103: 0.26 | F103: 0.32 | G103: 0.05
A104: 0.81 | B104: 0.15 | C104: 0.17 | D104: 0.81 | E104: 0.23 | F104: 0.56 | G104: 0.08
A105: 0.11 | B105: 0 | C105: 0 | D105: 0.11 | E105: 0.22 | F105: 0.21 | G105: 0.15
A106: 0.05 | B106: 0.07 | C106: 0.02 | D106: 0.05 | E106: 0.19 | F106: 0.25 | G106: 0.07
A107: 0.06 | B107: 0 | C107: 0.03 | D107: 0.06 | E107: 0.21 | F107: 0.27 | G107: 0.04
A108: 0.05 | B108: 0.15 | C108: 0.41 | D108: 0.05 | E108: 0.22 | F108: 0.18 | G108: 0.09
A109: 0.03 | B109: 0.02 | C109: 0.01 | D109: 0.03 | E109: 0.1 | F109: 0.15 | G109: 0.09
A110: 0.61 | B110: 0.4 | C110: 0.18 | D110: 0.61 | E110: 0.14 | F110: 0.17 | G110: 0.03
A111: 0.28 | B111: 0.43 | C111: 0.26 | D111: 0.28 | E111: 0.19 | F111: 0.15 | G111: 0.08
A112: 0.09 | B112: 0.08 | C112: 0.02 | D112: 0.09 | E112: 0.26 | F112: 0.24 | G112: 0.12
A113: 0.08 | B113: 0.2 | C113: 0.03 | D113: 0.08 | E113: 0.44 | F113: 0.24 | G113: 0.05
A114: 0.40 | B114: 0.17 | C114: 0.12 | D114: 0.4 | E114: 0.37 | F114: 0.16 | G114: 0.05
A115: 0.00 | B115: 0 | C115: 0 | D115: 0 | E115: 0.35 | F115: 0.22 | G115: 0.08
A116: 0.12 | B116: 0.82 | C116: 0.08 | D116: 0.12 | E116: 0.14 | F116: 0.13 | G116: 0.05
A117: 0.01 | B117: 0.75 | C117: 0.03 | D117: 0.01 | E117: 0.21 | F117: 0.15 | G117: 0.12
A118: 0.00 | B118: 0.18 | C118: 0.05 | D118: 0 | E118: 0.09 | F118: 0.15 | G118: 0.05
A119: 0.12 | B119: 0 | C119: 0.01 | D119: 0.12 | E119: 0.25 | F119: 0.19 | G119: 0
A120: 0.04 | B120: 0 | C120: 0.03 | D120: 0.04 | E120: 0.25 | F120: 0.24 | G120: 0.02
A121: 0.11 | B121: 0.18 | C121: 0.04 | D121: 0.11 | E121: 0.21 | F121: 0.17 | G121: 0.07
A122: 0.04 | B122: 0 | C122: 0.06 | D122: 0.04 | E122: 0.19 | F122: 0.14 | G122: 0.04
A123: 0.40 | B123: 0.29 | C123: 0.13 | D123: 0.4 | E123: 0.34 | F123: 0.2 | G123: 0.02
A124: 0.04 | B124: 0.08 | C124: 0.08 | D124: 0.04 | E124: 0.17 | F124: 0.26 | G124: 0.03
A125: 0.07 | B125: 0.57 | C125: 0.03 | D125: 0.07 | E125: 0.21 | F125: 0.22 | G125: 0.13
A126: 0.03 | B126: 0.17 | C126: 0.08 | D126: 0.03 | E126: 0.24 | F126: 0.14 | G126: 0.12
A127: 0.01 | B127: 0.08 | C127: 0.03 | D127: 0.01 | E127: 0.19 | F127: 0.09 | G127: 0.18
A128: 0.05 | B128: 0.16 | C128: 0.21 | D128: 0.05 | E128: 0.27 | F128: 0.25 | G128: 0.02
A129: 0.83 | B129: 0.1 | C129: 0.09 | D129: 0.83 | E129: 0.28 | F129: 0.22 | G129: 0.01
A130: 0.02 | B130: 0.1 | C130: 0.02 | D130: 0.02 | E130: 0.25 | F130: 0.25 | G130: 0.06
A131: 0.11 | B131: 0.01 | C131: 0 | D131: 0.11 | E131: 0.23 | F131: 0.23 | G131: 0.05
A132: 0.08 | B132: 0.08 | C132: 0.05 | D132: 0.08 | E132: 0.2 | F132: 0.22 | G132: 0.01
A133: 0.21 | B133: 0.21 | C133: 0.16 | D133: 0.21 | E133: 0.26 | F133: 0.28 | G133: 0.03
A134: 0.71 | B134: 0.1 | C134: 0.03 | D134: 0.71 | E134: 0.28 | F134: 0.19 | G134: 0.2
A135: 0.55 | B135: 0.13 | C135: 0 | D135: 0.55 | E135: 0.16 | F135: 0.19 | G135: 0.26
A136: 0.03 | B136: 0.56 | C136: 0.05 | D136: 0.03 | E136: 0.12 | F136: 0.55 | G136: 0.02
A137: 0.17 | B137: 0.31 | C137: 0.03 | D137: 0.17 | E137: 0.08 | F137: 0.24 | G137: 0.02
A138: 0.02 | B138: 0.03 | C138: 0.1 | D138: 0.02 | E138: 0.15 | F138: 0.14 | G138: 0.02
A139: 0.00 | B139: 0.68 | C139: 0.06 | D139: 0 | E139: 0.18 | F139: 0.18 | G139: 0.08
A140: 0.00 | B140: 0.02 | C140: 0.08 | D140: 0 | E140: 0.21 | F140: 0.19 | G140: 0.04
A141: 0.83 | B141: 0 | C141: 0.14 | D141: 0.83 | E141: 0.09 | F141: 0.24 | G141: 0.02
A142: 0.00 | B142: 0.13 | C142: 0.36 | D142: 0 | E142: 0.19 | F142: 0.19 | G142: 0.05
A143: 0.00 | B143: 0 | C143: 0.03 | D143: 0 | E143: 0.24 | F143: 0.26 | G143: 0.02
A144: 0.00 | B144: 0 | C144: 0.08 | D144: 0 | E144: 0.27 | F144: 0.15 | G144: 0.01
A145: 0.04 | B145: 0.79 | C145: 0.19 | D145: 0.04 | E145: 0.12 | F145: 0.17 | G145: 0.08
A146: 0.13 | B146: 0 | C146: 0.16 | D146: 0.13 | E146: 0.09 | F146: 0.23 | G146: 0.05
A147: 0.00 | B147: 0.25 | C147: 0.17 | D147: 0 | E147: 0.21 | F147: 0.54 | G147: 0.17
A148: 0.00 | B148: 0.17 | C148: 0.01 | D148: 0 | E148: 0.25 | F148: 0.17 | G148: 0.12
A149: 0.01 | B149: 0.22 | C149: 0.18 | D149: 0.01 | E149: 0.28 | F149: 0.19 | G149: 0.05
A150: 0.02 | B150: 0.61 | C150: 0.16 | D150: 0.02 | E150: 0.27 | F150: 0.29 | G150: 0.07
A151: 0.02 | B151: 0.1 | C151: 0.03 | D151: 0.02 | E151: 0.42 | F151: 0.21 | G151: 0.14
A152: 0.00 | B152: 0.39 | C152: 0.03 | D152: 0 | E152: 0.24 | F152: 0.24 | G152: 0.1
A153: 0.00 | B153: 0.03 | C153: 0.06 | D153: 0 | E153: 0.25 | F153: 0.28 | G153: 0.09
A154: 0.03 | B154: 0.01 | C154: 0.19 | D154: 0.03 | E154: 0.21 | F154: 0.17 | G154: 0.03
A155: 0.13 | B155: 0.84 | C155: 0.03 | D155: 0.13 | E155: 0.19 | F155: 0.1 | G155: 0.02
A156: 0.02 | B156: 0.05 | C156: 0.08 | D156: 0.02 | E156: 0.12 | F156: 0.27 | G156: 0.09
A157: 0.34 | B157: 0.42 | C157: 0 | D157: 0.34 | E157: 0.17 | F157: 0.14 | G157: 0.01
A158: 0.15 | B158: 0.3 | C158: 0.17 | D158: 0.15 | E158: 0.27 | F158: 0.21 | G158: 0
A159: 0.03 | B159: 0 | C159: 0.08 | D159: 0.03 | E159: 0.31 | F159: 0.16 | G159: 0.02
A160: 0.11 | B160: 0.02 | C160: 0.07 | D160: 0.11 | E160: 0.48 | F160: 0.19 | G160: 0
A161: 0.00 | B161: 0.05 | C161: 0.09 | D161: 0 | E161: 0.23 | F161: 0.3 | G161: 0.02
A162: 0.02 | B162: 0.21 | C162: 0.07 | D162: 0.02 | E162: 0.21 | F162: 0.24 | G162: 0.01
A163: 0.22 | B163: 0.07 | C163: 0.4 | D163: 0.22 | E163: 0.27 | F163: 0.2 | G163: 0
A164: 0.05 | B164: 0.71 | C164: 0.01 | D164: 0.05 | E164: 0.22 | F164: 0.19 | G164: 0.02
A165: 0.00 | B165: 0.11 | C165: 0 | D165: 0 | E165: 0.2 | F165: 0.17 | G165: 0.05
A166: 0.10 | B166: 0.17 | C166: 0.1 | D166: 0.1 | E166: 0.15 | F166: 0.14 | G166: 0.01
A167: 0.05 | B167: 0.67 | C167: 0.01 | D167: 0.05 | E167: 0.23 | F167: 0.23 | G167: 0.01
A168: 0.00 | B168: 0.23 | C168: 0.03 | D168: 0 | E168: 0.27 | F168: 0.1 | G168: 0.07
A169: 0.08 | B169: 0 | C169: 0.08 | D169: 0.08 | E169: 0.04 | F169: 0.27 | G169: 0
A170: 0.05 | B170: 0.09 | C170: 0.02 | D170: 0.05 | E170: 0.14 | F170: 0.23 | G170: 0
A171: 0.05 | B171: 0.04 | C171: 0.1 | D171: 0.05 | E171: 0.07 | F171: 0.23 | G171: 0
A172: 0.04 | B172: 0.01 | C172: 0.09 | D172: 0.04 | E172: 0.28 | F172: 0.32 | G172: 0
A173: 0.03 | B173: 0 | C173: 0.07 | D173: 0.03 | E173: 0.28 | F173: 0.25 | G173: 0.01
A174: 0.11 | B174: 0.03 | C174: 0.01 | D174: 0.11 | E174: 0.09 | F174: 0.26 | G174: 0
A175: 0.06 | B175: 0.47 | C175: 0.35 | D175: 0.06 | E175: 0.31 | F175: 0.24 | G175: 0.01
A176: 0.01 | B176: 0.03 | C176: 0.35 | D176: 0.01 | E176: 0.27 | F176: 0.2 | G176: 0.02
A177: 0.14 | B177: 0.13 | C177: 0.04 | D177: 0.14 | E177: 0.39 | F177: 0.17 | G177: 0
A178: 0.00 | B178: 0.15 | C178: 0.27 | D178: 0 | E178: 0.2 | F178: 0.18 | G178: 0
A179: 0.10 | B179: 0 | C179: 0.09 | D179: 0.1 | E179: 0.22 | F179: 0.22 | G179: 0
A180: 0.10 | B180: 0.11 | C180: 0.01 | D180: 0.1 | E180: 0.28 | F180: 0.21 | G180: 0
A181: 0.03 | B181: 0.02 | C181: 0 | D181: 0.03 | E181: 0.28 | F181: 0.15 | G181: 0
A182: 0.82 | B182: 0.03 | C182: 0.14 | D182: 0.82 | E182: 0.25 | F182: 0.12 | G182: 0.02
A183: 0.09 | B183: 0.05 | C183: 0.04 | D183: 0.09 | E183: 0.14 | F183: 0.3 | G183: 0.01
A184: 0.00 | B184: 0 | C184: 0.33 | D184: 0 | E184: 0.21 | F184: 0.22 | G184: 0.1
A185: 0.10 | B185: 0.43 | C185: 0.07 | D185: 0.1 | E185: 0.24 | F185: 0.07 | G185: 0.01
A186: 0.04 | B186: 0.03 | C186: 0 | D186: 0.04 | E186: 0.19 | F186: 0.23 | G186: 0.01
A187: 0.02 | B187: 0.34 | C187: 0.17 | D187: 0.02 | E187: 0.18 | F187: 0.26 | G187: 0.01
A188: 0.04 | B188: 0 | C188: 0.02 | D188: 0.04 | E188: 0.15 | F188: 0.18 | G188: 0.02
A189: 0.07 | B189: 0.04 | C189: 0.01 | D189: 0.07 | E189: 0.1 | F189: 0.23 | G189: 0.01
A190: 0.12 | B190: 0.03 | C190: 0.02 | D190: 0.12 | E190: 0.26 | F190: 0.22 | G190: 0.02
A191: 0.00 | B191: 0.18 | C191: 0.64 | D191: 0 | E191: 0.2 | F191: 0.14 | G191: 0.13
A192: 0.12 | B192: 0.01 | C192: 0 | D192: 0.12 | E192: 0.23 | F192: 0.14 | G192: 0.02
A193: 0.01 | B193: 0.03 | C193: 0.14 | D193: 0.01 | E193: 0.13 | F193: 0.28 | G193: 0.01
A194: 0.13 | B194: 0.08 | C194: 0.2 | D194: 0.13 | E194: 0.55 | F194: 0.27 | G194: 0.02
A195: 0.02 | B195: 0.03 | C195: 0.84 | D195: 0.02 | E195: 0.41 | F195: 0.23 | G195: 0.03
A196: 0.07 | B196: 0.14 | C196: 0 | D196: 0.07 | E196: 0.18 | F196: 0.23 | G196: 0.02
A197: 0.33 | B197: 0.26 | C197: 0.42 | D197: 0.33 | E197: 0.16 | F197: 0.21 | G197: 0.04
A198: 0.17 | B198: 0.04 | C198: 0.08 | D198: 0.17 | E198: 0.18 | F198: 0.18 | G198: 0.03
A199: 0.13 | B199: 0.06 | C199: 0.28 | D199: 0.13 | E199: 0.2 | F199: 0.26 | G199: 0.03
A200: 0.00 | B200: 0.07 | C200: 0.06 | D200: 0 | E200: 0.3 | F200: 0.16 | G200: 0
... 8654 more rows

Sheet POC1B PC
A1: POC1B PC/Total | B1: Bull 1 | C1: Bull 2 | D1: Bull 3 | E1: Bull 4 | F1: Bull 5 | G1: Bull 6
A2: 0.00 | C2: 0.16 | F2: 0.25 | G2: 0.28 | I2: Bins | J2: 0.05 | K2: 0.15 | L2: 0.25 | M2: 0.35 | N2: 0.45 | O2: 0.55 | P2: 0.65 | Q2: 0.75 | R2: 0.85 | S2: 0.95
C3: 0.13 | F3: 0.25 | G3: 0.16 | J3: 0 | K3: .1-.2 | L3: .2-.3 | M3: .3-.4 | N3: .4-.5 | O3: .5-.6 | P3: .6-.7 | Q3: .7-.8 | R3: .8-.9 | S3: .9-1
C4: 0.13 | F4: 0 | G4: 0.48 | J4: =(COUNTIFS(A:A, "<=0.1")) -> 502 | K4: =COUNTIFS(A:A,">0.1",A:A,"<=0.2") -> 2209 | L4: =COUNTIFS(A:A,">0.2",A:A,"<=0.3") -> 1663 | M4: =COUNTIFS(A:A,">0.3",A:A,"<=0.4") -> 288 | N4: =COUNTIFS(A:A,">0.4",A:A,"<=0.5") -> 42 | O4: =COUNTIFS(A:A,">0.5",A:A,"<=0.6") -> 8 | P4: =COUNTIFS(A:A,">0.6",A:A,"<=0.7") -> 2 | Q4: =COUNTIFS(A:A,">0.7",A:A,"<=0.8") -> 0 | R4: =COUNTIFS(A:A,">0.8",A:A,"<=0.9") -> 2 | S4: =COUNTIFS(A:A,">0.9",A:A,"<=1") -> 3 | T4: =SUM(J4:S4) -> 4719
C5: 0.16 | F5: 0.11 | G5: 0.27 | J5: =J4/$T$4 -> 11% | K5: =K4/$T$4 -> 47% | L5: 35% | M5: 6% | N5: 1% | O5: 0% | P5: 0% | Q5: 0% | R5: 0% | S5: 0%
C6: 0.18 | F6: 0.06 | G6: 0.25
C7: 0.17 | F7: 0.27 | G7: 0.25
C8: 0.13 | F8: 0 | G8: 0.31 | I8: Bull 1 | J8: 0.05 | K8: 0.15 | L8: 0.25 | M8: 0.35 | N8: 0.45 | O8: 0.55 | P8: 0.65 | Q8: 0.75 | R8: 0.85 | S8: 0.95
C9: 0.16 | F9: 0.17 | G9: 0.26 | J9: =(COUNTIFS(B:B, "<=0.1")) -> 98 | K9: =COUNTIFS(B:B,">0.1",B:B,"<=0.2") -> 209 | L9: =COUNTIFS(B:B,">0.2",B:B,"<=0.3") -> 88 | M9: =COUNTIFS(B:B,">0.3",B:B,"<=0.4") -> 16 | N9: =COUNTIFS(B:B,">0.4",B:B,"<=0.5") -> 2 | O9: =COUNTIFS(B:B,">0.5",B:B,"<=0.6") -> 2 | P9: =COUNTIFS(B:B,">0.6",B:B,"<=0.7") -> 0 | Q9: =COUNTIFS(B:B,">0.7",B:B,"<=0.8") -> 0 | R9: =COUNTIFS(B:B,">0.8",B:B,"<=0.9") -> 1 | S9: =COUNTIFS(B:B,">0.9",B:B,"<=1") -> 0 | T9: =SUM(J9:S9) -> 416
C10: 0.13 | F10: 0.12 | G10: 0.32 | J10: =J9/$T$9 -> 24% | K10: =K9/$T$9 -> 50% | L10: 21% | M10: 4% | N10: 0% | O10: 0% | P10: 0% | Q10: 0% | R10: 0% | S10: 0%
C11: 0.31 | F11: 0.23 | G11: 0.32
C12: 0.24 | F12: 0 | G12: 0.18
C13: 0.16 | F13: 0 | G13: 0.22 | I13: Bull 2 | J13: 0.05 | K13: 0.15 | L13: 0.25 | M13: 0.35 | N13: 0.45 | O13: 0.55 | P13: 0.65 | Q13: 0.75 | R13: 0.85 | S13: 0.95
C14: 0.15 | F14: 0.32 | G14: 0.36 | J14: =(COUNTIFS(C:C, "<=0.1")) -> 36 | K14: =COUNTIFS(C:C,">0.1",C:C,"<=0.2") -> 168 | L14: =COUNTIFS(C:C,">0.2",C:C,"<=0.3") -> 53 | M14: =COUNTIFS(C:C,">0.3",C:C,"<=0.4") -> 15 | N14: =COUNTIFS(C:C,">0.4",C:C,"<=0.5") -> 4 | O14: =COUNTIFS(C:C,">0.5",C:C,"<=0.6") -> 2 | P14: =COUNTIFS(C:C,">0.6",C:C,"<=0.7") -> 0 | Q14: =COUNTIFS(C:C,">0.7",C:C,"<=0.8") -> 0 | R14: =COUNTIFS(C:C,">0.8",C:C,"<=0.9") -> 0 | S14: =COUNTIFS(C:C,">0.9",C:C,"<=1") -> 0 | T14: =SUM(J14:S14) -> 278
C15: 0.12 | F15: 0.21 | G15: 0.26 | J15: =J14/$T$14 -> 13% | K15: =K14/$T$14 -> 60% | L15: 19% | M15: 5% | N15: 1% | O15: 1% | P15: 0% | Q15: 0% | R15: 0% | S15: 0%
C16: 0.13 | F16: 0.17 | G16: 0.49
C17: 0.19 | F17: 0.2 | G17: 0.3
C18: 0.16 | F18: 0 | G18: 0.32 | I18: Bull 3 | J18: 0.05 | K18: 0.15 | L18: 0.25 | M18: 0.35 | N18: 0.45 | O18: 0.55 | P18: 0.65 | Q18: 0.75 | R18: 0.85 | S18: 0.95
C19: 0.14 | F19: 0.33 | G19: 0.3 | J19: =(COUNTIFS(D:D, "<=0.1")) -> 102 | K19: =COUNTIFS(D:D,">0.1",D:D,"<=0.2") -> 200 | L19: =COUNTIFS(D:D,">0.2",D:D,"<=0.3") -> 60 | M19: =COUNTIFS(D:D,">0.3",D:D,"<=0.4") -> 18 | N19: =COUNTIFS(D:D,">0.4",D:D,"<=0.5") -> 8 | O19: =COUNTIFS(D:D,">0.5",D:D,"<=0.6") -> 0 | P19: =COUNTIFS(D:D,">0.6",D:D,"<=0.7") -> 1 | Q19: =COUNTIFS(D:D,">0.7",D:D,"<=0.8") -> 0 | R19: =COUNTIFS(D:D,">0.8",D:D,"<=0.9") -> 0 | S19: =COUNTIFS(D:D,">0.9",D:D,"<=1") -> 1 | T19: =SUM(J19:S19) -> 390
C20: 0.17 | F20: 0.09 | G20: 0.35 | J20: =J19/$T$19 -> 26% | K20: =K19/$T$19 -> 51% | L20: 15% | M20: 5% | N20: 2% | O20: 0% | P20: 0% | Q20: 0% | R20: 0% | S20: 0%
C21: 0.12 | F21: 0.38 | G21: 0.3
C22: 0.18 | F22: 0.23 | G22: 0.28
C23: 0.14 | F23: 0.22 | G23: 0.49 | I23: Bull 4 | J23: 0.05 | K23: 0.15 | L23: 0.25 | M23: 0.35 | N23: 0.45 | O23: 0.55 | P23: 0.65 | Q23: 0.75 | R23: 0.85 | S23: 0.95
C24: 0.2 | F24: 0.18 | G24: 0.33 | J24: =(COUNTIFS(E:E, "<=0.1")) -> 3 | K24: =COUNTIFS(E:E,">0.1",E:E,"<=0.2") -> 44 | L24: =COUNTIFS(E:E,">0.2",E:E,"<=0.3") -> 67 | M24: =COUNTIFS(E:E,">0.3",E:E,"<=0.4") -> 18 | N24: =COUNTIFS(E:E,">0.4",E:E,"<=0.5") -> 7 | O24: =COUNTIFS(E:E,">0.5",E:E,"<=0.6") -> 0 | P24: =COUNTIFS(E:E,">0.6",E:E,"<=0.7") -> 0 | Q24: =COUNTIFS(E:E,">0.7",E:E,"<=0.8") -> 1 | R24: =COUNTIFS(E:E,">0.8",E:E,"<=0.9") -> 1 | S24: =COUNTIFS(E:E,">0.9",E:E,"<=1") -> 0 | T24: =SUM(J24:S24) -> 141
C25: 0.16 | F25: 0.41 | G25: 0.25 | J25: =J24/$T$24 -> 2% | K25: =K24/$T$24 -> 31% | L25: =L24/$T$24 -> 48% | M25: 13% | N25: 5% | O25: 0% | P25: 0% | Q25: 1% | R25: 1% | S25: 0%
C26: 0.25 | F26: 0.37 | G26: 0.21
C27: 0.12 | F27: 0.35 | G27: 0.14
C28: 0.18 | F28: 0.36 | G28: 0.29 | I28: Bull 5 | J28: 0.05 | K28: 0.15 | L28: 0.25 | M28: 0.35 | N28: 0.45 | O28: 0.55 | P28: 0.65 | Q28: 0.75 | R28: 0.85 | S28: 0.95
F29: 0.28 | G29: 0.34 | J29: =(COUNTIFS(F:F, "<=0.1")) -> 11 | K29: =COUNTIFS(F:F,">0.1",F:F,"<=0.2") -> 50 | L29: =COUNTIFS(F:F,">0.2",F:F,"<=0.3") -> 70 | M29: =COUNTIFS(F:F,">0.3",F:F,"<=0.4") -> 18 | N29: =COUNTIFS(F:F,">0.4",F:F,"<=0.5") -> 1 | O29: =COUNTIFS(F:F,">0.5",F:F,"<=0.6") -> 1 | P29: =COUNTIFS(F:F,">0.6",F:F,"<=0.7") -> 0 | Q29: =COUNTIFS(F:F,">0.7",F:F,"<=0.8") -> 0 | R29: =COUNTIFS(F:F,">0.8",F:F,"<=0.9") -> 0 | S29: =COUNTIFS(F:F,">0.9",F:F,"<=1") -> 0 | T29: =SUM(J29:S29) -> 151
F30: 0.31 | G30: 0.17 | J30: =J29/$T$29 -> 7% | K30: =K29/$T$29 -> 33% | L30: 46% | M30: 12% | N30: 1% | O30: 1% | P30: 0% | Q30: 0% | R30: 0% | S30: 0%
F31: 0.34 | G31: 0.2
F32: 0.29 | G32: 0.34
F33: 0.3 | G33: 0.31 | I33: Bull 6 | J33: 0.05 | K33: 0.15 | L33: 0.25 | M33: 0.35 | N33: 0.45 | O33: 0.55 | P33: 0.65 | Q33: 0.75 | R33: 0.85 | S33: 0.95
F34: 0.28 | G34: 0.39 | J34: =(COUNTIFS(G:G, "<=0.1")) -> 10 | K34: =COUNTIFS(G:G,">0.1",G:G,"<=0.2") -> 85 | L34: =COUNTIFS(G:G,">0.2",G:G,"<=0.3") -> 74 | M34: =COUNTIFS(G:G,">0.3",G:G,"<=0.4") -> 34 | N34: =COUNTIFS(G:G,">0.4",G:G,"<=0.5") -> 12 | O34: =COUNTIFS(G:G,">0.5",G:G,"<=0.6") -> 3 | P34: =COUNTIFS(G:G,">0.6",G:G,"<=0.7") -> 1 | Q34: =COUNTIFS(G:G,">0.7",G:G,"<=0.8") -> 0 | R34: =COUNTIFS(G:G,">0.8",G:G,"<=0.9") -> 0 | S34: =COUNTIFS(G:G,">0.9",G:G,"<=1") -> 0 | T34: =SUM(J34:S34) -> 219
F35: 0.26 | G35: 0.48 | J35: =J34/$T$34 -> 5% | K35: =K34/$T$34 -> 39% | L35: 34% | M35: 16% | N35: 5% | O35: 1% | P35: 0% | Q35: 0% | R35: 0% | S35: 0%
F36: 0.28 | G36: 0.3
F37: 0.32 | G37: 0.21
F38: 0.3 | G38: 0.34
F39: 0.28 | G39: 0.38
F40: 0.21 | G40: 0.26
F41: 0.27 | G41: 0.3
F42: 0.27 | G42: 0.35
F43: 0.28 | G43: 0.48
F44: 0.26 | G44: 0.24
F45: 0.17 | G45: 0.13
F46: 0.31 | G46: 0.57
F47: 0.33 | G47: 0.23
F48: 0.26 | G48: 0.5
F49: 0.3 | G49: 0.3
F50: 0.12 | G50: 0.34
F51: 0.16 | G51: 0.34
F52: 0.3 | G52: 0.19
F53: 0.26 | G53: 0.23
G54: 0.3
G55: 0.44
G56: 0.38
G57: 0.17
G58: 0.6
G59: 0.14
G60: 0.29
G61: 0.46
G62: 0.22
G63: 0.18
A64: 0.15 | D64: 0.15 | G64: 0.23
A65: 0.13 | D65: 0.13 | G65: 0.49
A66: 0.13 | D66: 0.13 | G66: 0.35
A67: 0.10 | D67: 0.1 | G67: 0.25
A68: 0.09 | D68: 0.09 | G68: 0.26
A69: 0.12 | D69: 0.12 | G69: 0.15
A70: 0.09 | D70: 0.09 | G70: 0.2
A71: 0.17 | D71: 0.17 | G71: 0.34
A72: 0.12 | D72: 0.12 | G72: 0.26
A73: 0.15 | D73: 0.15 | G73: 0.28
A74: 0.19 | D74: 0.19 | G74: 0.33
A75: 0.17 | D75: 0.17
A76: 0.12 | D76: 0.12
A77: 0.11 | D77: 0.11
A78: 0.13 | D78: 0.13
A79: 0.13 | D79: 0.13 | F79: 0.09
A80: 0.16 | D80: 0.16 | F80: 0.16
A81: 0.21 | D81: 0.21 | F81: 0.31
A82: 0.17 | D82: 0.17 | F82: 0.23
A83: 0.06 | D83: 0.06 | F83: 0.27
A84: 0.13 | D84: 0.13 | F84: 0.28
A85: 0.08 | D85: 0.08 | F85: 0.11
A86: 0.09 | D86: 0.09 | F86: 0.27
A87: 0.20 | D87: 0.2 | F87: 0.26
A88: 0.16 | D88: 0.16 | F88: 0.23
A89: 0.07 | D89: 0.07 | F89: 0.24
A90: 0.07 | D90: 0.07 | F90: 0.2
A91: 0.16 | D91: 0.16 | F91: 0.23
A92: 0.08 | D92: 0.08 | F92: 0.2
A93: 0.15 | D93: 0.15 | F93: 0.21
A94: 0.19 | D94: 0.19 | E94: 0.24 | F94: 0.28
A95: 0.12 | D95: 0.12 | E95: 0.35 | F95: 0.3
A96: 0.08 | D96: 0.08 | E96: 0.38 | F96: 0.24
A97: 0.09 | D97: 0.09 | E97: 0.24 | F97: 0.24
A98: 0.18 | D98: 0.18 | E98: 0.18 | F98: 0.27
A99: 0.14 | D99: 0.14 | E99: 0.21 | F99: 0.3
A100: 0.08 | D100: 0.08 | E100: 0.26 | F100: 0.11
A101: 0.14 | D101: 0.14 | E101: 0.21 | F101: 0.28
A102: 0.16 | D102: 0.16 | E102: 0 | F102: 0.3
A103: 0.05 | D103: 0.05 | E103: 0.2 | F103: 0.37
E104: 0.38 | F104: 0.14
E105: 0.23 | F105: 0.35
E106: 0.29 | F106: 0.19
E107: 0.22 | F107: 0.24
E108: 0.23 | F108: 0.2
E109: 0.26 | F109: 0.15
E110: 0.23 | F110: 0.16
E111: 0.22 | F111: 0.16
E112: 0.15 | F112: 0.17
E113: 0.32 | F113: 0.12
E114: 0.12 | F114: 0.29
E115: 0.18 | F115: 0.16
E116: 0.49 | F116: 0.26
E117: 0.23 | F117: 0.3
E118: 0.28 | F118: 0.27
E119: 0.14 | F119: 0.2
E120: 0.19 | F120: 0.29
E121: 0.31 | F121: 0.25
E122: 0.26 | F122: 0.22
E123: 0.47 | F123: 0.18
E124: 0.19 | F124: 0.26
E125: 0.17 | F125: 0.2
E126: 0.21 | F126: 0.26
E127: 0.21 | F127: 0.24
E128: 0.21 | F128: 0.23
E129: 0.19 | F129: 0.21
C130: 0.16 | E130: 0.21 | F130: 0.16
C131: 0.16 | E131: 0.3 | F131: 0.17
C132: 0.13 | E132: 0.21 | F132: 0.18
C133: 0.13 | E133: 0.29 | F133: 0.11
C134: 0.19 | E134: 0.11 | F134: 0.09
C135: 0.16 | E135: 0.3 | F135: 0.25
C136: 0.19 | E136: 0.22 | F136: 0.14
C137: 0.11 | E137: 0.16 | F137: 0.31
C138: 0.13 | E138: 0.18 | F138: 0.2
C139: 0.17 | E139: 0.26 | F139: 0.16
C140: 0.1 | E140: 0.34 | F140: 0.28
C141: 0.18 | E141: 0.13 | F141: 0.23
C142: 0.13 | E142: 0.19 | F142: 0.17
C143: 0.14 | E143: 0.38 | F143: 0.23
A144: 0.15 | C144: 0.15 | D144: 0.15 | E144: 0.23 | F144: 0.16
A145: 0.30 | C145: 0.13 | D145: 0.3 | E145: 0.22 | F145: 0.22
A146: 0.23 | C146: 0.11 | D146: 0.23 | E146: 0.81 | F146: 0.22
A147: 0.09 | C147: 0.11 | D147: 0.09 | E147: 0.4 | F147: 0.22
A148: 0.19 | C148: 0.17 | D148: 0.19 | E148: 0.26 | F148: 0.33
A149: 0.23 | C149: 0.24 | D149: 0.23 | E149: 0.22 | F149: 0.4
A150: 0.15 | C150: 0.17 | D150: 0.15 | E150: 0.21 | F150: 0
A151: 0.23 | C151: 0.24 | D151: 0.23 | E151: 0.22 | F151: 0.11
A152: 0.09 | C152: 0.16 | D152: 0.09 | E152: 0.27 | F152: 0.24
A153: 0.21 | C153: 0.16 | D153: 0.21 | E153: 0.28 | F153: 0.14
A154: 0.14 | C154: 0.12 | D154: 0.14 | E154: 0.14 | F154: 0.11
A155: 0.17 | C155: 0.18 | D155: 0.17 | E155: 0.15 | F155: 0.18
A156: 0.30 | C156: 0.13 | D156: 0.3 | E156: 0.47 | F156: 0.18
A157: 0.14 | C157: 0.21 | D157: 0.14 | E157: 0.36 | F157: 0.17
A158: 0.21 | C158: 0.16 | D158: 0.21 | E158: 0.26 | F158: 0.39
A159: 0.15 | C159: 0.1 | D159: 0.15 | E159: 0.22 | F159: 0.11
A160: 0.07 | C160: 0.16 | D160: 0.07 | E160: 0.31 | F160: 0.2
A161: 0.14 | C161: 0.26 | D161: 0.14 | E161: 0.27 | F161: 0.18
A162: 0.10 | C162: 0.18 | D162: 0.1 | E162: 0.21 | F162: 0.21
A163: 0.16 | C163: 0.15 | D163: 0.16 | E163: 0.19 | F163: 0.11
A164: 0.12 | C164: 0.15 | D164: 0.12 | E164: 0.22 | F164: 0.24
A165: 0.09 | C165: 0.19 | D165: 0.09 | E165: 0.33 | F165: 0.23
A166: 0.13 | C166: 0.13 | D166: 0.13 | E166: 0.36 | F166: 0.17
A167: 0.17 | C167: 0.21 | D167: 0.17 | E167: 0.26 | F167: 0.23
A168: 0.10 | C168: 0.15 | D168: 0.1 | E168: 0.11 | F168: 0.18
A169: 0.12 | C169: 0.2 | D169: 0.12 | E169: 0.18 | F169: 0.09
A170: 0.13 | C170: 0.2 | D170: 0.13 | E170: 0.2 | F170: 0.25
A171: 0.15 | C171: 0.14 | D171: 0.15 | E171: 0.23 | F171: 0.26
A172: 0.19 | C172: 0.19 | D172: 0.19 | E172: 0.26 | F172: 0.13
A173: 0.10 | C173: 0.21 | D173: 0.1 | E173: 0.19 | F173: 0.15
A174: 0.16 | C174: 0.24 | D174: 0.16 | E174: 0.44 | F174: 0.24
A175: 0.10 | C175: 0.16 | D175: 0.1 | E175: 0.14 | F175: 0.26
A176: 0.09 | C176: 0.16 | D176: 0.09 | E176: 0.27 | F176: 0.11
A177: 0.10 | C177: 0.17 | D177: 0.1 | E177: 0.15 | F177: 0.6
A178: 0.16 | C178: 0.12 | D178: 0.16 | E178: 0.25
A179: 0.09 | B179: 0.12 | C179: 0.16 | D179: 0.09 | E179: 0.22
A180: 0.08 | B180: 0.19 | C180: 0.09 | D180: 0.08 | E180: 0.28
A181: 0.11 | B181: 0.16 | C181: 0.23 | D181: 0.11 | E181: 0.17
A182: 0.14 | B182: 0.22 | C182: 0.33 | D182: 0.14 | E182: 0.22
A183: 0.13 | B183: 0.13 | C183: 0.22 | D183: 0.13 | E183: 0.22
A184: 0.14 | B184: 0.25 | C184: 0.18 | D184: 0.14 | E184: 0.19
A185: 0.09 | B185: 0.22 | C185: 0.13 | D185: 0.09 | E185: 0.19
A186: 0.15 | B186: 0.06 | C186: 0.15 | D186: 0.15 | E186: 0.46
A187: 0.12 | B187: 0.19 | C187: 0.11 | D187: 0.12 | E187: 0.27
A188: 0.22 | B188: 0.1 | C188: 0.19 | D188: 0.22 | E188: 0.22
A189: 0.20 | B189: 0.1 | C189: 0.07 | D189: 0.2 | E189: 0.32
A190: 0.17 | B190: 0.18 | C190: 0.21 | D190: 0.17 | E190: 0.23
A191: 0.09 | B191: 0.17 | C191: 0.1 | D191: 0.09 | E191: 0.24
A192: 0.06 | B192: 0.15 | C192: 0.21 | D192: 0.06 | E192: 0.17
A193: 0.09 | B193: 0.17 | C193: 0.07 | D193: 0.09 | E193: 0.22
A194: 0.18 | B194: 0.17 | C194: 0.18 | D194: 0.18 | E194: 0.21
A195: 0.08 | B195: 0.21 | C195: 0.08 | D195: 0.08 | E195: 0.5
A196: 0.17 | B196: 0.14 | C196: 0.19 | D196: 0.17 | E196: 0.28
A197: 0.09 | B197: 0.1 | C197: 0.15 | D197: 0.09 | E197: 0.2
A198: 0.15 | B198: 0.25 | C198: 0.15 | D198: 0.15 | E198: 0.16
A199: 0.13 | B199: 0.09 | C199: 0.12 | D199: 0.13 | E199: 0.13
A200: 0.15 | B200: 0.14 | C200: 0.13 | D200: 0.15 | E200: 0.18
... 4962 more rows

Sheet POC1B DC
A1: POC1B DC/Total | B1: Bull 1 | C1: Bull 2 | D1: Bull 3 | E1: Bull 4 | F1: Bull 5 | G1: Bull 6
A2: 0.00 | C2: 0.83 | F2: 0.75 | G2: 0.71 | I2: Bins | J2: 0.05 | K2: 0.15 | L2: 0.25 | M2: 0.35 | N2: 0.45 | O2: 0.55 | P2: 0.65 | Q2: 0.75 | R2: 0.85 | S2: 0.95
C3: 0.85 | F3: 0.75 | G3: 0.8 | J3: 0 | K3: .1-.2 | L3: .2-.3 | M3: .3-.4 | N3: .4-.5 | O3: .5-.6 | P3: .6-.7 | Q3: .7-.8 | R3: .8-.9 | S3: .9-1
C4: 0.87 | F4: 0.5 | G4: 0.53 | J4: =(COUNTIFS(A:A, "<=0.1")) -> 11 | K4: =COUNTIFS(A:A,">0.1",A:A,"<=0.2") -> 2 | L4: =COUNTIFS(A:A,">0.2",A:A,"<=0.3") -> 0 | M4: =COUNTIFS(A:A,">0.3",A:A,"<=0.4") -> 9 | N4: =COUNTIFS(A:A,">0.4",A:A,"<=0.5") -> 19 | O4: =COUNTIFS(A:A,">0.5",A:A,"<=0.6") -> 50 | P4: =COUNTIFS(A:A,">0.6",A:A,"<=0.7") -> 433 | Q4: =COUNTIFS(A:A,">0.7",A:A,"<=0.8") -> 1733 | R4: =COUNTIFS(A:A,">0.8",A:A,"<=0.9") -> 2029 | S4: =COUNTIFS(A:A,">0.9",A:A,"<=1") -> 433 | T4: =SUM(J4:S4) -> 4719
C5: 0.84 | F5: 0.89 | G5: 0.72 | J5: =J4/$T$4 -> 0% | K5: =K4/$T$4 -> 0% | L5: 0% | M5: 0% | N5: 0% | O5: 1% | P5: 9% | Q5: 37% | R5: 43% | S5: 9%
C6: 0.81 | F6: 0.94 | G6: 0.65
C7: 0.82 | F7: 0.73 | G7: 0.74
C8: 0.87 | F8: 1 | G8: 0.68 | I8: Bull 1 | J8: 0.05 | K8: 0.15 | L8: 0.25 | M8: 0.35 | N8: 0.45 | O8: 0.55 | P8: 0.65 | Q8: 0.75 | R8: 0.85 | S8: 0.95
C9: 0.84 | F9: 0.83 | G9: 0.72 | J9: =(COUNTIFS(B:B, "<=0.1")) -> 0 | K9: =COUNTIFS(B:B,">0.1",B:B,"<=0.2") -> 1 | L9: =COUNTIFS(B:B,">0.2",B:B,"<=0.3") -> 0 | M9: =COUNTIFS(B:B,">0.3",B:B,"<=0.4") -> 0 | N9: =COUNTIFS(B:B,">0.4",B:B,"<=0.5") -> 2 | O9: =COUNTIFS(B:B,">0.5",B:B,"<=0.6") -> 4 | P9: =COUNTIFS(B:B,">0.6",B:B,"<=0.7") -> 21 | Q9: =COUNTIFS(B:B,">0.7",B:B,"<=0.8") -> 112 | R9: =COUNTIFS(B:B,">0.8",B:B,"<=0.9") -> 206 | S9: =COUNTIFS(B:B,">0.9",B:B,"<=1") -> 70 | T9: =SUM(J9:S9) -> 416
C10: 0.87 | F10: 0.88 | G10: 0.61 | J10: =J9/$T$9 -> 0% | K10: =K9/$T$9 -> 0% | L10: 0% | M10: 0% | N10: 0% | O10: 1% | P10: 5% | Q10: 27% | R10: 50% | S10: 17%
C11: 0.68 | F11: 0.76 | G11: 0.68
C12: 0.76 | F12: 1 | G12: 0.81
C13: 0.84 | F13: 1 | G13: 0.76 | I13: Bull 2 | J13: 0.05 | K13: 0.15 | L13: 0.25 | M13: 0.35 | N13: 0.45 | O13: 0.55 | P13: 0.65 | Q13: 0.75 | R13: 0.85 | S13: 0.95
C14: 0.85 | F14: 0.68 | G14: 0.62 | J14: =(COUNTIFS(C:C, "<=0.1")) -> 0 | K14: =COUNTIFS(C:C,">0.1",C:C,"<=0.2") -> 0 | L14: =COUNTIFS(C:C,">0.2",C:C,"<=0.3") -> 0 | M14: =COUNTIFS(C:C,">0.3",C:C,"<=0.4") -> 0 | N14: =COUNTIFS(C:C,">0.4",C:C,"<=0.5") -> 2 | O14: =COUNTIFS(C:C,">0.5",C:C,"<=0.6") -> 8 | P14: =COUNTIFS(C:C,">0.6",C:C,"<=0.7") -> 12 | Q14: =COUNTIFS(C:C,">0.7",C:C,"<=0.8") -> 68 | R14: =COUNTIFS(C:C,">0.8",C:C,"<=0.9") -> 163 | S14: =COUNTIFS(C:C,">0.9",C:C,"<=1") -> 25 | T14: =SUM(J14:S14) -> 278
C15: 0.88 | F15: 0.78 | G15: 0.69 | J15: =J14/$T$14 -> 0% | K15: =K14/$T$14 -> 0% | L15: 0% | M15: 0% | N15: 1% | O15: 3% | P15: 4% | Q15: 24% | R15: 59% | S15: 9%
C16: 0.86 | F16: 0.83 | G16: 0.49
C17: 0.81 | F17: 0.8 | G17: 0.68
C18: 0.84 | F18: 0 | G18: 0.67 | I18: Bull 3 | J18: 0.05 | K18: 0.15 | L18: 0.25 | M18: 0.35 | N18: 0.45 | O18: 0.55 | P18: 0.65 | Q18: 0.75 | R18: 0.85 | S18: 0.95
C19: 0.86 | F19: 0.67 | G19: 0.69 | J19: =(COUNTIFS(D:D, "<=0.1")) -> 2 | K19: =COUNTIFS(D:D,">0.1",D:D,"<=0.2") -> 1 | L19: =COUNTIFS(D:D,">0.2",D:D,"<=0.3") -> 0 | M19: =COUNTIFS(D:D,">0.3",D:D,"<=0.4") -> 1 | N19: =COUNTIFS(D:D,">0.4",D:D,"<=0.5") -> 5 | O19: =COUNTIFS(D:D,">0.5",D:D,"<=0.6") -> 5 | P19: =COUNTIFS(D:D,">0.6",D:D,"<=0.7") -> 29 | Q19: =COUNTIFS(D:D,">0.7",D:D,"<=0.8") -> 59 | R19: =COUNTIFS(D:D,">0.8",D:D,"<=0.9") -> 207 | S19: =COUNTIFS(D:D,">0.9",D:D,"<=1") -> 81 | T19: =SUM(J19:S19) -> 390
C20: 0.83 | F20: 0.91 | G20: 0.62 | J20: =J19/$T$19 -> 1% | K20: =K19/$T$19 -> 0% | L20: 0% | M20: 0% | N20: 1% | O20: 1% | P20: 7% | Q20: 15% | R20: 53% | S20: 21%
C21: 0.88 | F21: 0.61 | G21: 0.7
C22: 0.81 | F22: 0.71 | G22: 0.72
C23: 0.86 | F23: 0.76 | G23: 0.51 | I23: Bull 4 | J23: 0.05 | K23: 0.15 | L23: 0.25 | M23: 0.35 | N23: 0.45 | O23: 0.55 | P23: 0.65 | Q23: 0.75 | R23: 0.85 | S23: 0.95
C24: 0.8 | F24: 0.82 | G24: 0.64 | J24: =(COUNTIFS(E:E, "<=0.1")) -> 1 | K24: =COUNTIFS(E:E,">0.1",E:E,"<=0.2") -> 1 | L24: =COUNTIFS(E:E,">0.2",E:E,"<=0.3") -> 1 | M24: =COUNTIFS(E:E,">0.3",E:E,"<=0.4") -> 0 | N24: =COUNTIFS(E:E,">0.4",E:E,"<=0.5") -> 5 | O24: =COUNTIFS(E:E,">0.5",E:E,"<=0.6") -> 5 | P24: =COUNTIFS(E:E,">0.6",E:E,"<=0.7") -> 24 | Q24: =COUNTIFS(E:E,">0.7",E:E,"<=0.8") -> 75 | R24: =COUNTIFS(E:E,">0.8",E:E,"<=0.9") -> 28 | S24: =COUNTIFS(E:E,">0.9",E:E,"<=1") -> 1 | T24: =SUM(J24:S24) -> 141
C25: 0.84 | F25: 0.58 | G25: 0.75 | J25: =J24/$T$24 -> 1% | K25: =K24/$T$24 -> 1% | L25: =L24/$T$24 -> 1% | M25: 0% | N25: 4% | O25: 4% | P25: 17% | Q25: 53% | R25: 20% | S25: 1%
C26: 0.75 | F26: 0.62 | G26: 0.76
C27: 0.88 | F27: 0.56 | G27: 0.84
C28: 0.82 | F28: 0.64 | G28: 0.7 | I28: Bull 5 | J28: 0.05 | K28: 0.15 | L28: 0.25 | M28: 0.35 | N28: 0.45 | O28: 0.55 | P28: 0.65 | Q28: 0.75 | R28: 0.85 | S28: 0.95
F29: 0.65 | G29: 0.65 | J29: =(COUNTIFS(F:F, "<=0.1")) -> 1 | K29: =COUNTIFS(F:F,">0.1",F:F,"<=0.2") -> 0 | L29: =COUNTIFS(F:F,">0.2",F:F,"<=0.3") -> 0 | M29: =COUNTIFS(F:F,">0.3",F:F,"<=0.4") -> 1 | N29: =COUNTIFS(F:F,">0.4",F:F,"<=0.5") -> 1 | O29: =COUNTIFS(F:F,">0.5",F:F,"<=0.6") -> 7 | P29: =COUNTIFS(F:F,">0.6",F:F,"<=0.7") -> 29 | Q29: =COUNTIFS(F:F,">0.7",F:F,"<=0.8") -> 65 | R29: =COUNTIFS(F:F,">0.8",F:F,"<=0.9") -> 39 | S29: =COUNTIFS(F:F,">0.9",F:F,"<=1") -> 8 | T29: =SUM(J29:S29) -> 151
F30: 0.68 | G30: 0.82 | J30: =J29/$T$29 -> 1% | K30: =K29/$T$29 -> 0% | L30: 0% | M30: 1% | N30: 1% | O30: 5% | P30: 19% | Q30: 43% | R30: 26% | S30: 5%
F31: 0.62 | G31: 0.79
F32: 0.7 | G32: 0.65
F33: 0.68 | G33: 0.68 | I33: Bull 6 | J33: 0.05 | K33: 0.15 | L33: 0.25 | M33: 0.35 | N33: 0.45 | O33: 0.55 | P33: 0.65 | Q33: 0.75 | R33: 0.85 | S33: 0.95
F34: 0.68 | G34: 0.61 | J34: =(COUNTIFS(G:G, "<=0.1")) -> 0 | K34: =COUNTIFS(G:G,">0.1",G:G,"<=0.2") -> 0 | L34: =COUNTIFS(G:G,">0.2",G:G,"<=0.3") -> 0 | M34: =COUNTIFS(G:G,">0.3",G:G,"<=0.4") -> 3 | N34: =COUNTIFS(G:G,">0.4",G:G,"<=0.5") -> 6 | O34: =COUNTIFS(G:G,">0.5",G:G,"<=0.6") -> 7 | P34: =COUNTIFS(G:G,">0.6",G:G,"<=0.7") -> 46 | Q34: =COUNTIFS(G:G,">0.7",G:G,"<=0.8") -> 76 | R34: =COUNTIFS(G:G,">0.8",G:G,"<=0.9") -> 76 | S34: =COUNTIFS(G:G,">0.9",G:G,"<=1") -> 5 | T34: =SUM(J34:S34) -> 219
F35: 0.53 | G35: 0.47 | J35: =J34/$T$34 -> 0% | K35: =K34/$T$34 -> 0% | L35: 0% | M35: 1% | N35: 3% | O35: 3% | P35: 21% | Q35: 35% | R35: 35% | S35: 2%
F36: 0.6 | G36: 0.67
F37: 0.63 | G37: 0.79
F38: 0.69 | G38: 0.65
F39: 0.68 | G39: 0.61
F40: 0.77 | G40: 0.72
F41: 0.71 | G41: 0.7
F42: 0.73 | G42: 0.63
F43: 0.72 | G43: 0.47
F44: 0.74 | G44: 0.76
F45: 0.81 | G45: 0.86
F46: 0.69 | G46: 0.41
F47: 0.67 | G47: 0.74
F48: 0.73 | G48: 0.49
F49: 0.69 | G49: 0.7
F50: 0.88 | G50: 0.66
F51: 0.83 | G51: 0.64
F52: 0.68 | G52: 0.81
F53: 0.74 | G53: 0.77
G54: 0.68
G55: 0.56
G56: 0.61
G57: 0.83
G58: 0.4
G59: 0.85
G60: 0.71
G61: 0.54
G62: 0.77
G63: 0.81
A64: 0.85 | D64: 0.85 | G64: 0.76
A65: 0.87 | D65: 0.87 | G65: 0.51
A66: 0.87 | D66: 0.87 | G66: 0.65
A67: 0.90 | D67: 0.9 | G67: 0.75
A68: 0.91 | D68: 0.91 | G68: 0.74
A69: 0.88 | D69: 0.88 | G69: 0.84
A70: 0.91 | D70: 0.91 | G70: 0.79
A71: 0.83 | D71: 0.83 | G71: 0.66
A72: 0.87 | D72: 0.87 | G72: 0.73
A73: 0.85 | D73: 0.85 | G73: 0.71
A74: 0.79 | D74: 0.79 | G74: 0.66
A75: 0.83 | D75: 0.83
A76: 0.88 | D76: 0.88
A77: 0.89 | D77: 0.89
A78: 0.87 | D78: 0.87
A79: 0.87 | D79: 0.87 | F79: 0.9
A80: 0.84 | D80: 0.84 | F80: 0.82
A81: 0.79 | D81: 0.79 | F81: 0.69
A82: 0.83 | D82: 0.83 | F82: 0.75
A83: 0.94 | D83: 0.94 | F83: 0.73
A84: 0.87 | D84: 0.87 | F84: 0.71
A85: 0.92 | D85: 0.92 | F85: 0.89
A86: 0.91 | D86: 0.91 | F86: 0.7
A87: 0.80 | D87: 0.8 | F87: 0.72
A88: 0.84 | D88: 0.84 | F88: 0.76
A89: 0.92 | D89: 0.92 | F89: 0.75
A90: 0.93 | D90: 0.93 | F90: 0.76
A91: 0.84 | D91: 0.84 | F91: 0.76
A92: 0.92 | D92: 0.92 | F92: 0.79
A93: 0.85 | D93: 0.85 | F93: 0.76
A94: 0.81 | D94: 0.81 | E94: 0.76 | F94: 0.71
A95: 0.88 | D95: 0.88 | E95: 0.61 | F95: 0.7
A96: 0.92 | D96: 0.92 | E96: 0.62 | F96: 0.75
A97: 0.90 | D97: 0.9 | E97: 0.74 | F97: 0.75
A98: 0.82 | D98: 0.82 | E98: 0.81 | F98: 0.71
A99: 0.86 | D99: 0.86 | E99: 0.78 | F99: 0.7
A100: 0.92 | D100: 0.92 | E100: 0.74 | F100: 0.84
A101: 0.86 | D101: 0.86 | E101: 0.79 | F101: 0.72
A102: 0.84 | D102: 0.84 | E102: 0 | F102: 0.68
A103: 0.95 | D103: 0.95 | E103: 0.79 | F103: 0.61
E104: 0.53 | F104: 0.84
E105: 0.76 | F105: 0.63
E106: 0.71 | F106: 0.8
E107: 0.77 | F107: 0.75
E108: 0.75 | F108: 0.8
E109: 0.73 | F109: 0.84
E110: 0.76 | F110: 0.84
E111: 0.78 | F111: 0.84
E112: 0.8 | F112: 0.82
E113: 0.44 | F113: 0.87
E114: 0.86 | F114: 0.7
E115: 0.82 | F115: 0.84
E116: 0.49 | F116: 0.74
E117: 0.75 | F117: 0.69
E118: 0.72 | F118: 0.73
E119: 0.84 | F119: 0.79
E120: 0.81 | F120: 0.69
E121: 0.67 | F121: 0.74
E122: 0.74 | F122: 0.77
E123: 0.45 | F123: 0.8
E124: 0.8 | F124: 0.73
E125: 0.83 | F125: 0.79
E126: 0.78 | F126: 0.74
E127: 0.79 | F127: 0.74
E128: 0.78 | F128: 0.76
E129: 0.79 | F129: 0.79
C130: 0.84 | E130: 0.79 | F130: 0.82
C131: 0.84 | E131: 0.65 | F131: 0.83
C132: 0.87 | E132: 0.78 | F132: 0.81
C133: 0.87 | E133: 0.68 | F133: 0.89
C134: 0.81 | E134: 0.88 | F134: 0.91
C135: 0.84 | E135: 0.69 | F135: 0.74
C136: 0.81 | E136: 0.78 | F136: 0.85
C137: 0.89 | E137: 0.84 | F137: 0.68
C138: 0.86 | E138: 0.81 | F138: 0.79
C139: 0.83 | E139: 0.73 | F139: 0.84
C140: 0.9 | E140: 0.66 | F140: 0.72
C141: 0.81 | E141: 0.87 | F141: 0.77
C142: 0.86 | E142: 0.81 | F142: 0.83
C143: 0.85 | E143: 0.62 | F143: 0.74
A144: 0.85 | C144: 0.85 | D144: 0.85 | E144: 0.77 | F144: 0.83
A145: 0.70 | C145: 0.86 | D145: 0.7 | E145: 0.78 | F145: 0.77
A146: 0.77 | C146: 0.87 | D146: 0.77 | E146: 0.19 | F146: 0.78
A147: 0.90 | C147: 0.89 | D147: 0.9 | E147: 0.6 | F147: 0.78
A148: 0.81 | C148: 0.83 | D148: 0.81 | E148: 0.74 | F148: 0.6
A149: 0.77 | C149: 0.76 | D149: 0.77 | E149: 0.76 | F149: 0.6
A150: 0.85 | C150: 0.83 | D150: 0.85 | E150: 0.79 | F150: 1
A151: 0.77 | C151: 0.76 | D151: 0.77 | E151: 0.78 | F151: 0.89
A152: 0.91 | C152: 0.84 | D152: 0.91 | E152: 0.72 | F152: 0.75
A153: 0.79 | C153: 0.84 | D153: 0.79 | E153: 0.71 | F153: 0.85
A154: 0.86 | C154: 0.88 | D154: 0.86 | E154: 0.85 | F154: 0.87
A155: 0.83 | C155: 0.82 | D155: 0.83 | E155: 0.84 | F155: 0.8
A156: 0.70 | C156: 0.87 | D156: 0.7 | E156: 0.52 | F156: 0.81
A157: 0.86 | C157: 0.79 | D157: 0.86 | E157: 0.64 | F157: 0.83
A158: 0.79 | C158: 0.84 | D158: 0.79 | E158: 0.73 | F158: 0.56
A159: 0.85 | C159: 0.9 | D159: 0.85 | E159: 0.78 | F159: 0.87
A160: 0.92 | C160: 0.84 | D160: 0.92 | E160: 0.67 | F160: 0.79
A161: 0.85 | C161: 0.73 | D161: 0.85 | E161: 0.73 | F161: 0.82
A162: 0.90 | C162: 0.82 | D162: 0.9 | E162: 0.79 | F162: 0.78
A163: 0.84 | C163: 0.85 | D163: 0.84 | E163: 0.79 | F163: 0.88
A164: 0.88 | C164: 0.85 | D164: 0.88 | E164: 0.77 | F164: 0.74
A165: 0.91 | C165: 0.81 | D165: 0.91 | E165: 0.66 | F165: 0.76
A166: 0.87 | C166: 0.87 | D166: 0.87 | E166: 0.63 | F166: 0.79
A167: 0.83 | C167: 0.79 | D167: 0.83 | E167: 0.73 | F167: 0.75
A168: 0.90 | C168: 0.84 | D168: 0.9 | E168: 0.87 | F168: 0.82
A169: 0.88 | C169: 0.8 | D169: 0.88 | E169: 0.79 | F169: 0.91
A170: 0.87 | C170: 0.8 | D170: 0.87 | E170: 0.78 | F170: 0.75
A171: 0.85 | C171: 0.86 | D171: 0.85 | E171: 0.76 | F171: 0.73
A172: 0.81 | C172: 0.81 | D172: 0.81 | E172: 0.71 | F172: 0.85
A173: 0.90 | C173: 0.78 | D173: 0.9 | E173: 0.78 | F173: 0.84
A174: 0.84 | C174: 0.75 | D174: 0.84 | E174: 0.54 | F174: 0.76
A175: 0.90 | C175: 0.83 | D175: 0.9 | E175: 0.8 | F175: 0.74
A176: 0.91 | C176: 0.83 | D176: 0.91 | E176: 0.71 | F176: 0.84
A177: 0.90 | C177: 0.83 | D177: 0.9 | E177: 0.83 | F177: 0.4
A178: 0.84 | C178: 0.88 | D178: 0.84 | E178: 0.74
A179: 0.91 | B179: 0.88 | C179: 0.83 | D179: 0.91 | E179: 0.77
A180: 0.92 | B180: 0.81 | C180: 0.91 | D180: 0.92 | E180: 0.69
A181: 0.89 | B181: 0.83 | C181: 0.77 | D181: 0.89 | E181: 0.8
A182: 0.86 | B182: 0.77 | C182: 0.67 | D182: 0.86 | E182: 0.76
A183: 0.87 | B183: 0.86 | C183: 0.78 | D183: 0.87 | E183: 0.66
A184: 0.86 | B184: 0.74 | C184: 0.82 | D184: 0.86 | E184: 0.79
A185: 0.91 | B185: 0.75 | C185: 0.87 | D185: 0.91 | E185: 0.79
A186: 0.85 | B186: 0.93 | C186: 0.85 | D186: 0.85 | E186: 0.53
A187: 0.88 | B187: 0.79 | C187: 0.89 | D187: 0.88 | E187: 0.72
A188: 0.78 | B188: 0.89 | C188: 0.81 | D188: 0.78 | E188: 0.77
A189: 0.80 | B189: 0.9 | C189: 0.93 | D189: 0.8 | E189: 0.64
A190: 0.83 | B190: 0.82 | C190: 0.79 | D190: 0.83 | E190: 0.75
A191: 0.91 | B191: 0.83 | C191: 0.9 | D191: 0.91 | E191: 0.74
A192: 0.94 | B192: 0.84 | C192: 0.79 | D192: 0.94 | E192: 0.82
A193: 0.91 | B193: 0.82 | C193: 0.92 | D193: 0.91 | E193: 0.78
A194: 0.82 | B194: 0.83 | C194: 0.82 | D194: 0.82 | E194: 0.7
A195: 0.92 | B195: 0.78 | C195: 0.92 | D195: 0.92 | E195: 0.5
A196: 0.83 | B196: 0.84 | C196: 0.8 | D196: 0.83 | E196: 0.7
A197: 0.91 | B197: 0.89 | C197: 0.85 | D197: 0.91 | E197: 0.78
A198: 0.85 | B198: 0.75 | C198: 0.85 | D198: 0.85 | E198: 0.82
A199: 0.87 | B199: 0.91 | C199: 0.88 | D199: 0.87 | E199: 0.86
A200: 0.85 | B200: 0.85 | C200: 0.87 | D200: 0.85 | E200: 0.79
... 4962 more rows

Sheet POC1B Ax
A1: POC1B Ax/Total | B1: Bull 1 | C1: Bull 2 | D1: Bull 3 | E1: Bull 4 | F1: Bull 5 | G1: Bull 6
A2: 0.00 | C2: 0 | F2: 0 | G2: 0.01 | I2: Bins | J2: 0.05 | K2: 0.15 | L2: 0.25 | M2: 0.35 | N2: 0.45 | O2: 0.55 | P2: 0.65 | Q2: 0.75 | R2: 0.85 | S2: 0.95
C3: 0.02 | F3: 0 | G3: 0.05 | J3: 0 | K3: .1-.2 | L3: .2-.3 | M3: .3-.4 | N3: .4-.5 | O3: .5-.6 | P3: .6-.7 | Q3: .7-.8 | R3: .8-.9 | S3: .9-1
C4: 0 | F4: 0.5 | G4: 0 | J4: =(COUNTIFS(A:A, "<=0.1")) -> 4667 | K4: =COUNTIFS(A:A,">0.1",A:A,"<=0.2") -> 36 | L4: =COUNTIFS(A:A,">0.2",A:A,"<=0.3") -> 11 | M4: =COUNTIFS(A:A,">0.3",A:A,"<=0.4") -> 1 | N4: =COUNTIFS(A:A,">0.4",A:A,"<=0.5") -> 3 | O4: =COUNTIFS(A:A,">0.5",A:A,"<=0.6") -> 0 | P4: =COUNTIFS(A:A,">0.6",A:A,"<=0.7") -> 0 | Q4: =COUNTIFS(A:A,">0.7",A:A,"<=0.8") -> 0 | R4: =COUNTIFS(A:A,">0.8",A:A,"<=0.9") -> 0 | S4: =COUNTIFS(A:A,">0.9",A:A,"<=1") -> 1 | T4: =SUM(J4:S4) -> 4719
C5: 0 | F5: 0 | G5: 0 | J5: =J4/$T$4 -> 99% | K5: =K4/$T$4 -> 1% | L5: 0% | M5: 0% | N5: 0% | O5: 0% | P5: 0% | Q5: 0% | R5: 0% | S5: 0%
C6: 0 | F6: 0 | G6: 0.1
C7: 0 | F7: 0 | G7: 0.01
C8: 0 | F8: 0 | G8: 0.01 | I8: Bull 1 | J8: 0.05 | K8: 0.15 | L8: 0.25 | M8: 0.35 | N8: 0.45 | O8: 0.55 | P8: 0.65 | Q8: 0.75 | R8: 0.85 | S8: 0.95
C9: 0 | F9: 0 | G9: 0.02 | J9: =(COUNTIFS(B:B, "<=0.1")) -> 415 | K9: =COUNTIFS(B:B,">0.1",B:B,"<=0.2") -> 1 | L9: =COUNTIFS(B:B,">0.2",B:B,"<=0.3") -> 0 | M9: =COUNTIFS(B:B,">0.3",B:B,"<=0.4") -> 0 | N9: =COUNTIFS(B:B,">0.4",B:B,"<=0.5") -> 0 | O9: =COUNTIFS(B:B,">0.5",B:B,"<=0.6") -> 0 | P9: =COUNTIFS(B:B,">0.6",B:B,"<=0.7") -> 0 | Q9: =COUNTIFS(B:B,">0.7",B:B,"<=0.8") -> 0 | R9: =COUNTIFS(B:B,">0.8",B:B,"<=0.9") -> 0 | S9: =COUNTIFS(B:B,">0.9",B:B,"<=1") -> 0 | T9: =SUM(J9:S9) -> 416
C10: 0 | F10: 0 | G10: 0.08 | J10: =J9/$T$9 -> 100% | K10: =K9/$T$9 -> 0% | L10: 0% | M10: 0% | N10: 0% | O10: 0% | P10: 0% | Q10: 0% | R10: 0% | S10: 0%
C11: 0.01 | F11: 0.01 | G11: 0
C12: 0 | F12: 0 | G12: 0
C13: 0 | F13: 0 | G13: 0.02 | I13: Bull 2 | J13: 0.05 | K13: 0.15 | L13: 0.25 | M13: 0.35 | N13: 0.45 | O13: 0.55 | P13: 0.65 | Q13: 0.75 | R13: 0.85 | S13: 0.95
C14: 0.01 | F14: 0 | G14: 0.03 | J14: =(COUNTIFS(C:C, "<=0.1")) -> 278 | K14: =COUNTIFS(C:C,">0.1",C:C,"<=0.2") -> 0 | L14: =COUNTIFS(C:C,">0.2",C:C,"<=0.3") -> 0 | M14: =COUNTIFS(C:C,">0.3",C:C,"<=0.4") -> 0 | N14: =COUNTIFS(C:C,">0.4",C:C,"<=0.5") -> 0 | O14: =COUNTIFS(C:C,">0.5",C:C,"<=0.6") -> 0 | P14: =COUNTIFS(C:C,">0.6",C:C,"<=0.7") -> 0 | Q14: =COUNTIFS(C:C,">0.7",C:C,"<=0.8") -> 0 | R14: =COUNTIFS(C:C,">0.8",C:C,"<=0.9") -> 0 | S14: =COUNTIFS(C:C,">0.9",C:C,"<=1") -> 0 | T14: =SUM(J14:S14) -> 278
C15: 0 | F15: 0.01 | G15: 0.05 | J15: =J14/$T$14 -> 100% | K15: =K14/$T$14 -> 0% | L15: 0% | M15: 0% | N15: 0% | O15: 0% | P15: 0% | Q15: 0% | R15: 0% | S15: 0%
C16: 0.01 | F16: 0 | G16: 0.02
C17: 0 | F17: 0 | G17: 0.02
C18: 0 | F18: 0 | G18: 0.01 | I18: Bull 3 | J18: 0.05 | K18: 0.15 | L18: 0.25 | M18: 0.35 | N18: 0.45 | O18: 0.55 | P18: 0.65 | Q18: 0.75 | R18: 0.85 | S18: 0.95
C19: 0 | F19: 0 | G19: 0.01 | J19: =(COUNTIFS(D:D, "<=0.1")) -> 388 | K19: =COUNTIFS(D:D,">0.1",D:D,"<=0.2") -> 0 | L19: =COUNTIFS(D:D,">0.2",D:D,"<=0.3") -> 1 | M19: =COUNTIFS(D:D,">0.3",D:D,"<=0.4") -> 0 | N19: =COUNTIFS(D:D,">0.4",D:D,"<=0.5") -> 0 | O19: =COUNTIFS(D:D,">0.5",D:D,"<=0.6") -> 1 | P19: =COUNTIFS(D:D,">0.6",D:D,"<=0.7") -> 0 | Q19: =COUNTIFS(D:D,">0.7",D:D,"<=0.8") -> 0 | R19: =COUNTIFS(D:D,">0.8",D:D,"<=0.9") -> 0 | S19: =COUNTIFS(D:D,">0.9",D:D,"<=1") -> 0 | T19: =SUM(J19:S19) -> 390
C20: 0 | F20: 0 | G20: 0.03 | J20: =J19/$T$19 -> 99% | K20: =K19/$T$19 -> 0% | L20: 0% | M20: 0% | N20: 0% | O20: 0% | P20: 0% | Q20: 0% | R20: 0% | S20: 0%
C21: 0 | F21: 0 | G21: 0
C22: 0 | F22: 0.05 | G22: 0.01
C23: 0 | F23: 0.01 | G23: 0 | I23: Bull 4 | J23: 0.05 | K23: 0.15 | L23: 0.25 | M23: 0.35 | N23: 0.45 | O23: 0.55 | P23: 0.65 | Q23: 0.75 | R23: 0.85 | S23: 0.95
C24: 0 | F24: 0 | G24: 0.03 | J24: =(COUNTIFS(E:E, "<=0.1")) -> 139 | K24: =COUNTIFS(E:E,">0.1",E:E,"<=0.2") -> 1 | L24: =COUNTIFS(E:E,">0.2",E:E,"<=0.3") -> 1 | M24: =COUNTIFS(E:E,">0.3",E:E,"<=0.4") -> 0 | N24: =COUNTIFS(E:E,">0.4",E:E,"<=0.5") -> 0 | O24: =COUNTIFS(E:E,">0.5",E:E,"<=0.6") -> 0 | P24: =COUNTIFS(E:E,">0.6",E:E,"<=0.7") -> 0 | Q24: =COUNTIFS(E:E,">0.7",E:E,"<=0.8") -> 0 | R24: =COUNTIFS(E:E,">0.8",E:E,"<=0.9") -> 0 | S24: =COUNTIFS(E:E,">0.9",E:E,"<=1") -> 0 | T24: =SUM(J24:S24) -> 141
C25: 0 | F25: 0.01 | G25: 0 | J25: =J24/$T$24 -> 99% | K25: =K24/$T$24 -> 1% | L25: =L24/$T$24 -> 1% | M25: 0% | N25: 0% | O25: 0% | P25: 0% | Q25: 0% | R25: 0% | S25: 0%
C26: 0 | F26: 0 | G26: 0.02
C27: 0 | F27: 0.1 | G27: 0.02
C28: 0 | F28: 0.01 | G28: 0.01 | I28: Bull 5 | J28: 0.05 | K28: 0.15 | L28: 0.25 | M28: 0.35 | N28: 0.45 | O28: 0.55 | P28: 0.65 | Q28: 0.75 | R28: 0.85 | S28: 0.95
F29: 0.07 | G29: 0.01 | J29: =(COUNTIFS(F:F, "<=0.1")) -> 148 | K29: =COUNTIFS(F:F,">0.1",F:F,"<=0.2") -> 1 | L29: =COUNTIFS(F:F,">0.2",F:F,"<=0.3") -> 1 | M29: =COUNTIFS(F:F,">0.3",F:F,"<=0.4") -> 0 | N29: =COUNTIFS(F:F,">0.4",F:F,"<=0.5") -> 1 | O29: =COUNTIFS(F:F,">0.5",F:F,"<=0.6") -> 0 | P29: =COUNTIFS(F:F,">0.6",F:F,"<=0.7") -> 0 | Q29: =COUNTIFS(F:F,">0.7",F:F,"<=0.8") -> 0 | R29: =COUNTIFS(F:F,">0.8",F:F,"<=0.9") -> 0 | S29: =COUNTIFS(F:F,">0.9",F:F,"<=1") -> 0 | T29: =SUM(J29:S29) -> 151
F30: 0.01 | G30: 0 | J30: =J29/$T$29 -> 98% | K30: =K29/$T$29 -> 1% | L30: 1% | M30: 0% | N30: 1% | O30: 0% | P30: 0% | Q30: 0% | R30: 0% | S30: 0%
F31: 0.03 | G31: 0.01
F32: 0.01 | G32: 0.01
F33: 0.02 | G33: 0.01 | I33: Bull 6 | J33: 0.05 | K33: 0.15 | L33: 0.25 | M33: 0.35 | N33: 0.45 | O33: 0.55 | P33: 0.65 | Q33: 0.75 | R33: 0.85 | S33: 0.95
F34: 0.03 | G34: 0.01 | J34: =(COUNTIFS(G:G, "<=0.1")) -> 219 | K34: =COUNTIFS(G:G,">0.1",G:G,"<=0.2") -> 0 | L34: =COUNTIFS(G:G,">0.2",G:G,"<=0.3") -> 0 | M34: =COUNTIFS(G:G,">0.3",G:G,"<=0.4") -> 0 | N34: =COUNTIFS(G:G,">0.4",G:G,"<=0.5") -> 0 | O34: =COUNTIFS(G:G,">0.5",G:G,"<=0.6") -> 0 | P34: =COUNTIFS(G:G,">0.6",G:G,"<=0.7") -> 0 | Q34: =COUNTIFS(G:G,">0.7",G:G,"<=0.8") -> 0 | R34: =COUNTIFS(G:G,">0.8",G:G,"<=0.9") -> 0 | S34: =COUNTIFS(G:G,">0.9",G:G,"<=1") -> 0 | T34: =SUM(J34:S34) -> 219
F35: 0.21 | G35: 0.06 | J35: =J34/$T$34 -> 100% | K35: =K34/$T$34 -> 0% | L35: 0% | M35: 0% | N35: 0% | O35: 0% | P35: 0% | Q35: 0% | R35: 0% | S35: 0%
F36: 0.12 | G36: 0.03
F37: 0.04 | G37: 0.01
F38: 0.01 | G38: 0.01
F39: 0.04 | G39: 0.01
F40: 0.01 | G40: 0.02
F41: 0.02 | G41: 0.01
F42: 0 | G42: 0.02
F43: 0 | G43: 0.05
F44: 0 | G44: 0
F45: 0.02 | G45: 0
F46: 0 | G46: 0.02
F47: 0 | G47: 0.03
F48: 0.02 | G48: 0.01
F49: 0.02 | G49: 0
F50: 0 | G50: 0.01
F51: 0.01 | G51: 0.02
F52: 0.02 | G52: 0
F53: 0 | G53: 0
G54: 0.02
G55: 0
G56: 0
G57: 0
G58: 0
G59: 0
G60: 0
G61: 0
G62: 0
G63: 0
A64: 0.00 | D64: 0 | G64: 0.01
A65: 0.00 | D65: 0 | G65: 0
A66: 0.00 | D66: 0 | G66: 0
A67: 0.00 | D67: 0 | G67: 0
A68: 0.00 | D68: 0 | G68: 0
A69: 0.00 | D69: 0 | G69: 0.01
A70: 0.00 | D70: 0 | G70: 0.01
A71: 0.00 | D71: 0 | G71: 0
A72: 0.00 | D72: 0 | G72: 0.02
A73: 0.00 | D73: 0 | G73: 0.01
A74: 0.01 | D74: 0.01 | G74: 0.01
A75: 0.00 | D75: 0
A76: 0.00 | D76: 0
A77: 0.00 | D77: 0
A78: 0.00 | D78: 0
A79: 0.00 | D79: 0 | F79: 0.01
A80: 0.00 | D80: 0 | F80: 0.01
A81: 0.01 | D81: 0.01 | F81: 0
A82: 0.00 | D82: 0 | F82: 0.02
A83: 0.00 | D83: 0 | F83: 0
A84: 0.00 | D84: 0 | F84: 0.01
A85: 0.00 | D85: 0 | F85: 0.01
A86: 0.00 | D86: 0 | F86: 0.03
A87: 0.00 | D87: 0 | F87: 0.01
A88: 0.00 | D88: 0 | F88: 0.01
A89: 0.00 | D89: 0 | F89: 0.01
A90: 0.00 | D90: 0 | F90: 0.03
A91: 0.00 | D91: 0 | F91: 0.02
A92: 0.00 | D92: 0 | F92: 0.01
A93: 0.00 | D93: 0 | F93: 0.03
A94: 0.00 | D94: 0 | E94: 0 | F94: 0.01
A95: 0.00 | D95: 0 | E95: 0.04 | F95: 0
A96: 0.00 | D96: 0 | E96: 0 | F96: 0.01
A97: 0.00 | D97: 0 | E97: 0.02 | F97: 0.01
A98: 0.00 | D98: 0 | E98: 0.01 | F98: 0.02
A99: 0.00 | D99: 0 | E99: 0.01 | F99: 0
A100: 0.00 | D100: 0 | E100: 0 | F100: 0.05
A101: 0.00 | D101: 0 | E101: 0.01 | F101: 0
A102: 0.00 | D102: 0 | E102: 0 | F102: 0.02
A103: 0.00 | D103: 0 | E103: 0.01 | F103: 0.02
E104: 0.09 | F104: 0.02
E105: 0.01 | F105: 0.02
E106: 0.01 | F106: 0
E107: 0.01 | F107: 0
E108: 0.02 | F108: 0
E109: 0.01 | F109: 0.01
E110: 0.01 | F110: 0
E111: 0 | F111: 0
E112: 0.05 | F112: 0.01
E113: 0.24 | F113: 0.01
E114: 0.02 | F114: 0.01
E115: 0 | F115: 0
E116: 0.03 | F116: 0
E117: 0.02 | F117: 0
E118: 0 | F118: 0
E119: 0.02 | F119: 0.02
E120: 0 | F120: 0.02
E121: 0.02 | F121: 0.01
E122: 0 | F122: 0
E123: 0.08 | F123: 0.02
E124: 0 | F124: 0.02
E125: 0 | F125: 0.01
E126: 0.01 | F126: 0
E127: 0 | F127: 0.02
E128: 0.01 | F128: 0.01
E129: 0.02 | F129: 0.01
C130: 0 | E130: 0.01 | F130: 0.02
C131: 0.01 | E131: 0.05 | F131: 0
C132: 0 | E132: 0.01 | F132: 0
C133: 0 | E133: 0.03 | F133: 0.01
C134: 0 | E134: 0 | F134: 0
C135: 0 | E135: 0 | F135: 0.01
C136: 0 | E136: 0 | F136: 0.01
C137: 0.01 | E137: 0 | F137: 0.01
C138: 0.01 | E138: 0 | F138: 0.02
C139: 0 | E139: 0 | F139: 0
C140: 0 | E140: 0.01 | F140: 0
C141: 0 | E141: 0 | F141: 0
C142: 0.01 | E142: 0 | F142: 0
C143: 0.01 | E143: 0 | F143: 0.03
A144: 0.00 | C144: 0 | D144: 0 | E144: 0.01 | F144: 0.01
A145: 0.00 | C145: 0 | D145: 0 | E145: 0 | F145: 0.01
A146: 0.00 | C146: 0.01 | D146: 0 | E146: 0 | F146: 0
A147: 0.01 | C147: 0 | D147: 0.01 | E147: 0 | F147: 0
A148: 0.00 | C148: 0 | D148: 0 | E148: 0.01 | F148: 0.07
A149: 0.00 | C149: 0 | D149: 0 | E149: 0.02 | F149: 0
A150: 0.00 | C150: 0 | D150: 0 | E150: 0 | F150: 0
A151: 0.00 | C151: 0 | D151: 0 | E151: 0 | F151: 0
A152: 0.00 | C152: 0 | D152: 0 | E152: 0 | F152: 0.01
A153: 0.00 | C153: 0 | D153: 0 | E153: 0.01 | F153: 0.01
A154: 0.00 | C154: 0 | D154: 0 | E154: 0.01 | F154: 0.02
A155: 0.00 | C155: 0.01 | D155: 0 | E155: 0 | F155: 0.02
A156: 0.00 | C156: 0 | D156: 0 | E156: 0.02 | F156: 0.01
A157: 0.00 | C157: 0 | D157: 0 | E157: 0 | F157: 0
A158: 0.00 | C158: 0 | D158: 0 | E158: 0.02 | F158: 0.06
A159: 0.00 | C159: 0 | D159: 0 | E159: 0 | F159: 0.02
A160: 0.01 | C160: 0 | D160: 0.01 | E160: 0.03 | F160: 0.01
A161: 0.01 | C161: 0 | D161: 0.01 | E161: 0.01 | F161: 0
A162: 0.00 | C162: 0 | D162: 0 | E162: 0.01 | F162: 0.01
A163: 0.00 | C163: 0 | D163: 0 | E163: 0.02 | F163: 0.01
A164: 0.00 | C164: 0 | D164: 0 | E164: 0.01 | F164: 0.02
A165: 0.00 | C165: 0 | D165: 0 | E165: 0.01 | F165: 0
A166: 0.00 | C166: 0 | D166: 0 | E166: 0.01 | F166: 0.04
A167: 0.00 | C167: 0 | D167: 0 | E167: 0.01 | F167: 0.01
A168: 0.00 | C168: 0.01 | D168: 0 | E168: 0.02 | F168: 0
A169: 0.00 | C169: 0.01 | D169: 0 | E169: 0.03 | F169: 0
A170: 0.00 | C170: 0 | D170: 0 | E170: 0.02 | F170: 0
A171: 0.00 | C171: 0.01 | D171: 0 | E171: 0 | F171: 0.01
A172: 0.00 | C172: 0 | D172: 0 | E172: 0.03 | F172: 0.01
A173: 0.00 | C173: 0 | D173: 0 | E173: 0.03 | F173: 0.01
A174: 0.00 | C174: 0.01 | D174: 0 | E174: 0.02 | F174: 0
A175: 0.00 | C175: 0 | D175: 0 | E175: 0.06 | F175: 0
A176: 0.00 | C176: 0 | D176: 0 | E176: 0.03 | F176: 0.05
A177: 0.00 | C177: 0 | D177: 0 | E177: 0.02 | F177: 0
A178: 0.00 | C178: 0 | D178: 0 | E178: 0.02
A179: 0.00 | B179: 0 | C179: 0 | D179: 0 | E179: 0
A180: 0.00 | B180: 0 | C180: 0 | D180: 0 | E180: 0.03
A181: 0.00 | B181: 0.01 | C181: 0 | D181: 0 | E181: 0.03
A182: 0.00 | B182: 0.01 | C182: 0 | D182: 0 | E182: 0.02
A183: 0.00 | B183: 0 | C183: 0 | D183: 0 | E183: 0.12
A184: 0.00 | B184: 0 | C184: 0 | D184: 0 | E184: 0.02
A185: 0.00 | B185: 0.03 | C185: 0 | D185: 0 | E185: 0.01
A186: 0.00 | B186: 0.01 | C186: 0 | D186: 0 | E186: 0.01
A187: 0.00 | B187: 0.02 | C187: 0 | D187: 0 | E187: 0.01
A188: 0.00 | B188: 0 | C188: 0 | D188: 0 | E188: 0.01
A189: 0.00 | B189: 0 | C189: 0 | D189: 0 | E189: 0.04
A190: 0.00 | B190: 0 | C190: 0.01 | D190: 0 | E190: 0.02
A191: 0.00 | B191: 0 | C191: 0 | D191: 0 | E191: 0.02
A192: 0.00 | B192: 0.01 | C192: 0 | D192: 0 | E192: 0.01
A193: 0.00 | B193: 0 | C193: 0 | D193: 0 | E193: 0
A194: 0.00 | B194: 0 | C194: 0 | D194: 0 | E194: 0.09
A195: 0.00 | B195: 0 | C195: 0 | D195: 0 | E195: 0
A196: 0.00 | B196: 0.02 | C196: 0.01 | D196: 0 | E196: 0.02
A197: 0.00 | B197: 0.01 | C197: 0 | D197: 0 | E197: 0.02
A198: 0.00 | B198: 0 | C198: 0 | D198: 0 | E198: 0.02
A199: 0.00 | B199: 0 | C199: 0 | D199: 0 | E199: 0.01
A200: 0.00 | B200: 0 | C200: 0 | D200: 0 | E200: 0.02
... 4962 more rows

Sheet FAM161A PC
A1: FAM161A PC/Total | B1: Bull 1 | C1: Bull 2 | D1: Bull 3 | E1: Bull 4 | F1: Bull 5 | G1: Bull 6
A2: 0.42 | B2: 0.32 | D2: 0.42 | E2: 0.2 | I2: Bins | J2: 0.05 | K2: 0.15 | L2: 0.25 | M2: 0.35 | N2: 0.45 | O2: 0.55 | P2: 0.65 | Q2: 0.75 | R2: 0.85 | S2: 0.95
A3: 0.24 | B3: 0.45 | D3: 0.24 | E3: 0.79 | J3: 0 | K3: .1-.2 | L3: .2-.3 | M3: .3-.4 | N3: .4-.5 | O3: .5-.6 | P3: .6-.7 | Q3: .7-.8 | R3: .8-.9 | S3: .9-1
A4: 0.17 | B4: 0.23 | D4: 0.17 | E4: 0.25 | J4: =(COUNTIFS(A:A, "<=0.1")) -> 234 | K4: =COUNTIFS(A:A,">0.1",A:A,"<=0.2") -> 740 | L4: =COUNTIFS(A:A,">0.2",A:A,"<=0.3") -> 1609 | M4: =COUNTIFS(A:A,">0.3",A:A,"<=0.4") -> 1078 | N4: =COUNTIFS(A:A,">0.4",A:A,"<=0.5") -> 335 | O4: =COUNTIFS(A:A,">0.5",A:A,"<=0.6") -> 83 | P4: =COUNTIFS(A:A,">0.6",A:A,"<=0.7") -> 28 | Q4: =COUNTIFS(A:A,">0.7",A:A,"<=0.8") -> 14 | R4: =COUNTIFS(A:A,">0.8",A:A,"<=0.9") -> 3 | S4: =COUNTIFS(A:A,">0.9",A:A,"<=1") -> 10 | T4: =SUM(J4:S4) -> 4134
A5: 0.24 | B5: 0.34 | D5: 0.24 | E5: 0.33 | J5: =J4/$T$4 -> 6% | K5: =K4/$T$4 -> 18% | L5: 39% | M5: 26% | N5: 8% | O5: 2% | P5: 1% | Q5: 0% | R5: 0% | S5: 0%
A6: 0.24 | B6: 0.26 | D6: 0.24 | E6: 0.32
A7: 0.35 | B7: 0.27 | D7: 0.35 | E7: 0.21
A8: 0.17 | B8: 0.26 | D8: 0.17 | E8: 0.24 | I8: Bull 1 | J8: 0.05 | K8: 0.15 | L8: 0.25 | M8: 0.35 | N8: 0.45 | O8: 0.55 | P8: 0.65 | Q8: 0.75 | R8: 0.85 | S8: 0.95
A9: 0.39 | B9: 0.35 | D9: 0.39 | E9: 0.3 | J9: =(COUNTIFS(B:B, "<=0.1")) -> 6 | K9: =COUNTIFS(B:B,">0.1",B:B,"<=0.2") -> 81 | L9: =COUNTIFS(B:B,">0.2",B:B,"<=0.3") -> 253 | M9: =COUNTIFS(B:B,">0.3",B:B,"<=0.4") -> 100 | N9: =COUNTIFS(B:B,">0.4",B:B,"<=0.5") -> 19 | O9: =COUNTIFS(B:B,">0.5",B:B,"<=0.6") -> 1 | P9: =COUNTIFS(B:B,">0.6",B:B,"<=0.7") -> 0 | Q9: =COUNTIFS(B:B,">0.7",B:B,"<=0.8") -> 0 | R9: =COUNTIFS(B:B,">0.8",B:B,"<=0.9") -> 0 | S9: =COUNTIFS(B:B,">0.9",B:B,"<=1") -> 0 | T9: =SUM(J9:S9) -> 460
A10: 0.22 | B10: 0.3 | D10: 0.22 | E10: 0.34 | J10: =J9/$T$9 -> 1% | K10: =K9/$T$9 -> 18% | L10: 55% | M10: 22% | N10: 4% | O10: 0% | P10: 0% | Q10: 0% | R10: 0% | S10: 0%
A11: 0.38 | B11: 0.23 | D11: 0.38 | E11: 0.19
A12: 0.08 | B12: 0.42 | D12: 0.08 | E12: 0.2
A13: 0.20 | B13: 0.42 | D13: 0.2 | E13: 0.3 | I13: Bull 2 | J13: 0.05 | K13: 0.15 | L13: 0.25 | M13: 0.35 | N13: 0.45 | O13: 0.55 | P13: 0.65 | Q13: 0.75 | R13: 0.85 | S13: 0.95
A14: 0.28 | B14: 0.27 | D14: 0.28 | E14: 0.29 | J14: =(COUNTIFS(C:C, "<=0.1")) -> 6 | K14: =COUNTIFS(C:C,">0.1",C:C,"<=0.2") -> 140 | L14: =COUNTIFS(C:C,">0.2",C:C,"<=0.3") -> 158 | M14: =COUNTIFS(C:C,">0.3",C:C,"<=0.4") -> 38 | N14: =COUNTIFS(C:C,">0.4",C:C,"<=0.5") -> 4 | O14: =COUNTIFS(C:C,">0.5",C:C,"<=0.6") -> 0 | P14: =COUNTIFS(C:C,">0.6",C:C,"<=0.7") -> 0 | Q14: =COUNTIFS(C:C,">0.7",C:C,"<=0.8") -> 0 | R14: =COUNTIFS(C:C,">0.8",C:C,"<=0.9") -> 0 | S14: =COUNTIFS(C:C,">0.9",C:C,"<=1") -> 0 | T14: =SUM(J14:S14) -> 346
A15: 0.25 | B15: 0.25 | D15: 0.25 | E15: 0.13 | J15: =J14/$T$14 -> 2% | K15: =K14/$T$14 -> 40% | L15: 46% | M15: 11% | N15: 1% | O15: 0% | P15: 0% | Q15: 0% | R15: 0% | S15: 0%
A16: 0.32 | B16: 0.36 | D16: 0.32 | E16: 0.33
A17: 0.31 | B17: 0.36 | D17: 0.31 | E17: 0.17
A18: 0.24 | B18: 0.38 | D18: 0.24 | E18: 0.11 | I18: Bull 3 | J18: 0.05 | K18: 0.15 | L18: 0.25 | M18: 0.35 | N18: 0.45 | O18: 0.55 | P18: 0.65 | Q18: 0.75 | R18: 0.85 | S18: 0.95
A19: 0.38 | B19: 0.16 | D19: 0.38 | E19: 0.27 | J19: =(COUNTIFS(D:D, "<=0.1")) -> 35 | K19: =COUNTIFS(D:D,">0.1",D:D,"<=0.2") -> 47 | L19: =COUNTIFS(D:D,">0.2",D:D,"<=0.3") -> 62 | M19: =COUNTIFS(D:D,">0.3",D:D,"<=0.4") -> 35 | N19: =COUNTIFS(D:D,">0.4",D:D,"<=0.5") -> 9 | O19: =COUNTIFS(D:D,">0.5",D:D,"<=0.6") -> 3 | P19: =COUNTIFS(D:D,">0.6",D:D,"<=0.7") -> 3 | Q19: =COUNTIFS(D:D,">0.7",D:D,"<=0.8") -> 1 | R19: =COUNTIFS(D:D,">0.8",D:D,"<=0.9") -> 0 | S19: =COUNTIFS(D:D,">0.9",D:D,"<=1") -> 3 | T19: =SUM(J19:S19) -> 198
A20: 0.24 | B20: 0.22 | D20: 0.24 | E20: 0.38 | J20: =J19/$T$19 -> 18% | K20: =K19/$T$19 -> 24% | L20: 31% | M20: 18% | N20: 5% | O20: 2% | P20: 2% | Q20: 1% | R20: 0% | S20: 2%
A21: 0.20 | B21: 0.18 | D21: 0.2 | E21: 0.34
A22: 0.30 | B22: 0.26 | D22: 0.3 | E22: 0.31
A23: 0.29 | B23: 0.27 | D23: 0.29 | E23: 0.19 | I23: Bull 4 | J23: 0.05 | K23: 0.15 | L23: 0.25 | M23: 0.35 | N23: 0.45 | O23: 0.55 | P23: 0.65 | Q23: 0.75 | R23: 0.85 | S23: 0.95
A24: 0.34 | B24: 0.28 | D24: 0.34 | E24: 0.3 | J24: =(COUNTIFS(E:E, "<=0.1")) -> 13 | K24: =COUNTIFS(E:E,">0.1",E:E,"<=0.2") -> 32 | L24: =COUNTIFS(E:E,">0.2",E:E,"<=0.3") -> 62 | M24: =COUNTIFS(E:E,">0.3",E:E,"<=0.4") -> 39 | N24: =COUNTIFS(E:E,">0.4",E:E,"<=0.5") -> 8 | O24: =COUNTIFS(E:E,">0.5",E:E,"<=0.6") -> 5 | P24: =COUNTIFS(E:E,">0.6",E:E,"<=0.7") -> 2 | Q24: =COUNTIFS(E:E,">0.7",E:E,"<=0.8") -> 4 | R24: =COUNTIFS(E:E,">0.8",E:E,"<=0.9") -> 0 | S24: =COUNTIFS(E:E,">0.9",E:E,"<=1") -> 1 | T24: =SUM(J24:S24) -> 166
A25: 0.15 | B25: 0.29 | D25: 0.15 | E25: 0.32 | J25: =J24/$T$24 -> 8% | K25: =K24/$T$24 -> 19% | L25: =L24/$T$24 -> 37% | M25: 23% | N25: 5% | O25: 3% | P25: 1% | Q25: 2% | R25: 0% | S25: 1%
A26: 0.27 | B26: 0.37 | D26: 0.27 | E26: 0.22
A27: 0.74 | B27: 0.23 | D27: 0.74 | E27: 0.34
A28: 0.23 | B28: 0.29 | D28: 0.23 | E28: 0.17 | I28: Bull 5 | J28: 0.05 | K28: 0.15 | L28: 0.25 | M28: 0.35 | N28: 0.45 | O28: 0.55 | P28: 0.65 | Q28: 0.75 | R28: 0.85 | S28: 0.95
A29: 0.26 | B29: 0.19 | C29: 0.23 | D29: 0.26 | E29: 0.23 | J29: =(COUNTIFS(F:F, "<=0.1")) -> 8 | K29: =COUNTIFS(F:F,">0.1",F:F,"<=0.2") -> 19 | L29: =COUNTIFS(F:F,">0.2",F:F,"<=0.3") -> 87 | M29: =COUNTIFS(F:F,">0.3",F:F,"<=0.4") -> 54 | N29: =COUNTIFS(F:F,">0.4",F:F,"<=0.5") -> 13 | O29: =COUNTIFS(F:F,">0.5",F:F,"<=0.6") -> 7 | P29: =COUNTIFS(F:F,">0.6",F:F,"<=0.7") -> 1 | Q29: =COUNTIFS(F:F,">0.7",F:F,"<=0.8") -> 0 | R29: =COUNTIFS(F:F,">0.8",F:F,"<=0.9") -> 0 | S29: =COUNTIFS(F:F,">0.9",F:F,"<=1") -> 0 | T29: =SUM(J29:S29) -> 189
A30: 0.43 | B30: 0.3 | C30: 0.31 | D30: 0.43 | E30: 0.24 | J30: =J29/$T$29 -> 4% | K30: =K29/$T$29 -> 10% | L30: 46% | M30: 29% | N30: 7% | O30: 4% | P30: 1% | Q30: 0% | R30: 0% | S30: 0%
A31: 0.22 | B31: 0.27 | C31: 0.34 | D31: 0.22 | E31: 0.19
A32: 0.21 | B32: 0.36 | C32: 0.24 | D32: 0.21 | E32: 0.58
A33: 0.18 | B33: 0.15 | C33: 0.29 | D33: 0.18 | E33: 0.27 | I33: Bull 6 | J33: 0.05 | K33: 0.15 | L33: 0.25 | M33: 0.35 | N33: 0.45 | O33: 0.55 | P33: 0.65 | Q33: 0.75 | R33: 0.85 | S33: 0.95
A34: 0.21 | B34: 0.32 | C34: 0.22 | D34: 0.21 | E34: 0.17 | J34: =(COUNTIFS(G:G, "<=0.1")) -> 15 | K34: =COUNTIFS(G:G,">0.1",G:G,"<=0.2") -> 35 | L34: =COUNTIFS(G:G,">0.2",G:G,"<=0.3") -> 62 | M34: =COUNTIFS(G:G,">0.3",G:G,"<=0.4") -> 39 | N34: =COUNTIFS(G:G,">0.4",G:G,"<=0.5") -> 23 | O34: =COUNTIFS(G:G,">0.5",G:G,"<=0.6") -> 8 | P34: =COUNTIFS(G:G,">0.6",G:G,"<=0.7") -> 8 | Q34: =COUNTIFS(G:G,">0.7",G:G,"<=0.8") -> 7 | R34: =COUNTIFS(G:G,">0.8",G:G,"<=0.9") -> 5 | S34: =COUNTIFS(G:G,">0.9",G:G,"<=1") -> 8 | T34: =SUM(J34:S34) -> 210
A35: 0.27 | B35: 0.36 | C35: 0.26 | D35: 0.27 | E35: 0 | J35: =J34/$T$34 -> 7% | K35: =K34/$T$34 -> 17% | L35: 30% | M35: 19% | N35: 11% | O35: 4% | P35: 4% | Q35: 3% | R35: 2% | S35: 4%
A36: 0.11 | B36: 0.28 | C36: 0.2 | D36: 0.11 | E36: 0.28
A37: 0.28 | B37: 0.29 | C37: 0.24 | D37: 0.28 | E37: 0.36
A38: 0.33 | B38: 0.34 | C38: 0.18 | D38: 0.33 | E38: 0.27
A39: 0.20 | B39: 0.38 | C39: 0.28 | D39: 0.2 | E39: 0.3
A40: 0.36 | B40: 0.34 | C40: 0.19 | D40: 0.36 | E40: 0.22
A41: 0.46 | B41: 0.22 | C41: 0.27 | D41: 0.46 | E41: 0.2
A42: 0.28 | B42: 0.29 | C42: 0.17 | D42: 0.28 | E42: 0.3
A43: 0.26 | B43: 0.31 | C43: 0.27 | D43: 0.26 | E43: 0.71
A44: 0.23 | B44: 0.3 | C44: 0.23 | D44: 0.23 | E44: 0.34
A45: 0.19 | B45: 0.32 | C45: 0.18 | D45: 0.19 | E45: 0.16
A46: 0.37 | B46: 0.45 | C46: 0.18 | D46: 0.37 | E46: 0.27
A47: 0.26 | B47: 0.23 | C47: 0.28 | D47: 0.26 | E47: 0.27
A48: 0.17 | B48: 0.34 | C48: 0.28 | D48: 0.17 | E48: 0.36
A49: 0.32 | B49: 0.26 | C49: 0.2 | D49: 0.32 | E49: 0.3
A50: 0.61 | B50: 0.27 | C50: 0.27 | D50: 0.61 | E50: 0.08
A51: 0.30 | B51: 0.26 | C51: 0.15 | D51: 0.3 | E51: 0.27
A52: 0.28 | B52: 0.35 | C52: 0.27 | D52: 0.28 | E52: 0.21
A53: 0.33 | B53: 0.3 | C53: 0.24 | D53: 0.33 | E53: 0.18
A54: 0.29 | B54: 0.23 | C54: 0.28 | D54: 0.29 | E54: 0.53 | F54: 0.23
A55: 0.27 | B55: 0.42 | C55: 0.31 | D55: 0.27 | E55: 0.75 | F55: 0.27
A56: 0.56 | B56: 0.42 | C56: 0.25 | D56: 0.56 | E56: 0.19 | F56: 0.26
A57: 0.24 | B57: 0.27 | C57: 0.23 | D57: 0.24 | E57: 0.21 | F57: 0.19
A58: 0.27 | B58: 0.25 | C58: 0.31 | D58: 0.27 | E58: 0.2 | F58: 0.55
A59: 0.18 | B59: 0.36 | C59: 0.21 | D59: 0.18 | E59: 0.25 | F59: 0.23
A60: 0.17 | B60: 0.36 | C60: 0.23 | D60: 0.17 | E60: 0.33 | F60: 0.23
A61: 0.44 | B61: 0.38 | C61: 0.13 | D61: 0.44 | E61: 0.23 | F61: 0.24
A62: 0.31 | B62: 0.16 | C62: 0.23 | D62: 0.31 | E62: 0.54 | F62: 0.27
A63: 0.35 | B63: 0.22 | C63: 0.15 | D63: 0.35 | E63: 0.29 | F63: 0.2
B64: 0.18 | C64: 0.23 | E64: 0.23 | F64: 0.32
B65: 0.26 | C65: 0.19 | E65: 0.28 | F65: 0.46
B66: 0.27 | C66: 0.18 | E66: 0.32 | F66: 0.56
B67: 0.28 | C67: 0.17 | E67: 0.5 | F67: 0.23
B68: 0.29 | C68: 0.27 | E68: 0.67 | F68: 0.27
B69: 0.37 | C69: 0.23 | E69: 0.31 | F69: 0.28
B70: 0.23 | C70: 0.23 | E70: 0.23 | F70: 0.28
B71: 0.29 | C71: 0.21 | E71: 0.18 | F71: 0.2
B72: 0.19 | C72: 0.18 | E72: 0.28 | F72: 0.22
B73: 0.3 | C73: 0.21 | E73: 0.31 | F73: 0.26
B74: 0.27 | C74: 0.23 | E74: 0.18 | F74: 0.53
B75: 0.36 | C75: 0.24 | E75: 0.19 | F75: 0.27 | G75: 0.18
B76: 0.15 | C76: 0.21 | E76: 0.33 | F76: 0.37 | G76: 0.31
B77: 0.32 | C77: 0.26 | E77: 0.11 | F77: 0.22 | G77: 0.39
B78: 0.36 | C78: 0.19 | E78: 0.22 | F78: 0.12 | G78: 0.33
B79: 0.28 | C79: 0.24 | E79: 0.25 | G79: 0.29
B80: 0.29 | C80: 0.26 | E80: 0.33 | G80: 0.32
B81: 0.34 | C81: 0.26 | E81: 0.24 | G81: 0.24
B82: 0.38 | C82: 0.29 | E82: 0.2 | G82: 0.26
B83: 0.34 | C83: 0.21 | E83: 0.17 | G83: 0.28
B84: 0.22 | C84: 0.26 | E84: 0.22 | G84: 0.26
B85: 0.29 | C85: 0.23 | E85: 0.14 | G85: 0.39
B86: 0.31 | C86: 0.27 | E86: 0.18 | G86: 0.25
B87: 0.3 | C87: 0.18 | E87: 0.16 | G87: 0.38
B88: 0.29 | C88: 0.22 | E88: 0.21 | G88: 0.25
B89: 0.24 | C89: 0.44 | E89: 0.67 | G89: 0.24
B90: 0.21 | C90: 0.22 | E90: 0.33 | G90: 0.3
B91: 0.15 | C91: 0.17 | E91: 0.35 | G91: 0.16
B92: 0.28 | C92: 0.24 | E92: 0.3 | G92: 0.31
B93: 0.34 | C93: 0.22 | E93: 0.29 | G93: 0.35
B94: 0.31 | C94: 0.2 | G94: 0.23
B95: 0.29 | C95: 0.23 | G95: 0.38
B96: 0.22 | C96: 0.25 | G96: 0.26
B97: 0.22 | C97: 0.26 | G97: 0.31
B98: 0.23 | C98: 0 | G98: 0.41
B99: 0.26 | C99: 0.17 | G99: 0.21
B100: 0.41 | C100: 0.21 | G100: 0.28
B101: 0.28 | C101: 0.23 | G101: 0.33
B102: 0.27 | C102: 0.33 | G102: 0.31
B103: 0.27 | C103: 0.23 | G103: 0.23
A104: 0.36 | B104: 0.23 | C104: 0.31 | D104: 0.36 | G104: 0.2
A105: 0.38 | B105: 0.27 | C105: 0.31 | D105: 0.38 | G105: 0.14
A106: 0.34 | B106: 0.25 | C106: 0.12 | D106: 0.34 | G106: 0.33
A107: 0.31 | B107: 0.28 | C107: 0.18 | D107: 0.31 | G107: 0.19
A108: 0.28 | B108: 0.17 | C108: 0.25 | D108: 0.28 | G108: 0.24
A109: 0.18 | B109: 0.29 | C109: 0.18 | D109: 0.18 | G109: 0.2
A110: 0.34 | B110: 0.28 | C110: 0.37 | D110: 0.34 | G110: 0.25
A111: 0.20 | B111: 0.34 | C111: 0.21 | D111: 0.2 | G111: 0.17
A112: 0.17 | B112: 0.25 | C112: 0.17 | D112: 0.17 | G112: 0.3
A113: 0.24 | B113: 0.24 | C113: 0.43 | D113: 0.24 | G113: 0.34
A114: 0.27 | B114: 0.2 | C114: 0.32 | D114: 0.27 | G114: 0.32
A115: 0.23 | B115: 0.27 | C115: 0.15 | D115: 0.23 | G115: 0.23
A116: 0.25 | B116: 0.36 | C116: 0.22 | D116: 0.25 | G116: 0.29
A117: 0.18 | B117: 0.26 | C117: 0.15 | D117: 0.18 | G117: 0.31
A118: 0.26 | B118: 0.25 | C118: 0.12 | D118: 0.26 | G118: 0.25
A119: 0.23 | B119: 0.24 | C119: 0.22 | D119: 0.23 | G119: 0.27
A120: 0.25 | B120: 0.34 | C120: 0 | D120: 0.25 | G120: 0.26
A121: 0.37 | B121: 0.26 | C121: 0.21 | D121: 0.37 | G121: 0.18
A122: 0.33 | B122: 0.2 | C122: 0.23 | D122: 0.33 | G122: 0.41
A123: 0.15 | B123: 0.2 | C123: 0.22 | D123: 0.15 | G123: 0.33
A124: 0.16 | B124: 0.24 | C124: 0.22 | D124: 0.16 | G124: 0.33
A125: 0.23 | B125: 0.31 | C125: 0.24 | D125: 0.23 | G125: 0.2
A126: 0.28 | B126: 0.27 | C126: 0.23 | D126: 0.28 | G126: 0.26
A127: 0.27 | B127: 0.22 | C127: 0.26 | D127: 0.27 | G127: 0.38
A128: 0.19 | B128: 0.23 | C128: 0.22 | D128: 0.19 | G128: 0.26
A129: 0.20 | B129: 0.31 | C129: 0.19 | D129: 0.2 | G129: 0.36
A130: 0.27 | B130: 0.27 | D130: 0.27 | G130: 0.26
A131: 0.29 | B131: 0.2 | D131: 0.29 | G131: 0.3
A132: 0.38 | B132: 0.21 | D132: 0.38 | G132: 0.42
A133: 0.30 | B133: 0.55 | D133: 0.3 | G133: 0.31
A134: 0.31 | B134: 0.22 | D134: 0.31 | G134: 0.17
A135: 0.27 | B135: 0.22 | D135: 0.27 | G135: 0.25
A136: 0.24 | B136: 0.23 | D136: 0.24 | G136: 0.22
A137: 0.30 | B137: 0.31 | D137: 0.3 | G137: 0.33
A138: 0.15 | B138: 0.28 | D138: 0.15 | G138: 0.3
A139: 0.50 | B139: 0.21 | D139: 0.5 | G139: 0.25
A140: 0.17 | B140: 0.26 | D140: 0.17 | G140: 0.16
A141: 0.38 | B141: 0.22 | D141: 0.38 | G141: 0.35
A142: 0.30 | B142: 0.31 | D142: 0.3 | G142: 0.23
A143: 0.36 | B143: 0.28 | D143: 0.36 | G143: 0.27
B144: 0.23 | G144: 0.28
B145: 0.26 | G145: 0.17
B146: 0.24 | G146: 0.31
B147: 0.24 | G147: 0.32
B148: 0.22 | G148: 0.35
B149: 0.41 | G149: 0.2
B150: 0.12 | G150: 0.33
B151: 0.17 | G151: 0.14
B152: 0.32 | G152: 0.23
B153: 0.24 | G153: 0.2
B154: 0.26 | G154: 0.25
B155: 0.28 | G155: 0.21
B156: 0.18 | G156: 0.2
B157: 0.21 | G157: 1
B158: 0.23 | G158: 0.33
B159: 0.21 | G159: 0.36
B160: 0.16 | G160: 0.5
B161: 0.19 | G161: 0.59
B162: 0.27 | G162: 0.66
B163: 0.27 | G163: 0.4
B164: 0.21 | G164: 0.42
B165: 0.28 | G165: 0.42
B166: 0.19 | G166: 0
B167: 0.28 | G167: 0.2
B168: 0.17 | G168: 0.26
B169: 0.32 | G169: 0
B170: 0.29 | G170: 0.5
B171: 0.32 | G171: 0.83
B172: 0.22 | G172: 1
B173: 0.23 | G173: 0.33
B174: 0.33 | G174: 0.5
B175: 0.34 | G175: 0.43
B176: 0.26 | G176: 0.69
B177: 0.3 | G177: 0
B178: 0.34 | F178: 0.27 | G178: 0.6
F179: 0.23 | G179: 0.86
F180: 0.3 | G180: 0.8
F181: 0.29 | G181: 0.15
F182: 0.3 | G182: 1
F183: 0.23 | G183: 0.7
F184: 0.32 | G184: 0.5
F185: 0.54 | G185: 0.83
F186: 0.35 | G186: 0.83
F187: 0.28 | G187: 0.21
F188: 0.45 | G188: 0.52
F189: 0.36 | G189: 1
F190: 0.4 | G190: 0.54
F191: 0.48 | G191: 0.75
F192: 0.3 | G192: 0.52
F193: 0.23 | G193: 0.25
F194: 0.38 | G194: 0.32
F195: 0.28 | G195: 0.36
F196: 0.32 | G196: 0.36
F197: 0.17 | G197: 0.29
F198: 0.14 | G198: 0.19
F199: 0.21 | G199: 0.46
F200: 0.26 | G200: 0.18
... 4239 more rows

Sheet FAM161A DC
A1: FAM161A DC/Total | B1: Bull 1 | C1: Bull 2 | D1: Bull 3 | E1: Bull 4 | F1: Bull 5 | G1: Bull 6
A2: 0.58 | B2: 0.67 | D2: 0.58 | E2: 0.8 | I2: Bins | J2: 0.05 | K2: 0.15 | L2: 0.25 | M2: 0.35 | N2: 0.45 | O2: 0.55 | P2: 0.65 | Q2: 0.75 | R2: 0.85 | S2: 0.95
A3: 0.76 | B3: 0.55 | D3: 0.76 | E3: 0.21 | J3: 0 | K3: .1-.2 | L3: .2-.3 | M3: .3-.4 | N3: .4-.5 | O3: .5-.6 | P3: .6-.7 | Q3: .7-.8 | R3: .8-.9 | S3: .9-1
A4: 0.83 | B4: 0.77 | D4: 0.83 | E4: 0.74 | J4: =(COUNTIFS(A:A, "<=0.1")) -> 79 | K4: =COUNTIFS(A:A,">0.1",A:A,"<=0.2") -> 10 | L4: =COUNTIFS(A:A,">0.2",A:A,"<=0.3") -> 20 | M4: =COUNTIFS(A:A,">0.3",A:A,"<=0.4") -> 55 | N4: =COUNTIFS(A:A,">0.4",A:A,"<=0.5") -> 144 | O4: =COUNTIFS(A:A,">0.5",A:A,"<=0.6") -> 405 | P4: =COUNTIFS(A:A,">0.6",A:A,"<=0.7") -> 1179 | Q4: =COUNTIFS(A:A,">0.7",A:A,"<=0.8") -> 1494 | R4: =COUNTIFS(A:A,">0.8",A:A,"<=0.9") -> 622 | S4: =COUNTIFS(A:A,">0.9",A:A,"<=1") -> 126 | T4: =SUM(J4:S4) -> 4134
A5: 0.76 | B5: 0.66 | D5: 0.76 | E5: 0.67 | J5: =J4/$T$4 -> 2% | K5: =K4/$T$4 -> 0% | L5: 0% | M5: 1% | N5: 3% | O5: 10% | P5: 29% | Q5: 36% | R5: 15% | S5: 3%
A6: 0.76 | B6: 0.73 | D6: 0.76 | E6: 0.66
A7: 0.64 | B7: 0.73 | D7: 0.64 | E7: 0.78
A8: 0.83 | B8: 0.74 | D8: 0.83 | E8: 0.75 | I8: Bull 1 | J8: 0.05 | K8: 0.15 | L8: 0.25 | M8: 0.35 | N8: 0.45 | O8: 0.55 | P8: 0.65 | Q8: 0.75 | R8: 0.85 | S8: 0.95
A9: 0.61 | B9: 0.65 | D9: 0.61 | E9: 0.7 | J9: =(COUNTIFS(B:B, "<=0.1")) -> 0 | K9: =COUNTIFS(B:B,">0.1",B:B,"<=0.2") -> 0 | L9: =COUNTIFS(B:B,">0.2",B:B,"<=0.3") -> 0 | M9: =COUNTIFS(B:B,">0.3",B:B,"<=0.4") -> 0 | N9: =COUNTIFS(B:B,">0.4",B:B,"<=0.5") -> 1 | O9: =COUNTIFS(B:B,">0.5",B:B,"<=0.6") -> 22 | P9: =COUNTIFS(B:B,">0.6",B:B,"<=0.7") -> 117 | Q9: =COUNTIFS(B:B,">0.7",B:B,"<=0.8") -> 248 | R9: =COUNTIFS(B:B,">0.8",B:B,"<=0.9") -> 69 | S9: =COUNTIFS(B:B,">0.9",B:B,"<=1") -> 3 | T9: =SUM(J9:S9) -> 460
A10: 0.78 | B10: 0.69 | D10: 0.78 | E10: 0.66 | J10: =J9/$T$9 -> 0% | K10: =K9/$T$9 -> 0% | L10: 0% | M10: 0% | N10: 0% | O10: 5% | P10: 25% | Q10: 54% | R10: 15% | S10: 1%
A11: 0.61 | B11: 0.76 | D11: 0.61 | E11: 0.81
A12: 0.91 | B12: 0.58 | D12: 0.91 | E12: 0.8
A13: 0.78 | B13: 0.57 | D13: 0.78 | E13: 0.7 | I13: Bull 2 | J13: 0.05 | K13: 0.15 | L13: 0.25 | M13: 0.35 | N13: 0.45 | O13: 0.55 | P13: 0.65 | Q13: 0.75 | R13: 0.85 | S13: 0.95
A14: 0.72 | B14: 0.73 | D14: 0.72 | E14: 0.7 | J14: =(COUNTIFS(C:C, "<=0.1")) -> 0 | K14: =COUNTIFS(C:C,">0.1",C:C,"<=0.2") -> 0 | L14: =COUNTIFS(C:C,">0.2",C:C,"<=0.3") -> 0 | M14: =COUNTIFS(C:C,">0.3",C:C,"<=0.4") -> 0 | N14: =COUNTIFS(C:C,">0.4",C:C,"<=0.5") -> 0 | O14: =COUNTIFS(C:C,">0.5",C:C,"<=0.6") -> 4 | P14: =COUNTIFS(C:C,">0.6",C:C,"<=0.7") -> 45 | Q14: =COUNTIFS(C:C,">0.7",C:C,"<=0.8") -> 176 | R14: =COUNTIFS(C:C,">0.8",C:C,"<=0.9") -> 118 | S14: =COUNTIFS(C:C,">0.9",C:C,"<=1") -> 3 | T14: =SUM(J14:S14) -> 346
A15: 0.75 | B15: 0.75 | D15: 0.75 | E15: 0.85 | J15: =J14/$T$14 -> 0% | K15: =K14/$T$14 -> 0% | L15: 0% | M15: 0% | N15: 0% | O15: 1% | P15: 13% | Q15: 51% | R15: 34% | S15: 1%
A16: 0.68 | B16: 0.62 | D16: 0.68 | E16: 0.67
A17: 0.69 | B17: 0.63 | D17: 0.69 | E17: 0.83
A18: 0.75 | B18: 0.62 | D18: 0.75 | E18: 0.89 | I18: Bull 3 | J18: 0.05 | K18: 0.15 | L18: 0.25 | M18: 0.35 | N18: 0.45 | O18: 0.55 | P18: 0.65 | Q18: 0.75 | R18: 0.85 | S18: 0.95
A19: 0.62 | B19: 0.83 | D19: 0.62 | E19: 0.73 | J19: =(COUNTIFS(D:D, "<=0.1")) -> 5 | K19: =COUNTIFS(D:D,">0.1",D:D,"<=0.2") -> 0 | L19: =COUNTIFS(D:D,">0.2",D:D,"<=0.3") -> 1 | M19: =COUNTIFS(D:D,">0.3",D:D,"<=0.4") -> 6 | N19: =COUNTIFS(D:D,">0.4",D:D,"<=0.5") -> 7 | O19: =COUNTIFS(D:D,">0.5",D:D,"<=0.6") -> 7 | P19: =COUNTIFS(D:D,">0.6",D:D,"<=0.7") -> 35 | Q19: =COUNTIFS(D:D,">0.7",D:D,"<=0.8") -> 66 | R19: =COUNTIFS(D:D,">0.8",D:D,"<=0.9") -> 41 | S19: =COUNTIFS(D:D,">0.9",D:D,"<=1") -> 30 | T19: =SUM(J19:S19) -> 198
A20: 0.76 | B20: 0.78 | D20: 0.76 | E20: 0.63 | J20: =J19/$T$19 -> 3% | K20: =K19/$T$19 -> 0% | L20: 1% | M20: 3% | N20: 4% | O20: 4% | P20: 18% | Q20: 33% | R20: 21% | S20: 15%
A21: 0.80 | B21: 0.82 | D21: 0.8 | E21: 0.65
A22: 0.69 | B22: 0.73 | D22: 0.69 | E22: 0.69
A23: 0.71 | B23: 0.73 | D23: 0.71 | E23: 0.81 | I23: Bull 4 | J23: 0.05 | K23: 0.15 | L23: 0.25 | M23: 0.35 | N23: 0.45 | O23: 0.55 | P23: 0.65 | Q23: 0.75 | R23: 0.85 | S23: 0.95
A24: 0.64 | B24: 0.72 | D24: 0.64 | E24: 0.7 | J24: =(COUNTIFS(E:E, "<=0.1")) -> 8 | K24: =COUNTIFS(E:E,">0.1",E:E,"<=0.2") -> 2 | L24: =COUNTIFS(E:E,">0.2",E:E,"<=0.3") -> 3 | M24: =COUNTIFS(E:E,">0.3",E:E,"<=0.4") -> 2 | N24: =COUNTIFS(E:E,">0.4",E:E,"<=0.5") -> 9 | O24: =COUNTIFS(E:E,">0.5",E:E,"<=0.6") -> 8 | P24: =COUNTIFS(E:E,">0.6",E:E,"<=0.7") -> 50 | Q24: =COUNTIFS(E:E,">0.7",E:E,"<=0.8") -> 57 | R24: =COUNTIFS(E:E,">0.8",E:E,"<=0.9") -> 24 | S24: =COUNTIFS(E:E,">0.9",E:E,"<=1") -> 3 | T24: =SUM(J24:S24) -> 166
A25: 0.85 | B25: 0.71 | D25: 0.85 | E25: 0.68 | J25: =J24/$T$24 -> 5% | K25: =K24/$T$24 -> 1% | L25: =L24/$T$24 -> 2% | M25: 1% | N25: 5% | O25: 5% | P25: 30% | Q25: 34% | R25: 14% | S25: 2%
A26: 0.73 | B26: 0.62 | D26: 0.73 | E26: 0.78
A27: 0.26 | B27: 0.77 | D27: 0.26 | E27: 0.65
A28: 0.76 | B28: 0.71 | D28: 0.76 | E28: 0.81 | I28: Bull 5 | J28: 0.05 | K28: 0.15 | L28: 0.25 | M28: 0.35 | N28: 0.45 | O28: 0.55 | P28: 0.65 | Q28: 0.75 | R28: 0.85 | S28: 0.95
A29: 0.74 | B29: 0.81 | C29: 0.77 | D29: 0.74 | E29: 0.76 | J29: =(COUNTIFS(F:F, "<=0.1")) -> 3 | K29: =COUNTIFS(F:F,">0.1",F:F,"<=0.2") -> 0 | L29: =COUNTIFS(F:F,">0.2",F:F,"<=0.3") -> 0 | M29: =COUNTIFS(F:F,">0.3",F:F,"<=0.4") -> 2 | N29: =COUNTIFS(F:F,">0.4",F:F,"<=0.5") -> 12 | O29: =COUNTIFS(F:F,">0.5",F:F,"<=0.6") -> 22 | P29: =COUNTIFS(F:F,">0.6",F:F,"<=0.7") -> 76 | Q29: =COUNTIFS(F:F,">0.7",F:F,"<=0.8") -> 60 | R29: =COUNTIFS(F:F,">0.8",F:F,"<=0.9") -> 11 | S29: =COUNTIFS(F:F,">0.9",F:F,"<=1") -> 3 | T29: =SUM(J29:S29) -> 189
A30: 0.57 | B30: 0.7 | C30: 0.68 | D30: 0.57 | E30: 0.75 | J30: =J29/$T$29 -> 2% | K30: =K29/$T$29 -> 0% | L30: 0% | M30: 1% | N30: 6% | O30: 12% | P30: 40% | Q30: 32% | R30: 6% | S30: 2%
A31: 0.77 | B31: 0.73 | C31: 0.66 | D31: 0.77 | E31: 0.81
A32: 0.79 | B32: 0.64 | C32: 0.75 | D32: 0.79 | E32: 0.42
A33: 0.82 | B33: 0.85 | C33: 0.71 | D33: 0.82 | E33: 0.73 | I33: Bull 6 | J33: 0.05 | K33: 0.15 | L33: 0.25 | M33: 0.35 | N33: 0.45 | O33: 0.55 | P33: 0.65 | Q33: 0.75 | R33: 0.85 | S33: 0.95
A34: 0.79 | B34: 0.68 | C34: 0.78 | D34: 0.79 | E34: 0.67 | J34: =(COUNTIFS(G:G, "<=0.1")) -> 13 | K34: =COUNTIFS(G:G,">0.1",G:G,"<=0.2") -> 9 | L34: =COUNTIFS(G:G,">0.2",G:G,"<=0.3") -> 8 | M34: =COUNTIFS(G:G,">0.3",G:G,"<=0.4") -> 18 | N34: =COUNTIFS(G:G,">0.4",G:G,"<=0.5") -> 19 | O34: =COUNTIFS(G:G,">0.5",G:G,"<=0.6") -> 21 | P34: =COUNTIFS(G:G,">0.6",G:G,"<=0.7") -> 47 | Q34: =COUNTIFS(G:G,">0.7",G:G,"<=0.8") -> 57 | R34: =COUNTIFS(G:G,">0.8",G:G,"<=0.9") -> 16 | S34: =COUNTIFS(G:G,">0.9",G:G,"<=1") -> 2 | T34: =SUM(J34:S34) -> 210
A35: 0.73 | B35: 0.64 | C35: 0.74 | D35: 0.73 | E35: 0.5 | J35: =J34/$T$34 -> 6% | K35: =K34/$T$34 -> 4% | L35: 4% | M35: 9% | N35: 9% | O35: 10% | P35: 22% | Q35: 27% | R35: 8% | S35: 1%
A36: 0.89 | B36: 0.72 | C36: 0.8 | D36: 0.89 | E36: 0.72
A37: 0.72 | B37: 0.71 | C37: 0.75 | D37: 0.72 | E37: 0.59
A38: 0.67 | B38: 0.66 | C38: 0.82 | D38: 0.67 | E38: 0.73
A39: 0.80 | B39: 0.61 | C39: 0.72 | D39: 0.8 | E39: 0.65 | T39: =SUM(J39:S39) -> 0
A40: 0.64 | B40: 0.66 | C40: 0.81 | D40: 0.64 | E40: 0.78
A41: 0.54 | B41: 0.78 | C41: 0.73 | D41: 0.54 | E41: 0.8
A42: 0.72 | B42: 0.71 | C42: 0.82 | D42: 0.72 | E42: 0.7
A43: 0.74 | B43: 0.69 | C43: 0.73 | D43: 0.74 | E43: 0.29
A44: 0.77 | B44: 0.7 | C44: 0.77 | D44: 0.77 | E44: 0.66 | T44: =SUM(J44:S44) -> 0
A45: 0.81 | B45: 0.67 | C45: 0.81 | D45: 0.81 | E45: 0.83
A46: 0.63 | B46: 0.55 | C46: 0.82 | D46: 0.63 | E46: 0.73
A47: 0.74 | B47: 0.77 | C47: 0.71 | D47: 0.74 | E47: 0.73
A48: 0.83 | B48: 0.66 | C48: 0.72 | D48: 0.83 | E48: 0.64
A49: 0.68 | B49: 0.73 | C49: 0.8 | D49: 0.68 | E49: 0.65 | T49: =SUM(J49:S49) -> 0
A50: 0.39 | B50: 0.73 | C50: 0.73 | D50: 0.39 | E50: 0.83
A51: 0.70 | B51: 0.74 | C51: 0.85 | D51: 0.7 | E51: 0.71
A52: 0.72 | B52: 0.65 | C52: 0.72 | D52: 0.72 | E52: 0.79
A53: 0.67 | B53: 0.69 | C53: 0.75 | D53: 0.67 | E53: 0.82
A54: 0.71 | B54: 0.76 | C54: 0.72 | D54: 0.71 | E54: 0.47 | F54: 0.77 | T54: =SUM(J54:S54) -> 0
A55: 0.73 | B55: 0.58 | C55: 0.69 | D55: 0.73 | E55: 0.25 | F55: 0.73
A56: 0.43 | B56: 0.57 | C56: 0.73 | D56: 0.43 | E56: 0.8 | F56: 0.71
A57: 0.76 | B57: 0.73 | C57: 0.77 | D57: 0.76 | E57: 0.79 | F57: 0.8
A58: 0.72 | B58: 0.75 | C58: 0.67 | D58: 0.72 | E58: 0.8 | F58: 0.45
A59: 0.82 | B59: 0.62 | C59: 0.78 | D59: 0.82 | E59: 0.75 | F59: 0.76 | T59: =SUM(J59:S59) -> 0
A60: 0.83 | B60: 0.63 | C60: 0.77 | D60: 0.83 | E60: 0.66 | F60: 0.77
A61: 0.56 | B61: 0.62 | C61: 0.87 | D61: 0.56 | E61: 0.77 | F61: 0.75
A62: 0.69 | B62: 0.83 | C62: 0.77 | D62: 0.69 | E62: 0.44 | F62: 0.71
A63: 0.65 | B63: 0.78 | C63: 0.85 | D63: 0.65 | E63: 0.71 | F63: 0.78
B64: 0.82 | C64: 0.77 | E64: 0.77 | F64: 0.68 | T64: =SUM(J64:S64) -> 0
B65: 0.73 | C65: 0.79 | E65: 0.72 | F65: 0.54
B66: 0.73 | C66: 0.82 | E66: 0.68 | F66: 0.43
B67: 0.72 | C67: 0.83 | E67: 0.47 | F67: 0.76
B68: 0.71 | C68: 0.73 | E68: 0.11 | F68: 0.72
B69: 0.62 | C69: 0.77 | E69: 0.68 | F69: 0.72 | T69: =SUM(J69:S69) -> 0
B70: 0.77 | C70: 0.77 | E70: 0.77 | F70: 0.69
B71: 0.71 | C71: 0.79 | E71: 0.82 | F71: 0.79
B72: 0.81 | C72: 0.82 | E72: 0.69 | F72: 0.76
B73: 0.7 | C73: 0.79 | E73: 0.69 | F73: 0.7
B74: 0.73 | C74: 0.76 | E74: 0.82 | F74: 0.41 | T74: =SUM(J74:S74) -> 0
B75: 0.64 | C75: 0.76 | E75: 0.8 | F75: 0.72 | G75: 0.82
B76: 0.85 | C76: 0.77 | E76: 0.67 | F76: 0.62 | G76: 0.68
B77: 0.68 | C77: 0.74 | E77: 0.89 | F77: 0.77 | G77: 0.61
B78: 0.64 | C78: 0.81 | E78: 0.78 | F78: 0.87 | G78: 0.67
B79: 0.72 | C79: 0.76 | E79: 0.31 | G79: 0.71 | T79: =SUM(J79:S79) -> 0
B80: 0.71 | C80: 0.73 | E80: 0.66 | G80: 0.68
B81: 0.66 | C81: 0.74 | E81: 0.75 | G81: 0.76
B82: 0.61 | C82: 0.71 | E82: 0.79 | G82: 0.74
B83: 0.66 | C83: 0.77 | E83: 0.83 | G83: 0.72
B84: 0.78 | C84: 0.74 | E84: 0.77 | G84: 0.74 | T84: =SUM(J84:S84) -> 0
B85: 0.71 | C85: 0.77 | E85: 0.86 | G85: 0.6
B86: 0.69 | C86: 0.72 | E86: 0.81 | G86: 0.75
B87: 0.7 | C87: 0.82 | E87: 0.83 | G87: 0.62
B88: 0.71 | C88: 0.78 | E88: 0.78 | G88: 0.75
B89: 0.76 | C89: 0.56 | E89: 0.33 | G89: 0.76 | T89: =SUM(J89:S89) -> 0
B90: 0.78 | C90: 0.78 | E90: 0.66 | G90: 0.7
B91: 0.85 | C91: 0.83 | E91: 0.64 | G91: 0.84
B92: 0.72 | C92: 0.76 | E92: 0.7 | G92: 0.69
B93: 0.66 | C93: 0.78 | E93: 0.7 | G93: 0.65
B94: 0.68 | C94: 0.8 | G94: 0.77 | T94: =SUM(J94:S94) -> 0
B95: 0.7 | C95: 0.76 | G95: 0.62
B96: 0.76 | C96: 0.75 | G96: 0.73
B97: 0.78 | C97: 0.74 | G97: 0.69
B98: 0.76 | C98: 1 | G98: 0.59
B99: 0.74 | C99: 0.83 | G99: 0.79 | T99: =SUM(J99:S99) -> 0
B100: 0.59 | C100: 0.79 | G100: 0.72
B101: 0.7 | C101: 0.77 | G101: 0.67
B102: 0.73 | C102: 0.67 | G102: 0.69
B103: 0.71 | C103: 0.77 | G103: 0.77
A104: 0.61 | B104: 0.77 | C104: 0.69 | D104: 0.61 | G104: 0.8 | T104: =SUM(J104:S104) -> 0
A105: 0.47 | B105: 0.73 | C105: 0.69 | D105: 0.47 | G105: 0.85
A106: 0.66 | B106: 0.75 | C106: 0.88 | D106: 0.66 | G106: 0.61
A107: 0.69 | B107: 0.71 | C107: 0.81 | D107: 0.69 | G107: 0.81
A108: 0.71 | B108: 0.83 | C108: 0.75 | D108: 0.71 | G108: 0.76
A109: 0.81 | B109: 0.69 | C109: 0.82 | D109: 0.81 | G109: 0.8 | T109: =SUM(J109:S109) -> 0
A110: 0.66 | B110: 0.71 | C110: 0.63 | D110: 0.66 | G110: 0.74
A111: 0.79 | B111: 0.66 | C111: 0.78 | D111: 0.79 | G111: 0.83
A112: 0.83 | B112: 0.75 | C112: 0.83 | D112: 0.83 | G112: 0.7
A113: 0.76 | B113: 0.76 | C113: 0.56 | D113: 0.76 | G113: 0.66
A114: 0.73 | B114: 0.8 | C114: 0.68 | D114: 0.73 | G114: 0.66 | T114: =SUM(J114:S114) -> 0
A115: 0.77 | B115: 0.73 | C115: 0.85 | D115: 0.77 | G115: 0.76
A116: 0.75 | B116: 0.64 | C116: 0.77 | D116: 0.75 | G116: 0.71
A117: 0.82 | B117: 0.73 | C117: 0.84 | D117: 0.82 | G117: 0.69
A118: 0.74 | B118: 0.75 | C118: 0.88 | D118: 0.74 | G118: 0.74
A119: 0.77 | B119: 0.76 | C119: 0.77 | D119: 0.77 | G119: 0.72 | T119: =SUM(J119:S119) -> 0
A120: 0.74 | B120: 0.65 | C120: 1 | D120: 0.74 | G120: 0.74
A121: 0.63 | B121: 0.73 | C121: 0.78 | D121: 0.63 | G121: 0.81
A122: 0.67 | B122: 0.8 | C122: 0.76 | D122: 0.67 | G122: 0.59
A123: 0.84 | B123: 0.8 | C123: 0.78 | D123: 0.84 | G123: 0.66
A124: 0.83 | B124: 0.75 | C124: 0.78 | D124: 0.83 | G124: 0.67 | T124: =SUM(J124:S124) -> 0
A125: 0.76 | B125: 0.69 | C125: 0.76 | D125: 0.76 | G125: 0.8
A126: 0.72 | B126: 0.72 | C126: 0.77 | D126: 0.72 | G126: 0.73
A127: 0.73 | B127: 0.77 | C127: 0.74 | D127: 0.73 | G127: 0.61
A128: 0.81 | B128: 0.77 | C128: 0.77 | D128: 0.81 | G128: 0.74
A129: 0.80 | B129: 0.69 | C129: 0.8 | D129: 0.8 | G129: 0.64 | T129: =SUM(J129:S129) -> 0
A130: 0.73 | B130: 0.73 | D130: 0.73 | G130: 0.73
A131: 0.71 | B131: 0.79 | D131: 0.71 | G131: 0.7
A132: 0.61 | B132: 0.79 | D132: 0.61 | G132: 0.58
A133: 0.70 | B133: 0.45 | D133: 0.7 | G133: 0.69
A134: 0.64 | B134: 0.77 | D134: 0.64 | G134: 0.83 | T134: =SUM(J134:S134) -> 0
A135: 0.72 | B135: 0.78 | D135: 0.72 | G135: 0.75
A136: 0.76 | B136: 0.76 | D136: 0.76 | G136: 0.78
A137: 0.70 | B137: 0.69 | D137: 0.7 | G137: 0.66
A138: 0.83 | B138: 0.72 | D138: 0.83 | G138: 0.7
A139: 0.50 | B139: 0.79 | D139: 0.5 | G139: 0.74 | T139: =SUM(J139:S139) -> 0
A140: 0.83 | B140: 0.74 | D140: 0.83 | G140: 0.84
A141: 0.59 | B141: 0.78 | D141: 0.59 | G141: 0.65
A142: 0.70 | B142: 0.68 | D142: 0.7 | G142: 0.77
A143: 0.64 | B143: 0.72 | D143: 0.64 | G143: 0.72
B144: 0.77 | G144: 0.72 | T144: =SUM(J144:S144) -> 0
B145: 0.74 | G145: 0.83
B146: 0.76 | G146: 0.68
B147: 0.75 | G147: 0.68
B148: 0.77 | G148: 0.65
B149: 0.59 | G149: 0.8 | T149: =SUM(J149:S149) -> 0
B150: 0.87 | G150: 0.61
B151: 0.83 | G151: 0.86
B152: 0.67 | G152: 0.77
B153: 0.75 | G153: 0.8
B154: 0.74 | G154: 0.74 | T154: =SUM(J154:S154) -> 0
B155: 0.72 | G155: 0.79
B156: 0.82 | G156: 0.8
B157: 0.78 | G157: 0
B158: 0.77 | G158: 0.67
B159: 0.79 | G159: 0.64 | T159: =SUM(J159:S159) -> 0
B160: 0.83 | G160: 0.5
B161: 0.8 | G161: 0.41
B162: 0.73 | G162: 0.34
B163: 0.73 | G163: 0.6
B164: 0.79 | G164: 0.58 | T164: =SUM(J164:S164) -> 0
B165: 0.72 | G165: 0.58
B166: 0.81 | G166: 1
B167: 0.72 | G167: 0.2
B168: 0.82 | G168: 0.74
B169: 0.67 | G169: 0
B170: 0.71 | G170: 0.5
B171: 0.67 | G171: 0.17
B172: 0.78 | G172: 0
B173: 0.77 | G173: 0.67
B174: 0.67 | G174: 0.5
B175: 0.65 | G175: 0.57
B176: 0.71 | G176: 0.25
B177: 0.7 | G177: 0
B178: 0.66 | F178: 0.72 | G178: 0.4
F179: 0.75 | G179: 0.14
F180: 0.66 | G180: 0.2
F181: 0.7 | G181: 0.85
F182: 0.69 | G182: 0
F183: 0.77 | G183: 0.3
F184: 0.64 | G184: 0.5
F185: 0.45 | G185: 0.08
F186: 0.65 | G186: 0.17
F187: 0.7 | G187: 0.79
F188: 0.54 | G188: 0.48
F189: 0.63 | G189: 0
F190: 0.58 | G190: 0.46
F191: 0.49 | G191: 0.25
F192: 0.67 | G192: 0.48
F193: 0.74 | G193: 0.75
F194: 0.59 | G194: 0.68
F195: 0.69 | G195: 0.64
F196: 0.64 | G196: 0.45
F197: 0.82 | G197: 0.71
F198: 0.84 | G198: 0.79
F199: 0.76 | G199: 0.53
F200: 0.74 | G200: 0.81
... 4239 more rows

Sheet FAM161A Ax
A1: FAM161A Ax/Total | B1: Bull 1 | C1: Bull 2 | D1: Bull 3 | E1: Bull 4 | F1: Bull 5 | G1: Bull 6
A2: 0.00 | B2: 0.01 | D2: 0 | E2: 0 | I2: Bins | J2: 0.05 | K2: 0.15 | L2: 0.25 | M2: 0.35 | N2: 0.45 | O2: 0.55 | P2: 0.65 | Q2: 0.75 | R2: 0.85 | S2: 0.95
A3: 0.00 | B3: 0 | D3: 0 | E3: 0 | J3: 0 | K3: .1-.2 | L3: .2-.3 | M3: .3-.4 | N3: .4-.5 | O3: .5-.6 | P3: .6-.7 | Q3: .7-.8 | R3: .8-.9 | S3: .9-1
A4: 0.00 | B4: 0 | D4: 0 | E4: 0.01 | J4: =(COUNTIFS(A:A, "<=0.1")) -> 3990 | K4: =COUNTIFS(A:A,">0.1",A:A,"<=0.2") -> 73 | L4: =COUNTIFS(A:A,">0.2",A:A,"<=0.3") -> 37 | M4: =COUNTIFS(A:A,">0.3",A:A,"<=0.4") -> 11 | N4: =COUNTIFS(A:A,">0.4",A:A,"<=0.5") -> 16 | O4: =COUNTIFS(A:A,">0.5",A:A,"<=0.6") -> 1 | P4: =COUNTIFS(A:A,">0.6",A:A,"<=0.7") -> 4 | Q4: =COUNTIFS(A:A,">0.7",A:A,"<=0.8") -> 1 | R4: =COUNTIFS(A:A,">0.8",A:A,"<=0.9") -> 0 | S4: =COUNTIFS(A:A,">0.9",A:A,"<=1") -> 1 | T4: =SUM(J4:S4) -> 4134
A5: 0.00 | B5: 0 | D5: 0 | E5: 0 | J5: =J4/$T$4 -> 97% | K5: =K4/$T$4 -> 2% | L5: 1% | M5: 0% | N5: 0% | O5: 0% | P5: 0% | Q5: 0% | R5: 0% | S5: 0%
A6: 0.00 | B6: 0 | D6: 0 | E6: 0.02
A7: 0.02 | B7: 0 | D7: 0.02 | E7: 0.01
A8: 0.00 | B8: 0 | D8: 0 | E8: 0.01 | I8: Bull 1 | J8: 0.05 | K8: 0.15 | L8: 0.25 | M8: 0.35 | N8: 0.45 | O8: 0.55 | P8: 0.65 | Q8: 0.75 | R8: 0.85 | S8: 0.95
A9: 0.00 | B9: 0 | D9: 0 | E9: 0 | J9: =(COUNTIFS(B:B, "<=0.1")) -> 460 | K9: =COUNTIFS(B:B,">0.1",B:B,"<=0.2") -> 0 | L9: =COUNTIFS(B:B,">0.2",B:B,"<=0.3") -> 0 | M9: =COUNTIFS(B:B,">0.3",B:B,"<=0.4") -> 0 | N9: =COUNTIFS(B:B,">0.4",B:B,"<=0.5") -> 0 | O9: =COUNTIFS(B:B,">0.5",B:B,"<=0.6") -> 0 | P9: =COUNTIFS(B:B,">0.6",B:B,"<=0.7") -> 0 | Q9: =COUNTIFS(B:B,">0.7",B:B,"<=0.8") -> 0 | R9: =COUNTIFS(B:B,">0.8",B:B,"<=0.9") -> 0 | S9: =COUNTIFS(B:B,">0.9",B:B,"<=1") -> 0 | T9: =SUM(J9:S9) -> 460
A10: 0.00 | B10: 0.01 | D10: 0 | E10: 0 | J10: =J9/$T$9 -> 100% | K10: =K9/$T$9 -> 0% | L10: 0% | M10: 0% | N10: 0% | O10: 0% | P10: 0% | Q10: 0% | R10: 0% | S10: 0%
A11: 0.00 | B11: 0.01 | D11: 0 | E11: 0
A12: 0.01 | B12: 0 | D12: 0.01 | E12: 0
A13: 0.01 | B13: 0.01 | D13: 0.01 | E13: 0 | I13: Bull 2 | J13: 0.05 | K13: 0.15 | L13: 0.25 | M13: 0.35 | N13: 0.45 | O13: 0.55 | P13: 0.65 | Q13: 0.75 | R13: 0.85 | S13: 0.95
A14: 0.00 | B14: 0 | D14: 0 | E14: 0.01 | J14: =(COUNTIFS(C:C, "<=0.1")) -> 346 | K14: =COUNTIFS(C:C,">0.1",C:C,"<=0.2") -> 0 | L14: =COUNTIFS(C:C,">0.2",C:C,"<=0.3") -> 0 | M14: =COUNTIFS(C:C,">0.3",C:C,"<=0.4") -> 0 | N14: =COUNTIFS(C:C,">0.4",C:C,"<=0.5") -> 0 | O14: =COUNTIFS(C:C,">0.5",C:C,"<=0.6") -> 0 | P14: =COUNTIFS(C:C,">0.6",C:C,"<=0.7") -> 0 | Q14: =COUNTIFS(C:C,">0.7",C:C,"<=0.8") -> 0 | R14: =COUNTIFS(C:C,">0.8",C:C,"<=0.9") -> 0 | S14: =COUNTIFS(C:C,">0.9",C:C,"<=1") -> 0 | T14: =SUM(J14:S14) -> 346
A15: 0.00 | B15: 0 | D15: 0 | E15: 0.02 | J15: =J14/$T$14 -> 100% | K15: =K14/$T$14 -> 0% | L15: 0% | M15: 0% | N15: 0% | O15: 0% | P15: 0% | Q15: 0% | R15: 0% | S15: 0%
A16: 0.00 | B16: 0.01 | D16: 0 | E16: 0
A17: 0.00 | B17: 0.01 | D17: 0 | E17: 0
A18: 0.00 | B18: 0.01 | D18: 0 | E18: 0 | I18: Bull 3 | J18: 0.05 | K18: 0.15 | L18: 0.25 | M18: 0.35 | N18: 0.45 | O18: 0.55 | P18: 0.65 | Q18: 0.75 | R18: 0.85 | S18: 0.95
A19: 0.00 | B19: 0.01 | D19: 0 | E19: 0 | J19: =(COUNTIFS(D:D, "<=0.1")) -> 196 | K19: =COUNTIFS(D:D,">0.1",D:D,"<=0.2") -> 1 | L19: =COUNTIFS(D:D,">0.2",D:D,"<=0.3") -> 0 | M19: =COUNTIFS(D:D,">0.3",D:D,"<=0.4") -> 1 | N19: =COUNTIFS(D:D,">0.4",D:D,"<=0.5") -> 0 | O19: =COUNTIFS(D:D,">0.5",D:D,"<=0.6") -> 0 | P19: =COUNTIFS(D:D,">0.6",D:D,"<=0.7") -> 0 | Q19: =COUNTIFS(D:D,">0.7",D:D,"<=0.8") -> 0 | R19: =COUNTIFS(D:D,">0.8",D:D,"<=0.9") -> 0 | S19: =COUNTIFS(D:D,">0.9",D:D,"<=1") -> 0 | T19: =SUM(J19:S19) -> 198
A20: 0.00 | B20: 0.01 | D20: 0 | E20: 0 | J20: =J19/$T$19 -> 99% | K20: =K19/$T$19 -> 1% | L20: 0% | M20: 1% | N20: 0% | O20: 0% | P20: 0% | Q20: 0% | R20: 0% | S20: 0%
A21: 0.00 | B21: 0 | D21: 0 | E21: 0.01
A22: 0.01 | B22: 0 | D22: 0.01 | E22: 0
A23: 0.00 | B23: 0 | D23: 0 | E23: 0 | I23: Bull 4 | J23: 0.05 | K23: 0.15 | L23: 0.25 | M23: 0.35 | N23: 0.45 | O23: 0.55 | P23: 0.65 | Q23: 0.75 | R23: 0.85 | S23: 0.95
A24: 0.01 | B24: 0.01 | D24: 0.01 | E24: 0 | J24: =(COUNTIFS(E:E, "<=0.1")) -> 161 | K24: =COUNTIFS(E:E,">0.1",E:E,"<=0.2") -> 1 | L24: =COUNTIFS(E:E,">0.2",E:E,"<=0.3") -> 1 | M24: =COUNTIFS(E:E,">0.3",E:E,"<=0.4") -> 0 | N24: =COUNTIFS(E:E,">0.4",E:E,"<=0.5") -> 3 | O24: =COUNTIFS(E:E,">0.5",E:E,"<=0.6") -> 0 | P24: =COUNTIFS(E:E,">0.6",E:E,"<=0.7") -> 0 | Q24: =COUNTIFS(E:E,">0.7",E:E,"<=0.8") -> 0 | R24: =COUNTIFS(E:E,">0.8",E:E,"<=0.9") -> 0 | S24: =COUNTIFS(E:E,">0.9",E:E,"<=1") -> 0 | T24: =SUM(J24:S24) -> 166
A25: 0.00 | B25: 0 | D25: 0 | E25: 0 | J25: =J24/$T$24 -> 97% | K25: =K24/$T$24 -> 1% | L25: =L24/$T$24 -> 1% | M25: 0% | N25: 2% | O25: 0% | P25: 0% | Q25: 0% | R25: 0% | S25: 0%
A26: 0.00 | B26: 0 | D26: 0 | E26: 0
A27: 0.00 | B27: 0.01 | D27: 0 | E27: 0.01
A28: 0.00 | B28: 0 | D28: 0 | E28: 0.02 | I28: Bull 5 | J28: 0.05 | K28: 0.15 | L28: 0.25 | M28: 0.35 | N28: 0.45 | O28: 0.55 | P28: 0.65 | Q28: 0.75 | R28: 0.85 | S28: 0.95
A29: 0.00 | B29: 0.01 | C29: 0 | D29: 0 | E29: 0.01 | J29: =(COUNTIFS(F:F, "<=0.1")) -> 182 | K29: =COUNTIFS(F:F,">0.1",F:F,"<=0.2") -> 5 | L29: =COUNTIFS(F:F,">0.2",F:F,"<=0.3") -> 2 | M29: =COUNTIFS(F:F,">0.3",F:F,"<=0.4") -> 0 | N29: =COUNTIFS(F:F,">0.4",F:F,"<=0.5") -> 0 | O29: =COUNTIFS(F:F,">0.5",F:F,"<=0.6") -> 0 | P29: =COUNTIFS(F:F,">0.6",F:F,"<=0.7") -> 0 | Q29: =COUNTIFS(F:F,">0.7",F:F,"<=0.8") -> 0 | R29: =COUNTIFS(F:F,">0.8",F:F,"<=0.9") -> 0 | S29: =COUNTIFS(F:F,">0.9",F:F,"<=1") -> 0 | T29: =SUM(J29:S29) -> 189
A30: 0.00 | B30: 0 | C30: 0 | D30: 0 | E30: 0.01 | J30: =J29/$T$29 -> 96% | K30: =K29/$T$29 -> 3% | L30: 1% | M30: 0% | N30: 0% | O30: 0% | P30: 0% | Q30: 0% | R30: 0% | S30: 0%
A31: 0.00 | B31: 0 | C31: 0.01 | D31: 0 | E31: 0.01
A32: 0.00 | B32: 0 | C32: 0 | D32: 0 | E32: 0
A33: 0.00 | B33: 0 | C33: 0 | D33: 0 | E33: 0 | I33: Bull 6 | J33: 0.05 | K33: 0.15 | L33: 0.25 | M33: 0.35 | N33: 0.45 | O33: 0.55 | P33: 0.65 | Q33: 0.75 | R33: 0.85 | S33: 0.95
A34: 0.00 | B34: 0 | C34: 0 | D34: 0 | E34: 0.17 | J34: =(COUNTIFS(G:G, "<=0.1")) -> 172 | K34: =COUNTIFS(G:G,">0.1",G:G,"<=0.2") -> 14 | L34: =COUNTIFS(G:G,">0.2",G:G,"<=0.3") -> 8 | M34: =COUNTIFS(G:G,">0.3",G:G,"<=0.4") -> 10 | N34: =COUNTIFS(G:G,">0.4",G:G,"<=0.5") -> 2 | O34: =COUNTIFS(G:G,">0.5",G:G,"<=0.6") -> 3 | P34: =COUNTIFS(G:G,">0.6",G:G,"<=0.7") -> 0 | Q34: =COUNTIFS(G:G,">0.7",G:G,"<=0.8") -> 0 | R34: =COUNTIFS(G:G,">0.8",G:G,"<=0.9") -> 0 | S34: =COUNTIFS(G:G,">0.9",G:G,"<=1") -> 1 | T34: =SUM(J34:S34) -> 210
A35: 0.00 | B35: 0 | C35: 0 | D35: 0 | E35: 0.5 | J35: =J34/$T$34 -> 82% | K35: =K34/$T$34 -> 7% | L35: 4% | M35: 5% | N35: 1% | O35: 1% | P35: 0% | Q35: 0% | R35: 0% | S35: 0%
A36: 0.00 | B36: 0 | C36: 0 | D36: 0 | E36: 0
A37: 0.00 | B37: 0.01 | C37: 0 | D37: 0 | E37: 0.05
A38: 0.00 | B38: 0 | C38: 0 | D38: 0 | E38: 0
A39: 0.00 | B39: 0 | C39: 0 | D39: 0 | E39: 0.05
A40: 0.00 | B40: 0 | C40: 0 | D40: 0 | E40: 0
A41: 0.00 | B41: 0 | C41: 0 | D41: 0 | E41: 0
A42: 0.00 | B42: 0 | C42: 0 | D42: 0 | E42: 0
A43: 0.00 | B43: 0 | C43: 0 | D43: 0 | E43: 0
A44: 0.00 | B44: 0 | C44: 0 | D44: 0 | E44: 0
A45: 0.00 | B45: 0.01 | C45: 0.01 | D45: 0 | E45: 0.01
A46: 0.00 | B46: 0 | C46: 0 | D46: 0 | E46: 0
A47: 0.00 | B47: 0 | C47: 0 | D47: 0 | E47: 0
A48: 0.00 | B48: 0 | C48: 0 | D48: 0 | E48: 0
A49: 0.00 | B49: 0 | C49: 0 | D49: 0 | E49: 0.05
A50: 0.00 | B50: 0 | C50: 0 | D50: 0 | E50: 0.08
A51: 0.00 | B51: 0 | C51: 0 | D51: 0 | E51: 0.01
A52: 0.00 | B52: 0 | C52: 0.01 | D52: 0 | E52: 0
A53: 0.00 | B53: 0.01 | C53: 0.01 | D53: 0 | E53: 0
A54: 0.00 | B54: 0.01 | C54: 0 | D54: 0 | E54: 0 | F54: 0
A55: 0.00 | B55: 0 | C55: 0 | D55: 0 | E55: 0 | F55: 0.01
A56: 0.01 | B56: 0.01 | C56: 0.01 | D56: 0.01 | E56: 0 | F56: 0.02
A57: 0.00 | B57: 0 | C57: 0 | D57: 0 | E57: 0 | F57: 0.01
A58: 0.00 | B58: 0 | C58: 0.02 | D58: 0 | E58: 0 | F58: 0
A59: 0.00 | B59: 0.01 | C59: 0 | D59: 0 | E59: 0 | F59: 0.01
A60: 0.00 | B60: 0.01 | C60: 0 | D60: 0 | E60: 0.01 | F60: 0.01
A61: 0.00 | B61: 0.01 | C61: 0 | D61: 0 | E61: 0 | F61: 0.01
A62: 0.00 | B62: 0.01 | C62: 0 | D62: 0 | E62: 0.03 | F62: 0.01
A63: 0.00 | B63: 0.01 | C63: 0 | D63: 0 | E63: 0 | F63: 0.02
B64: 0 | C64: 0 | E64: 0 | F64: 0
B65: 0 | C65: 0.01 | E65: 0 | F65: 0.01
B66: 0 | C66: 0 | E66: 0 | F66: 0.01
B67: 0.01 | C67: 0 | E67: 0.03 | F67: 0.01
B68: 0 | C68: 0 | E68: 0.22 | F68: 0.01
B69: 0 | C69: 0 | E69: 0 | F69: 0
B70: 0.01 | C70: 0 | E70: 0 | F70: 0.03
B71: 0 | C71: 0 | E71: 0 | F71: 0.02
B72: 0.01 | C72: 0 | E72: 0.03 | F72: 0.02
B73: 0 | C73: 0 | E73: 0 | F73: 0.04
B74: 0 | C74: 0.01 | E74: 0 | F74: 0.06
B75: 0 | C75: 0 | E75: 0.01 | F75: 0.01 | G75: 0.01
B76: 0 | C76: 0.01 | E76: 0 | F76: 0.01 | G76: 0.01
B77: 0 | C77: 0 | E77: 0 | F77: 0 | G77: 0
B78: 0 | C78: 0 | E78: 0 | F78: 0.01 | G78: 0
B79: 0 | C79: 0 | E79: 0.44 | G79: 0
B80: 0.01 | C80: 0.01 | E80: 0 | G80: 0
B81: 0 | C81: 0 | E81: 0.01 | G81: 0.01
B82: 0 | C82: 0.01 | E82: 0.01 | G82: 0
B83: 0 | C83: 0.02 | E83: 0 | G83: 0
B84: 0 | C84: 0 | E84: 0.01 | G84: 0.01
B85: 0 | C85: 0 | E85: 0 | G85: 0
B86: 0 | C86: 0.01 | E86: 0.01 | G86: 0
B87: 0 | C87: 0 | E87: 0.01 | G87: 0
B88: 0 | C88: 0 | E88: 0.01 | G88: 0
B89: 0 | C89: 0 | E89: 0 | G89: 0
B90: 0 | C90: 0 | E90: 0.01 | G90: 0
B91: 0 | C91: 0 | E91: 0.02 | G91: 0
B92: 0 | C92: 0.01 | E92: 0 | G92: 0
B93: 0 | C93: 0 | E93: 0 | G93: 0.01
B94: 0 | C94: 0 | G94: 0
B95: 0.01 | C95: 0.01 | G95: 0
B96: 0.02 | C96: 0 | G96: 0.01
B97: 0 | C97: 0 | G97: 0
B98: 0.01 | C98: 0 | G98: 0
B99: 0 | C99: 0 | G99: 0
B100: 0 | C100: 0 | G100: 0
B101: 0.02 | C101: 0 | G101: 0
B102: 0 | C102: 0 | G102: 0
B103: 0.01 | C103: 0 | G103: 0
A104: 0.02 | B104: 0 | C104: 0 | D104: 0.02 | G104: 0
A105: 0.14 | B105: 0 | C105: 0 | D105: 0.14 | G105: 0.01
A106: 0.00 | B106: 0 | C106: 0 | D106: 0 | G106: 0.06
A107: 0.00 | B107: 0 | C107: 0 | D107: 0 | G107: 0
A108: 0.00 | B108: 0 | C108: 0 | D108: 0 | G108: 0
A109: 0.00 | B109: 0.02 | C109: 0 | D109: 0 | G109: 0
A110: 0.00 | B110: 0 | C110: 0.01 | D110: 0 | G110: 0.01
A111: 0.01 | B111: 0 | C111: 0.01 | D111: 0.01 | G111: 0
A112: 0.00 | B112: 0 | C112: 0 | D112: 0 | G112: 0
A113: 0.00 | B113: 0 | C113: 0.01 | D113: 0 | G113: 0
A114: 0.00 | B114: 0 | C114: 0 | D114: 0 | G114: 0.02
A115: 0.00 | B115: 0 | C115: 0 | D115: 0 | G115: 0
A116: 0.00 | B116: 0.01 | C116: 0.01 | D116: 0 | G116: 0
A117: 0.00 | B117: 0 | C117: 0 | D117: 0 | G117: 0
A118: 0.00 | B118: 0 | C118: 0 | D118: 0 | G118: 0.01
A119: 0.00 | B119: 0.01 | C119: 0 | D119: 0 | G119: 0.01
A120: 0.01 | B120: 0.01 | C120: 0 | D120: 0.01 | G120: 0
A121: 0.00 | B121: 0 | C121: 0.01 | D121: 0 | G121: 0.01
A122: 0.00 | B122: 0 | C122: 0.01 | D122: 0 | G122: 0
A123: 0.00 | B123: 0.01 | C123: 0 | D123: 0 | G123: 0.01
A124: 0.00 | B124: 0.01 | C124: 0 | D124: 0 | G124: 0
A125: 0.01 | B125: 0 | C125: 0 | D125: 0.01 | G125: 0
A126: 0.00 | B126: 0.01 | C126: 0 | D126: 0 | G126: 0.01
A127: 0.00 | B127: 0.01 | C127: 0 | D127: 0 | G127: 0
A128: 0.00 | B128: 0 | C128: 0.01 | D128: 0 | G128: 0
A129: 0.00 | B129: 0 | C129: 0.01 | D129: 0 | G129: 0
A130: 0.00 | B130: 0 | D130: 0 | G130: 0.01
A131: 0.00 | B131: 0.01 | D131: 0 | G131: 0
A132: 0.01 | B132: 0 | D132: 0.01 | G132: 0
A133: 0.00 | B133: 0 | D133: 0 | G133: 0
A134: 0.04 | B134: 0 | D134: 0.04 | G134: 0
A135: 0.01 | B135: 0 | D135: 0.01 | G135: 0
A136: 0.00 | B136: 0 | D136: 0 | G136: 0
A137: 0.00 | B137: 0 | D137: 0 | G137: 0.01
A138: 0.02 | B138: 0 | D138: 0.02 | G138: 0
A139: 0.00 | B139: 0 | D139: 0 | G139: 0
A140: 0.00 | B140: 0 | D140: 0 | G140: 0
A141: 0.03 | B141: 0 | D141: 0.03 | G141: 0
A142: 0.00 | B142: 0 | D142: 0 | G142: 0
A143: 0.00 | B143: 0 | D143: 0 | G143: 0
B144: 0 | G144: 0
B145: 0 | G145: 0
B146: 0 | G146: 0
B147: 0 | G147: 0
B148: 0 | G148: 0
B149: 0 | G149: 0
B150: 0 | G150: 0.06
B151: 0 | G151: 0.01
B152: 0 | G152: 0
B153: 0 | G153: 0
B154: 0 | G154: 0.01
B155: 0 | G155: 0
B156: 0 | G156: 0
B157: 0 | G157: 0
B158: 0 | G158: 0
B159: 0 | G159: 0
B160: 0 | G160: 0
B161: 0 | G161: 0
B162: 0.01 | G162: 0
B163: 0 | G163: 0
B164: 0.01 | G164: 0
B165: 0 | G165: 0
B166: 0 | G166: 0
B167: 0 | G167: 0.6
B168: 0 | G168: 0
B169: 0 | G169: 0
B170: 0 | G170: 0
B171: 0.01 | G171: 0
B172: 0 | G172: 0
B173: 0.01 | G173: 0
B174: 0 | G174: 0
B175: 0 | G175: 0
B176: 0.03 | G176: 0.06
B177: 0 | G177: 0
B178: 0 | F178: 0.01 | G178: 0
F179: 0.03 | G179: 0
F180: 0.04 | G180: 0
F181: 0.01 | G181: 0
F182: 0 | G182: 0
F183: 0.01 | G183: 0
F184: 0.03 | G184: 0
F185: 0.01 | G185: 0.08
F186: 0.01 | G186: 0
F187: 0.02 | G187: 0
F188: 0.01 | G188: 0
F189: 0.01 | G189: 0
F190: 0.03 | G190: 0
F191: 0.02 | G191: 0
F192: 0.03 | G192: 0
F193: 0.03 | G193: 0
F194: 0.04 | G194: 0
F195: 0.03 | G195: 0
F196: 0.04 | G196: 0.18
F197: 0.01 | G197: 0
F198: 0.01 | G198: 0.01
F199: 0.03 | G199: 0.01
F200: 0 | G200: 0.01
... 4239 more rows
